Workbook

Sheet INGRESO DE DATOS
A12: Tarifas efectivas a partir del 1ro de enero de 2022 — Para renovaciones de pólizas emitidas antes del 1 de abril de 2018
C16: Nombre del Asegurado Titular: | D16: NOMBRE COMPLETO
C18: Número de adultos en la póliza: | D18: 1 | G18: Número de niños en la póliza: | H18: 3
C20: Edad del Asegurado Titular: | D20: 42 | G20: Edad del/la cónyuge: | H20: 71
B27: 2 | D27: 2

Sheet Global Ultimate
A12: GLOBAL ULTIMATE HEALTH PLAN
D14: Nombre del Asegurado titular | F14: =+'INGRESO DE DATOS'!$D$16 -> NOMBRE COMPLETO
D16: Número de adultos en la póliza | F16: =+'INGRESO DE DATOS'!$D$18 -> 1 | H16: Edad del Asegurado Titular | I16: =+'INGRESO DE DATOS'!$D$20 -> 42
D18: Número de niños en la póliza | F18: =+'INGRESO DE DATOS'!$H$18 -> 3 | H18: Edad del/la conyuge | I18: =+'INGRESO DE DATOS'!$H$20 -> 71
D20: Número de niños menores de 16 años | F20: =+'INGRESO DE DATOS'!$B$27 -> 2 | H20: Fecha de la cotización: | I20: =NOW() -> 2022-10-27T12:44:16.870
H21: FALSE
E22: Deducibles | G22: PLAN 1 | H22: PLAN 2
E23: En el país de residencia | G23: 0 | H23: 1000
E24: Fuera del país de residencia | G24: 0 | H24: 1000
E26: Tarifas anuales
E27: Prima para Asegurado Titular | G27: =VLOOKUP($I$16,Tablas!$A$905:$G$971,3,TRUE) -> 34212 | H27: =VLOOKUP($I$16,Tablas!$A$905:$G$971,4,TRUE) -> 22074
E28: Prima para conyuge | G28: =IF($F$16=1,0,(VLOOKUP($I$18,Tablas!$A$905:$G$971,3,TRUE))) -> 0 | H28: =IF($F$16=1,0,(VLOOKUP($I$18,Tablas!$A$905:$G$971,4,TRUE))) -> 0
E29: Prima para hijo (s) | G29: =IF($F$16=1, (IF($F$18=0, 0, (IF($F$20>$F$18, (VLOOKUP($F$18,Tablas!$A$972:$G$974,3,TRUE)), (IF($F$18>4,(IF($F$20=0, (VLOOKUP(3,Tablas!$A$972:$G$974,3,TRUE)), (IF($F$20=1, (VLOOKUP(3,Tablas!$A$972:$G$974,3,TRUE)), (IF($F$20=2, (VLOOKUP(3,Tablas!$A$972:$G$974,3,TRUE)), (VLOOKUP(3,Tablas!$A$972:$G$974,3,TRUE)))))))), (IF($F$18=4,(IF(4-$F$20=0,(VLOOKUP(2,Tablas!$A$972:$G$974,3,TRUE)), (IF(4-$F$20=1,(VLOOKUP(2,Tablas!$A$972:$G$974,3,TRUE)), (IF(4-$F$20=2, (VLOOKUP(2,Tablas!$A$972:$G$974,3,TRUE)), (VLOOKUP(3,Tablas!$A$972:$G$974,3,TRUE)))))))), (IF($F$18=3,(IF(3-$F$20=0,(VLOOKUP(1,Tablas!$A$972:$G$974,3,TRUE)), (IF(3-$F$20=1,(VLOOKUP(1,Tablas!$A$972:$G$974,3,TRUE)), (IF(3-$F$20=2, (VLOOKUP(2,Tablas!$A$972:$G$974,3,TRUE)), (VLOOKUP(3,Tablas!$A$972:$G$974,3,TRUE)))))))), (IF($F$18=2,(IF(2-$F$20=0, 0, (IF(2-$F$20=1,(VLOOKUP(1,Tablas!$A$972:$G$974,3,TRUE)), (IF(2-$F$20=2, (VLOOKUP(2,Tablas!$A$972:$G$974,3,TRUE)), 0)))))), (IF($F$18=1,(IF(1-$F$20=0, 0, (IF(1-$F$20=1,(VLOOKUP(1,Tablas!$A$972:$G$974,3,TRUE)),0)))),0)))))))))))))), (IF($F$18=0, 0, (IF($F$20>$F$18, (VLOOKUP($F$18,Tablas!$A$972:$G$974,3,TRUE)), (IF($F$18=4,(IF(4-$F$20=0, 0, (IF(4-$F$20=1, (VLOOKUP(1,Tablas!$A$972:$G$974,3,TRUE)), (IF(4-$F$20=2, (VLOOKUP(2,Tablas!$A$972:$G$974,3,TRUE)), (IF(4-$F$20=3, (VLOOKUP(3,Tablas!$A$972:$G$974,3,TRUE)), (IF(4-$F$20=4, (VLOOKUP(3,Tablas!$A$972:$G$974,3,TRUE)), 0)))))))))), (IF($F$18=5,(IF(5-$F$20=0, (VLOOKUP(1,Tablas!$A$972:$G$974,3,TRUE)), (IF(5-$F$20=1, (VLOOKUP(1,Tablas!$A$972:$G$974,3,TRUE)), (IF(5-$F$20=2, (VLOOKUP(2,Tablas!$A$972:$G$974,3,TRUE)), (IF(5-$F$20=3, (VLOOKUP(3,Tablas!$A$972:$G$974,3,TRUE)), (IF(5-$F$20=4, (VLOOKUP(3,Tablas!$A$972:$G$974,3,TRUE)), (VLOOKUP(3,Tablas!$A$972:$G$974,3,TRUE)))))))))))), (IF($F$18=6,(IF(6-$F$20=0, (VLOOKUP(2,Tablas!$A$972:$G$974,3,TRUE)), (IF(6-$F$20=1, (VLOOKUP(2,Tablas!$A$972:$G$974,3,TRUE)), (IF(6-$F$20=2, (VLOOKUP(2,Tablas!$A$972:$G$974,3,TRUE)), (IF(6-$F$20=3, (VLOOKUP(3,Tablas!$A$972:$G$974,3,TRUE)), (IF(6-$F$20=4, (VLOOKUP(3,Tablas!$A$972:$G$974,3,TRUE)), (VLOOKUP(3,Tablas!$A$972:$G$974,3,TRUE)))))))))))), (IF($F$18>6,(IF(7-$F$20=0, (VLOOKUP(3,Tablas!$A$972:$G$974,3,TRUE)), (IF(7-$F$20=1, (VLOOKUP(3,Tablas!$A$972:$G$974,3,TRUE)), (IF(7-$F$20=2, (VLOOKUP(3,Tablas!$A$972:$G$974,3,TRUE)), (IF(7-$F$20=3, (VLOOKUP(3,Tablas!$A$972:$G$974,3,TRUE)), (IF(7-$F$20=4, (VLOOKUP(3,Tablas!$A$972:$G$974,3,TRUE)), (VLOOKUP(3,Tablas!$A$972:$G$974,3,TRUE)))))))))))), (IF($F$18=3,(IF(3-$F$20=0,0, (IF(3-$F$20=1,(VLOOKUP(1,Tablas!$A$972:$G$974,3,TRUE)), (IF(3-$F$20=2, (VLOOKUP(2,Tablas!$A$972:$G$974,3,TRUE)), (VLOOKUP(3,Tablas!$A$972:$G$974,3,TRUE)))))))), (IF($F$18=2,(IF(2-$F$20=0, 0, (IF(2-$F$20=1,(VLOOKUP(1,Tablas!$A$972:$G$974,3,TRUE)), (IF(2-$F$20=2, (VLOOKUP(2,Tablas!$A$972:$G$974,3,TRUE)), 0)))))), (IF($F$18=1,(IF(1-$F$20=0, 0, (IF(1-$F$20=1,(VLOOKUP(1,Tablas!$A$972:$G$974,3,TRUE)),0)))),0))))))))))))))))))) -> 9604 | H29: =IF($F$16=1, (IF($F$18=0, 0, (IF($F$20>$F$18, (VLOOKUP($F$18,Tablas!$A$972:$G$974,4,TRUE)), (IF($F$18>4,(IF($F$20=0, (VLOOKUP(3,Tablas!$A$972:$G$974,4,TRUE)), (IF($F$20=1, (VLOOKUP(3,Tablas!$A$972:$G$974,4,TRUE)), (IF($F$20=2, (VLOOKUP(3,Tablas!$A$972:$G$974,4,TRUE)), (VLOOKUP(3,Tablas!$A$972:$G$974,4,TRUE)))))))), (IF($F$18=4,(IF(4-$F$20=0,(VLOOKUP(2,Tablas!$A$972:$G$974,4,TRUE)), (IF(4-$F$20=1,(VLOOKUP(2,Tablas!$A$972:$G$974,4,TRUE)), (IF(4-$F$20=2, (VLOOKUP(2,Tablas!$A$972:$G$974,4,TRUE)), (VLOOKUP(3,Tablas!$A$972:$G$974,4,TRUE)))))))), (IF($F$18=3,(IF(3-$F$20=0,(VLOOKUP(1,Tablas!$A$972:$G$974,4,TRUE)), (IF(3-$F$20=1,(VLOOKUP(1,Tablas!$A$972:$G$974,4,TRUE)), (IF(3-$F$20=2, (VLOOKUP(2,Tablas!$A$972:$G$974,4,TRUE)), (VLOOKUP(3,Tablas!$A$972:$G$974,4,TRUE)))))))), (IF($F$18=2,(IF(2-$F$20=0, 0, (IF(2-$F$20=1,(VLOOKUP(1,Tablas!$A$972:$G$974,4,TRUE)), (IF(2-$F$20=2, (VLOOKUP(2,Tablas!$A$972:$G$974,4,TRUE)), 0)))))), (IF($F$18=1,(IF(1-$F$20=0, 0, (IF(1-$F$20=1,(VLOOKUP(1,Tablas!$A$972:$G$974,4,TRUE)),0)))),0)))))))))))))), (IF($F$18=0, 0, (IF($F$20>$F$18, (VLOOKUP($F$18,Tablas!$A$972:$G$974,4,TRUE)), (IF($F$18=4,(IF(4-$F$20=0, 0, (IF(4-$F$20=1, (VLOOKUP(1,Tablas!$A$972:$G$974,4,TRUE)), (IF(4-$F$20=2, (VLOOKUP(2,Tablas!$A$972:$G$974,4,TRUE)), (IF(4-$F$20=3, (VLOOKUP(3,Tablas!$A$972:$G$974,4,TRUE)), (IF(4-$F$20=4, (VLOOKUP(3,Tablas!$A$972:$G$974,4,TRUE)), 0)))))))))), (IF($F$18=5,(IF(5-$F$20=0, (VLOOKUP(1,Tablas!$A$972:$G$974,4,TRUE)), (IF(5-$F$20=1, (VLOOKUP(1,Tablas!$A$972:$G$974,4,TRUE)), (IF(5-$F$20=2, (VLOOKUP(2,Tablas!$A$972:$G$974,4,TRUE)), (IF(5-$F$20=3, (VLOOKUP(3,Tablas!$A$972:$G$974,4,TRUE)), (IF(5-$F$20=4, (VLOOKUP(3,Tablas!$A$972:$G$974,4,TRUE)), (VLOOKUP(3,Tablas!$A$972:$G$974,4,TRUE)))))))))))), (IF($F$18=6,(IF(6-$F$20=0, (VLOOKUP(2,Tablas!$A$972:$G$974,4,TRUE)), (IF(6-$F$20=1, (VLOOKUP(2,Tablas!$A$972:$G$974,4,TRUE)), (IF(6-$F$20=2, (VLOOKUP(2,Tablas!$A$972:$G$974,4,TRUE)), (IF(6-$F$20=3, (VLOOKUP(3,Tablas!$A$972:$G$974,4,TRUE)), (IF(6-$F$20=4, (VLOOKUP(3,Tablas!$A$972:$G$974,4,TRUE)), (VLOOKUP(3,Tablas!$A$972:$G$974,4,TRUE)))))))))))), (IF($F$18>6,(IF(7-$F$20=0, (VLOOKUP(3,Tablas!$A$972:$G$974,4,TRUE)), (IF(7-$F$20=1, (VLOOKUP(3,Tablas!$A$972:$G$974,4,TRUE)), (IF(7-$F$20=2, (VLOOKUP(3,Tablas!$A$972:$G$974,4,TRUE)), (IF(7-$F$20=3, (VLOOKUP(3,Tablas!$A$972:$G$974,4,TRUE)), (IF(7-$F$20=4, (VLOOKUP(3,Tablas!$A$972:$G$974,4,TRUE)), (VLOOKUP(3,Tablas!$A$972:$G$974,4,TRUE)))))))))))), (IF($F$18=3,(IF(3-$F$20=0,0, (IF(3-$F$20=1,(VLOOKUP(1,Tablas!$A$972:$G$974,4,TRUE)), (IF(3-$F$20=2, (VLOOKUP(2,Tablas!$A$972:$G$974,4,TRUE)), (VLOOKUP(3,Tablas!$A$972:$G$974,4,TRUE)))))))), (IF($F$18=2,(IF(2-$F$20=0, 0, (IF(2-$F$20=1,(VLOOKUP(1,Tablas!$A$972:$G$974,4,TRUE)), (IF(2-$F$20=2, (VLOOKUP(2,Tablas!$A$972:$G$974,4,TRUE)), 0)))))), (IF($F$18=1,(IF(1-$F$20=0, 0, (IF(1-$F$20=1,(VLOOKUP(1,Tablas!$A$972:$G$974,4,TRUE)),0)))),0))))))))))))))))))) -> 6196
E30: Total de Prima neta | G30: =SUM(G27:G29) -> 43816 | H30: =SUM(H27:H29) -> 28270
E31: Tarifa administrativa anual | G31: 75 | H31: 75
E32: IVA (12%) | G32: =(G31+G30)*12% -> 5266.92 | H32: =(H31+H30)*12% -> 3401.4
E33: TOTAL ANUAL | G33: =SUM(G30:G32) -> 49157.92 | H33: =SUM(H30:H32) -> 31746.4
E34: Ahorros en tarifas de prima para niños | G34: =IF($F$16=1,IF($F$18=0,0,IF($F$20=0,0,IF($F$20=1,(VLOOKUP(1,Tablas!$A$972:$G$974,3,TRUE)),(VLOOKUP(2,Tablas!$A$972:$G$974,3,TRUE))))), IF($F$18=0,0,IF($F$20=0,0,IF($F$20=1,(VLOOKUP(1,Tablas!$A$972:$G$974,3,TRUE)),IF($F$20=2,(VLOOKUP(2,Tablas!$A$972:$G$974,3,TRUE)), (VLOOKUP(3,Tablas!$A$972:$G$974,3,TRUE))))))) -> 16323 | H34: =IF($F$16=1,IF($F$18=0,0,IF($F$20=0,0,IF($F$20=1,(VLOOKUP(1,Tablas!$A$972:$G$974,4,TRUE)),(VLOOKUP(2,Tablas!$A$972:$G$974,4,TRUE))))), IF($F$18=0,0,IF($F$20=0,0,IF($F$20=1,(VLOOKUP(1,Tablas!$A$972:$G$974,4,TRUE)),IF($F$20=2,(VLOOKUP(2,Tablas!$A$972:$G$974,4,TRUE)), (VLOOKUP(3,Tablas!$A$972:$G$974,4,TRUE))))))) -> 10533
E36: Tarifas semi anuales
E37: Prima para Asegurado Titular | G37: =VLOOKUP($I$16,Tablas!$A$1428:$G$1494,3,TRUE) -> 18132.36 | H37: =VLOOKUP($I$16,Tablas!$A$1428:$G$1494,4,TRUE) -> 11699.22
E38: Prima para conyuge | G38: =IF($F$16=1,0,(VLOOKUP($I$18,Tablas!$A$1428:$G$1494,3,TRUE))) -> 0 | H38: =IF($F$16=1,0,(VLOOKUP($I$18,Tablas!$A$1428:$G$1494,4,TRUE))) -> 0
E39: Prima para hijo (s) | G39: =IF($F$16=1, (IF($F$18=0, 0, (IF($F$20>$F$18, (VLOOKUP($F$18,Tablas!$A$1495:$G$1497,3,TRUE)), (IF($F$18>4,(IF($F$20=0, (VLOOKUP(3,Tablas!$A$1495:$G$1497,3,TRUE)), (IF($F$20=1, (VLOOKUP(3,Tablas!$A$1495:$G$1497,3,TRUE)), (IF($F$20=2, (VLOOKUP(3,Tablas!$A$1495:$G$1497,3,TRUE)), (VLOOKUP(3,Tablas!$A$1495:$G$1497,3,TRUE)))))))), (IF($F$18=4,(IF(4-$F$20=0,(VLOOKUP(2,Tablas!$A$1495:$G$1497,3,TRUE)), (IF(4-$F$20=1,(VLOOKUP(2,Tablas!$A$1495:$G$1497,3,TRUE)), (IF(4-$F$20=2, (VLOOKUP(2,Tablas!$A$1495:$G$1497,3,TRUE)), (VLOOKUP(3,Tablas!$A$1495:$G$1497,3,TRUE)))))))), (IF($F$18=3,(IF(3-$F$20=0,(VLOOKUP(1,Tablas!$A$1495:$G$1497,3,TRUE)), (IF(3-$F$20=1,(VLOOKUP(1,Tablas!$A$1495:$G$1497,3,TRUE)), (IF(3-$F$20=2, (VLOOKUP(2,Tablas!$A$1495:$G$1497,3,TRUE)), (VLOOKUP(3,Tablas!$A$1495:$G$1497,3,TRUE)))))))), (IF($F$18=2,(IF(2-$F$20=0, 0, (IF(2-$F$20=1,(VLOOKUP(1,Tablas!$A$1495:$G$1497,3,TRUE)), (IF(2-$F$20=2, (VLOOKUP(2,Tablas!$A$1495:$G$1497,3,TRUE)), 0)))))), (IF($F$18=1,(IF(1-$F$20=0, 0, (IF(1-$F$20=1,(VLOOKUP(1,Tablas!$A$1495:$G$1497,3,TRUE)),0)))),0)))))))))))))), (IF($F$18=0, 0, (IF($F$20>$F$18, (VLOOKUP($F$18,Tablas!$A$1495:$G$1497,3,TRUE)), (IF($F$18=4,(IF(4-$F$20=0, 0, (IF(4-$F$20=1, (VLOOKUP(1,Tablas!$A$1495:$G$1497,3,TRUE)), (IF(4-$F$20=2, (VLOOKUP(2,Tablas!$A$1495:$G$1497,3,TRUE)), (IF(4-$F$20=3, (VLOOKUP(3,Tablas!$A$1495:$G$1497,3,TRUE)), (IF(4-$F$20=4, (VLOOKUP(3,Tablas!$A$1495:$G$1497,3,TRUE)), 0)))))))))), (IF($F$18=5,(IF(5-$F$20=0, (VLOOKUP(1,Tablas!$A$1495:$G$1497,3,TRUE)), (IF(5-$F$20=1, (VLOOKUP(1,Tablas!$A$1495:$G$1497,3,TRUE)), (IF(5-$F$20=2, (VLOOKUP(2,Tablas!$A$1495:$G$1497,3,TRUE)), (IF(5-$F$20=3, (VLOOKUP(3,Tablas!$A$1495:$G$1497,3,TRUE)), (IF(5-$F$20=4, (VLOOKUP(3,Tablas!$A$1495:$G$1497,3,TRUE)), (VLOOKUP(3,Tablas!$A$1495:$G$1497,3,TRUE)))))))))))), (IF($F$18=6,(IF(6-$F$20=0, (VLOOKUP(2,Tablas!$A$1495:$G$1497,3,TRUE)), (IF(6-$F$20=1, (VLOOKUP(2,Tablas!$A$1495:$G$1497,3,TRUE)), (IF(6-$F$20=2, (VLOOKUP(2,Tablas!$A$1495:$G$1497,3,TRUE)), (IF(6-$F$20=3, (VLOOKUP(3,Tablas!$A$1495:$G$1497,3,TRUE)), (IF(6-$F$20=4, (VLOOKUP(3,Tablas!$A$1495:$G$1497,3,TRUE)), (VLOOKUP(3,Tablas!$A$1495:$G$1497,3,TRUE)))))))))))), (IF($F$18>6,(IF(7-$F$20=0, (VLOOKUP(3,Tablas!$A$1495:$G$1497,3,TRUE)), (IF(7-$F$20=1, (VLOOKUP(3,Tablas!$A$1495:$G$1497,3,TRUE)), (IF(7-$F$20=2, (VLOOKUP(3,Tablas!$A$1495:$G$1497,3,TRUE)), (IF(7-$F$20=3, (VLOOKUP(3,Tablas!$A$1495:$G$1497,3,TRUE)), (IF(7-$F$20=4, (VLOOKUP(3,Tablas!$A$1495:$G$1497,3,TRUE)), (VLOOKUP(3,Tablas!$A$1495:$G$1497,3,TRUE)))))))))))), (IF($F$18=3,(IF(3-$F$20=0,0, (IF(3-$F$20=1,(VLOOKUP(1,Tablas!$A$1495:$G$1497,3,TRUE)), (IF(3-$F$20=2, (VLOOKUP(2,Tablas!$A$1495:$G$1497,3,TRUE)), (VLOOKUP(3,Tablas!$A$1495:$G$1497,3,TRUE)))))))), (IF($F$18=2,(IF(2-$F$20=0, 0, (IF(2-$F$20=1,(VLOOKUP(1,Tablas!$A$1495:$G$1497,3,TRUE)), (IF(2-$F$20=2, (VLOOKUP(2,Tablas!$A$1495:$G$1497,3,TRUE)), 0)))))), (IF($F$18=1,(IF(1-$F$20=0, 0, (IF(1-$F$20=1,(VLOOKUP(1,Tablas!$A$1495:$G$1497,3,TRUE)),0)))),0))))))))))))))))))) -> 5090.12 | H39: =IF($F$16=1, (IF($F$18=0, 0, (IF($F$20>$F$18, (VLOOKUP($F$18,Tablas!$A$1495:$G$1497,4,TRUE)), (IF($F$18>4,(IF($F$20=0, (VLOOKUP(3,Tablas!$A$1495:$G$1497,4,TRUE)), (IF($F$20=1, (VLOOKUP(3,Tablas!$A$1495:$G$1497,4,TRUE)), (IF($F$20=2, (VLOOKUP(3,Tablas!$A$1495:$G$1497,4,TRUE)), (VLOOKUP(3,Tablas!$A$1495:$G$1497,4,TRUE)))))))), (IF($F$18=4,(IF(4-$F$20=0,(VLOOKUP(2,Tablas!$A$1495:$G$1497,4,TRUE)), (IF(4-$F$20=1,(VLOOKUP(2,Tablas!$A$1495:$G$1497,4,TRUE)), (IF(4-$F$20=2, (VLOOKUP(2,Tablas!$A$1495:$G$1497,4,TRUE)), (VLOOKUP(3,Tablas!$A$1495:$G$1497,4,TRUE)))))))), (IF($F$18=3,(IF(3-$F$20=0,(VLOOKUP(1,Tablas!$A$1495:$G$1497,4,TRUE)), (IF(3-$F$20=1,(VLOOKUP(1,Tablas!$A$1495:$G$1497,4,TRUE)), (IF(3-$F$20=2, (VLOOKUP(2,Tablas!$A$1495:$G$1497,4,TRUE)), (VLOOKUP(3,Tablas!$A$1495:$G$1497,4,TRUE)))))))), (IF($F$18=2,(IF(2-$F$20=0, 0, (IF(2-$F$20=1,(VLOOKUP(1,Tablas!$A$1495:$G$1497,4,TRUE)), (IF(2-$F$20=2, (VLOOKUP(2,Tablas!$A$1495:$G$1497,4,TRUE)), 0)))))), (IF($F$18=1,(IF(1-$F$20=0, 0, (IF(1-$F$20=1,(VLOOKUP(1,Tablas!$A$1495:$G$1497,4,TRUE)),0)))),0)))))))))))))), (IF($F$18=0, 0, (IF($F$20>$F$18, (VLOOKUP($F$18,Tablas!$A$1495:$G$1497,4,TRUE)), (IF($F$18=4,(IF(4-$F$20=0, 0, (IF(4-$F$20=1, (VLOOKUP(1,Tablas!$A$1495:$G$1497,4,TRUE)), (IF(4-$F$20=2, (VLOOKUP(2,Tablas!$A$1495:$G$1497,4,TRUE)), (IF(4-$F$20=3, (VLOOKUP(3,Tablas!$A$1495:$G$1497,4,TRUE)), (IF(4-$F$20=4, (VLOOKUP(3,Tablas!$A$1495:$G$1497,4,TRUE)), 0)))))))))), (IF($F$18=5,(IF(5-$F$20=0, (VLOOKUP(1,Tablas!$A$1495:$G$1497,4,TRUE)), (IF(5-$F$20=1, (VLOOKUP(1,Tablas!$A$1495:$G$1497,4,TRUE)), (IF(5-$F$20=2, (VLOOKUP(2,Tablas!$A$1495:$G$1497,4,TRUE)), (IF(5-$F$20=3, (VLOOKUP(3,Tablas!$A$1495:$G$1497,4,TRUE)), (IF(5-$F$20=4, (VLOOKUP(3,Tablas!$A$1495:$G$1497,4,TRUE)), (VLOOKUP(3,Tablas!$A$1495:$G$1497,4,TRUE)))))))))))), (IF($F$18=6,(IF(6-$F$20=0, (VLOOKUP(2,Tablas!$A$1495:$G$1497,4,TRUE)), (IF(6-$F$20=1, (VLOOKUP(2,Tablas!$A$1495:$G$1497,4,TRUE)), (IF(6-$F$20=2, (VLOOKUP(2,Tablas!$A$1495:$G$1497,4,TRUE)), (IF(6-$F$20=3, (VLOOKUP(3,Tablas!$A$1495:$G$1497,4,TRUE)), (IF(6-$F$20=4, (VLOOKUP(3,Tablas!$A$1495:$G$1497,4,TRUE)), (VLOOKUP(3,Tablas!$A$1495:$G$1497,4,TRUE)))))))))))), (IF($F$18>6,(IF(7-$F$20=0, (VLOOKUP(3,Tablas!$A$1495:$G$1497,4,TRUE)), (IF(7-$F$20=1, (VLOOKUP(3,Tablas!$A$1495:$G$1497,4,TRUE)), (IF(7-$F$20=2, (VLOOKUP(3,Tablas!$A$1495:$G$1497,4,TRUE)), (IF(7-$F$20=3, (VLOOKUP(3,Tablas!$A$1495:$G$1497,4,TRUE)), (IF(7-$F$20=4, (VLOOKUP(3,Tablas!$A$1495:$G$1497,4,TRUE)), (VLOOKUP(3,Tablas!$A$1495:$G$1497,4,TRUE)))))))))))), (IF($F$18=3,(IF(3-$F$20=0,0, (IF(3-$F$20=1,(VLOOKUP(1,Tablas!$A$1495:$G$1497,4,TRUE)), (IF(3-$F$20=2, (VLOOKUP(2,Tablas!$A$1495:$G$1497,4,TRUE)), (VLOOKUP(3,Tablas!$A$1495:$G$1497,4,TRUE)))))))), (IF($F$18=2,(IF(2-$F$20=0, 0, (IF(2-$F$20=1,(VLOOKUP(1,Tablas!$A$1495:$G$1497,4,TRUE)), (IF(2-$F$20=2, (VLOOKUP(2,Tablas!$A$1495:$G$1497,4,TRUE)), 0)))))), (IF($F$18=1,(IF(1-$F$20=0, 0, (IF(1-$F$20=1,(VLOOKUP(1,Tablas!$A$1495:$G$1497,4,TRUE)),0)))),0))))))))))))))))))) -> 3283.88
E40: Total de Prima neta | G40: =SUM(G37:G39) -> 23222.48 | H40: =SUM(H37:H39) -> 14983.1
E41: Tarifa administrativa anual | G41: 75 | H41: 75
E42: IVA (12%) | G42: =(G40+G41)*12% -> 2795.6976 | H42: =(H40+H41)*12% -> 1806.972
E43: TOTAL de primera cuota | G43: =SUM(G40:G42) -> 26093.1776 | H43: =SUM(H40:H42) -> 16865.072
E44: Costo de segunda cuota | G44: =G40+G42 - (G41)*0.12 -> 26009.1776 | H44: =H40+H42 - (H41)*0.12 -> 16781.072
E45: TOTAL ANUAL | G45: =G43+G44 -> 52102.3552 | H45: =H43+H44 -> 33646.144
E46: Ahorros en tarifas de prima para niños | G46: =IF($F$16=1,IF($F$18=0,0,IF($F$20=0,0,IF($F$20=1,(VLOOKUP(1,Tablas!$A$1495:$G$1497,3,TRUE)),(VLOOKUP(2,Tablas!$A$1495:$G$1497,3,TRUE))))), IF($F$18=0,0,IF($F$20=0,0,IF($F$20=1,(VLOOKUP(1,Tablas!$A$1495:$G$1497,3,TRUE)),IF($F$20=2,(VLOOKUP(2,Tablas!$A$1495:$G$1497,3,TRUE)), (VLOOKUP(3,Tablas!$A$1495:$G$1497,3,TRUE))))))) -> 8651.19 | H46: =IF($F$16=1,IF($F$18=0,0,IF($F$20=0,0,IF($F$20=1,(VLOOKUP(1,Tablas!$A$1495:$G$1497,4,TRUE)),(VLOOKUP(2,Tablas!$A$1495:$G$1497,4,TRUE))))), IF($F$18=0,0,IF($F$20=0,0,IF($F$20=1,(VLOOKUP(1,Tablas!$A$1495:$G$1497,4,TRUE)),IF($F$20=2,(VLOOKUP(2,Tablas!$A$1495:$G$1497,4,TRUE)), (VLOOKUP(3,Tablas!$A$1495:$G$1497,4,TRUE))))))) -> 5582.49
E48: Tarifas trimestrales
E49: Prima para Asegurado Titular | G49: =VLOOKUP($I$16,Tablas!$A$1054:$G$1120,3,TRUE) -> 9408.3 | H49: =VLOOKUP($I$16,Tablas!$A$1054:$G$1120,4,TRUE) -> 6070.35
E50: Prima para conyuge | G50: =IF($F$16=1,0,(VLOOKUP($I$18,Tablas!$A$1054:$G$1120,3,TRUE))) -> 0 | H50: =IF($F$16=1,0,(VLOOKUP($I$18,Tablas!$A$1054:$G$1120,4,TRUE))) -> 0
E51: Prima para hijo (s) | G51: =IF($F$16=1, (IF($F$18=0, 0, (IF($F$20>$F$18, (VLOOKUP($F$18,Tablas!$A$1121:$G$1123,3,TRUE)), (IF($F$18>4,(IF($F$20=0, (VLOOKUP(3,Tablas!$A$1121:$G$1123,3,TRUE)), (IF($F$20=1, (VLOOKUP(3,Tablas!$A$1121:$G$1123,3,TRUE)), (IF($F$20=2, (VLOOKUP(3,Tablas!$A$1121:$G$1123,3,TRUE)), (VLOOKUP(3,Tablas!$A$1121:$G$1123,3,TRUE)))))))), (IF($F$18=4,(IF(4-$F$20=0,(VLOOKUP(2,Tablas!$A$1121:$G$1123,3,TRUE)), (IF(4-$F$20=1,(VLOOKUP(2,Tablas!$A$1121:$G$1123,3,TRUE)), (IF(4-$F$20=2, (VLOOKUP(2,Tablas!$A$1121:$G$1123,3,TRUE)), (VLOOKUP(3,Tablas!$A$1121:$G$1123,3,TRUE)))))))), (IF($F$18=3,(IF(3-$F$20=0,(VLOOKUP(1,Tablas!$A$1121:$G$1123,3,TRUE)), (IF(3-$F$20=1,(VLOOKUP(1,Tablas!$A$1121:$G$1123,3,TRUE)), (IF(3-$F$20=2, (VLOOKUP(2,Tablas!$A$1121:$G$1123,3,TRUE)), (VLOOKUP(3,Tablas!$A$1121:$G$1123,3,TRUE)))))))), (IF($F$18=2,(IF(2-$F$20=0, 0, (IF(2-$F$20=1,(VLOOKUP(1,Tablas!$A$1121:$G$1123,3,TRUE)), (IF(2-$F$20=2, (VLOOKUP(2,Tablas!$A$1121:$G$1123,3,TRUE)), 0)))))), (IF($F$18=1,(IF(1-$F$20=0, 0, (IF(1-$F$20=1,(VLOOKUP(1,Tablas!$A$1121:$G$1123,3,TRUE)),0)))),0)))))))))))))), (IF($F$18=0, 0, (IF($F$20>$F$18, (VLOOKUP($F$18,Tablas!$A$1121:$G$1123,3,TRUE)), (IF($F$18=4,(IF(4-$F$20=0, 0, (IF(4-$F$20=1, (VLOOKUP(1,Tablas!$A$1121:$G$1123,3,TRUE)), (IF(4-$F$20=2, (VLOOKUP(2,Tablas!$A$1121:$G$1123,3,TRUE)), (IF(4-$F$20=3, (VLOOKUP(3,Tablas!$A$1121:$G$1123,3,TRUE)), (IF(4-$F$20=4, (VLOOKUP(3,Tablas!$A$1121:$G$1123,3,TRUE)), 0)))))))))), (IF($F$18=5,(IF(5-$F$20=0, (VLOOKUP(1,Tablas!$A$1121:$G$1123,3,TRUE)), (IF(5-$F$20=1, (VLOOKUP(1,Tablas!$A$1121:$G$1123,3,TRUE)), (IF(5-$F$20=2, (VLOOKUP(2,Tablas!$A$1121:$G$1123,3,TRUE)), (IF(5-$F$20=3, (VLOOKUP(3,Tablas!$A$1121:$G$1123,3,TRUE)), (IF(5-$F$20=4, (VLOOKUP(3,Tablas!$A$1121:$G$1123,3,TRUE)), (VLOOKUP(3,Tablas!$A$1121:$G$1123,3,TRUE)))))))))))), (IF($F$18=6,(IF(6-$F$20=0, (VLOOKUP(2,Tablas!$A$1121:$G$1123,3,TRUE)), (IF(6-$F$20=1, (VLOOKUP(2,Tablas!$A$1121:$G$1123,3,TRUE)), (IF(6-$F$20=2, (VLOOKUP(2,Tablas!$A$1121:$G$1123,3,TRUE)), (IF(6-$F$20=3, (VLOOKUP(3,Tablas!$A$1121:$G$1123,3,TRUE)), (IF(6-$F$20=4, (VLOOKUP(3,Tablas!$A$1121:$G$1123,3,TRUE)), (VLOOKUP(3,Tablas!$A$1121:$G$1123,3,TRUE)))))))))))), (IF($F$18>6,(IF(7-$F$20=0, (VLOOKUP(3,Tablas!$A$1121:$G$1123,3,TRUE)), (IF(7-$F$20=1, (VLOOKUP(3,Tablas!$A$1121:$G$1123,3,TRUE)), (IF(7-$F$20=2, (VLOOKUP(3,Tablas!$A$1121:$G$1123,3,TRUE)), (IF(7-$F$20=3, (VLOOKUP(3,Tablas!$A$1121:$G$1123,3,TRUE)), (IF(7-$F$20=4, (VLOOKUP(3,Tablas!$A$1121:$G$1123,3,TRUE)), (VLOOKUP(3,Tablas!$A$1121:$G$1123,3,TRUE)))))))))))), (IF($F$18=3,(IF(3-$F$20=0,0, (IF(3-$F$20=1,(VLOOKUP(1,Tablas!$A$1121:$G$1123,3,TRUE)), (IF(3-$F$20=2, (VLOOKUP(2,Tablas!$A$1121:$G$1123,3,TRUE)), (VLOOKUP(3,Tablas!$A$1121:$G$1123,3,TRUE)))))))), (IF($F$18=2,(IF(2-$F$20=0, 0, (IF(2-$F$20=1,(VLOOKUP(1,Tablas!$A$1121:$G$1123,3,TRUE)), (IF(2-$F$20=2, (VLOOKUP(2,Tablas!$A$1121:$G$1123,3,TRUE)), 0)))))), (IF($F$18=1,(IF(1-$F$20=0, 0, (IF(1-$F$20=1,(VLOOKUP(1,Tablas!$A$1121:$G$1123,3,TRUE)),0)))),0))))))))))))))))))) -> 2641.1 | H51: =IF($F$16=1, (IF($F$18=0, 0, (IF($F$20>$F$18, (VLOOKUP($F$18,Tablas!$A$1121:$G$1123,4,TRUE)), (IF($F$18>4,(IF($F$20=0, (VLOOKUP(3,Tablas!$A$1121:$G$1123,4,TRUE)), (IF($F$20=1, (VLOOKUP(3,Tablas!$A$1121:$G$1123,4,TRUE)), (IF($F$20=2, (VLOOKUP(3,Tablas!$A$1121:$G$1123,4,TRUE)), (VLOOKUP(3,Tablas!$A$1121:$G$1123,4,TRUE)))))))), (IF($F$18=4,(IF(4-$F$20=0,(VLOOKUP(2,Tablas!$A$1121:$G$1123,4,TRUE)), (IF(4-$F$20=1,(VLOOKUP(2,Tablas!$A$1121:$G$1123,4,TRUE)), (IF(4-$F$20=2, (VLOOKUP(2,Tablas!$A$1121:$G$1123,4,TRUE)), (VLOOKUP(3,Tablas!$A$1121:$G$1123,4,TRUE)))))))), (IF($F$18=3,(IF(3-$F$20=0,(VLOOKUP(1,Tablas!$A$1121:$G$1123,4,TRUE)), (IF(3-$F$20=1,(VLOOKUP(1,Tablas!$A$1121:$G$1123,4,TRUE)), (IF(3-$F$20=2, (VLOOKUP(2,Tablas!$A$1121:$G$1123,4,TRUE)), (VLOOKUP(3,Tablas!$A$1121:$G$1123,4,TRUE)))))))), (IF($F$18=2,(IF(2-$F$20=0, 0, (IF(2-$F$20=1,(VLOOKUP(1,Tablas!$A$1121:$G$1123,4,TRUE)), (IF(2-$F$20=2, (VLOOKUP(2,Tablas!$A$1121:$G$1123,4,TRUE)), 0)))))), (IF($F$18=1,(IF(1-$F$20=0, 0, (IF(1-$F$20=1,(VLOOKUP(1,Tablas!$A$1121:$G$1123,4,TRUE)),0)))),0)))))))))))))), (IF($F$18=0, 0, (IF($F$20>$F$18, (VLOOKUP($F$18,Tablas!$A$1121:$G$1123,4,TRUE)), (IF($F$18=4,(IF(4-$F$20=0, 0, (IF(4-$F$20=1, (VLOOKUP(1,Tablas!$A$1121:$G$1123,4,TRUE)), (IF(4-$F$20=2, (VLOOKUP(2,Tablas!$A$1121:$G$1123,4,TRUE)), (IF(4-$F$20=3, (VLOOKUP(3,Tablas!$A$1121:$G$1123,4,TRUE)), (IF(4-$F$20=4, (VLOOKUP(3,Tablas!$A$1121:$G$1123,4,TRUE)), 0)))))))))), (IF($F$18=5,(IF(5-$F$20=0, (VLOOKUP(1,Tablas!$A$1121:$G$1123,4,TRUE)), (IF(5-$F$20=1, (VLOOKUP(1,Tablas!$A$1121:$G$1123,4,TRUE)), (IF(5-$F$20=2, (VLOOKUP(2,Tablas!$A$1121:$G$1123,4,TRUE)), (IF(5-$F$20=3, (VLOOKUP(3,Tablas!$A$1121:$G$1123,4,TRUE)), (IF(5-$F$20=4, (VLOOKUP(3,Tablas!$A$1121:$G$1123,4,TRUE)), (VLOOKUP(3,Tablas!$A$1121:$G$1123,4,TRUE)))))))))))), (IF($F$18=6,(IF(6-$F$20=0, (VLOOKUP(2,Tablas!$A$1121:$G$1123,4,TRUE)), (IF(6-$F$20=1, (VLOOKUP(2,Tablas!$A$1121:$G$1123,4,TRUE)), (IF(6-$F$20=2, (VLOOKUP(2,Tablas!$A$1121:$G$1123,4,TRUE)), (IF(6-$F$20=3, (VLOOKUP(3,Tablas!$A$1121:$G$1123,4,TRUE)), (IF(6-$F$20=4, (VLOOKUP(3,Tablas!$A$1121:$G$1123,4,TRUE)), (VLOOKUP(3,Tablas!$A$1121:$G$1123,4,TRUE)))))))))))), (IF($F$18>6,(IF(7-$F$20=0, (VLOOKUP(3,Tablas!$A$1121:$G$1123,4,TRUE)), (IF(7-$F$20=1, (VLOOKUP(3,Tablas!$A$1121:$G$1123,4,TRUE)), (IF(7-$F$20=2, (VLOOKUP(3,Tablas!$A$1121:$G$1123,4,TRUE)), (IF(7-$F$20=3, (VLOOKUP(3,Tablas!$A$1121:$G$1123,4,TRUE)), (IF(7-$F$20=4, (VLOOKUP(3,Tablas!$A$1121:$G$1123,4,TRUE)), (VLOOKUP(3,Tablas!$A$1121:$G$1123,4,TRUE)))))))))))), (IF($F$18=3,(IF(3-$F$20=0,0, (IF(3-$F$20=1,(VLOOKUP(1,Tablas!$A$1121:$G$1123,4,TRUE)), (IF(3-$F$20=2, (VLOOKUP(2,Tablas!$A$1121:$G$1123,4,TRUE)), (VLOOKUP(3,Tablas!$A$1121:$G$1123,4,TRUE)))))))), (IF($F$18=2,(IF(2-$F$20=0, 0, (IF(2-$F$20=1,(VLOOKUP(1,Tablas!$A$1121:$G$1123,4,TRUE)), (IF(2-$F$20=2, (VLOOKUP(2,Tablas!$A$1121:$G$1123,4,TRUE)), 0)))))), (IF($F$18=1,(IF(1-$F$20=0, 0, (IF(1-$F$20=1,(VLOOKUP(1,Tablas!$A$1121:$G$1123,4,TRUE)),0)))),0))))))))))))))))))) -> 1703.9
E52: Total de Prima neta | G52: =SUM(G49:G51) -> 12049.4 | H52: =SUM(H49:H51) -> 7774.25
E53: Tarifa administrativa anual | G53: 75 | H53: 75
E54: IVA (12%) | G54: =(G52+G53)*12% -> 1454.928 | H54: =(H52+H53)*12% -> 941.91
E55: TOTAL de primera cuota | G55: =SUM(G52:G54) -> 13579.328 | H55: =SUM(H52:H54) -> 8791.16
E56: Costo de tarifa trimestral 2 a 4 | G56: =G52+G54 -G53*12% -> 13495.328 | H56: =H52+H54 -H53*12% -> 8707.16
E57: TOTAL ANUAL | G57: =G55+(G56*3) -> 54065.312 | H57: =H55+(H56*3) -> 34912.64
E58: Ahorros en tarifas de prima para niños | G58: =IF($F$16=1,IF($F$18=0,0,IF($F$20=0,0,IF($F$20=1,(VLOOKUP(1,Tablas!$A$1121:$G$1123,3,TRUE)),(VLOOKUP(2,Tablas!$A$1121:$G$1123,3,TRUE))))), IF($F$18=0,0,IF($F$20=0,0,IF($F$20=1,(VLOOKUP(1,Tablas!$A$1121:$G$1123,3,TRUE)),IF($F$20=2,(VLOOKUP(2,Tablas!$A$1121:$G$1123,3,TRUE)), (VLOOKUP(3,Tablas!$A$1121:$G$1123,3,TRUE))))))) -> 4488.825 | H58: =IF($F$16=1,IF($F$18=0,0,IF($F$20=0,0,IF($F$20=1,(VLOOKUP(1,Tablas!$A$1121:$G$1123,4,TRUE)),(VLOOKUP(2,Tablas!$A$1121:$G$1123,4,TRUE))))), IF($F$18=0,0,IF($F$20=0,0,IF($F$20=1,(VLOOKUP(1,Tablas!$A$1121:$G$1123,4,TRUE)),IF($F$20=2,(VLOOKUP(2,Tablas!$A$1121:$G$1123,4,TRUE)), (VLOOKUP(3,Tablas!$A$1121:$G$1123,4,TRUE))))))) -> 2896.575
E61: Tarifas en US $ - Efectivas a partir del 1ro de enero de 2022
E62: Este presupuesto solamente tiene carácter informativo y en ningún momento expresa compromiso legal para suministrarle cobertura de seguro. La emisión de una póliza de seguro Bupa está sujeta a todas las evaluaciones de riesgo por parte de Bupa y a la recepción de todos los pagos de prima requeridos.

Sheet Global Elite
A12: GLOBAL ELITE HEALTH PLAN
E14: Nombre del Asegurado titular: | F14: =+'INGRESO DE DATOS'!$D$16 -> NOMBRE COMPLETO
E16: Número de adultos en la póliza: | F16: =+'INGRESO DE DATOS'!$D$18 -> 1 | H16: Edad del Asegurado Titular: | I16: =+'INGRESO DE DATOS'!$D$20 -> 42
E18: Número de niños en la póliza: | F18: =+'INGRESO DE DATOS'!$H$18 -> 3 | H18: Edad del/la conyuge: | I18: =+'INGRESO DE DATOS'!$H$20 -> 71
E20: Número de niños menores de 10 años: | F20: =+'INGRESO DE DATOS'!$D$27 -> 2 | H20: Fecha de la cotización: | I20: =NOW() -> 2022-10-27T12:44:16.870
H21: FALSE
E22: DEDUCTIBLES | G22: PLAN 1 | H22: PLAN 2 | I22: PLAN 3 | J22: PLAN 4 | K22: PLAN 5
E23: En el país de residencia | G23: 250 | H23: 2000 | I23: 3500 | J23: 5000 | K23: 10000
E24: Fuera del país de residencia | G24: 5000 | H24: 2000 | I24: 3500 | J24: 5000 | K24: 10000
E26: Tarifas anuales
E27: Prima para Asegurado Titular | G27: =VLOOKUP($I$16,Tablas!$A$6:$G$72,3,TRUE) -> 13260 | H27: =VLOOKUP($I$16,Tablas!$A$6:$G$72,4,TRUE) -> 11620 | I27: =VLOOKUP($I$16,Tablas!$A$6:$G$72,5,TRUE) -> 9307 | J27: =VLOOKUP($I$16,Tablas!$A$6:$G$72,6,TRUE) -> 8071 | K27: =VLOOKUP($I$16,Tablas!$A$6:$G$72,7,TRUE) -> 6098
E28: Prima para conyuge | G28: =IF($F$16=1,0,(VLOOKUP($I$18,Tablas!$A$6:$G$72,3,TRUE))) -> 0 | H28: =IF($F$16=1,0,(VLOOKUP($I$18,Tablas!$A$6:$G$72,4,TRUE))) -> 0 | I28: =IF($F$16=1,0,(VLOOKUP($I$18,Tablas!$A$6:$G$72,5,TRUE))) -> 0 | J28: =IF($F$16=1,0,(VLOOKUP($I$18,Tablas!$A$6:$G$72,6,TRUE))) -> 0 | K28: =IF($F$16=1,0,(VLOOKUP($I$18,Tablas!$A$6:$G$72,7,TRUE))) -> 0
E29: Prima para hijo (s) | G29: =IF($F$16=1, (IF($F$18=0, 0, (IF($F$20>$F$18, (VLOOKUP($F$18,Tablas!$A$73:$G$75,3,TRUE)), (IF($F$18>4,(IF($F$20=0, (VLOOKUP(3,Tablas!$A$73:$G$75,3,TRUE)), (IF($F$20=1, (VLOOKUP(3,Tablas!$A$73:$G$75,3,TRUE)), (IF($F$20=2, (VLOOKUP(3,Tablas!$A$73:$G$75,3,TRUE)), (VLOOKUP(3,Tablas!$A$73:$G$75,3,TRUE)))))))), (IF($F$18=4,(IF(4-$F$20=0,(VLOOKUP(2,Tablas!$A$73:$G$75,3,TRUE)), (IF(4-$F$20=1,(VLOOKUP(2,Tablas!$A$73:$G$75,3,TRUE)), (IF(4-$F$20=2, (VLOOKUP(2,Tablas!$A$73:$G$75,3,TRUE)), (VLOOKUP(3,Tablas!$A$73:$G$75,3,TRUE)))))))), (IF($F$18=3,(IF(3-$F$20=0,(VLOOKUP(1,Tablas!$A$73:$G$75,3,TRUE)), (IF(3-$F$20=1,(VLOOKUP(1,Tablas!$A$73:$G$75,3,TRUE)), (IF(3-$F$20=2, (VLOOKUP(2,Tablas!$A$73:$G$75,3,TRUE)), (VLOOKUP(3,Tablas!$A$73:$G$75,3,TRUE)))))))), (IF($F$18=2,(IF(2-$F$20=0, 0, (IF(2-$F$20=1,(VLOOKUP(1,Tablas!$A$73:$G$75,3,TRUE)), (IF(2-$F$20=2, (VLOOKUP(2,Tablas!$A$73:$G$75,3,TRUE)), 0)))))), (IF($F$18=1,(IF(1-$F$20=0, 0, (IF(1-$F$20=1,(VLOOKUP(1,Tablas!$A$73:$G$75,3,TRUE)),0)))),0)))))))))))))), (IF($F$18=0, 0, (IF($F$20>$F$18, (VLOOKUP($F$18,Tablas!$A$73:$G$75,3,TRUE)), (IF($F$18=4,(IF(4-$F$20=0, 0, (IF(4-$F$20=1, (VLOOKUP(1,Tablas!$A$73:$G$75,3,TRUE)), (IF(4-$F$20=2, (VLOOKUP(2,Tablas!$A$73:$G$75,3,TRUE)), (IF(4-$F$20=3, (VLOOKUP(3,Tablas!$A$73:$G$75,3,TRUE)), (IF(4-$F$20=4, (VLOOKUP(3,Tablas!$A$73:$G$75,3,TRUE)), 0)))))))))), (IF($F$18=5,(IF(5-$F$20=0, (VLOOKUP(1,Tablas!$A$73:$G$75,3,TRUE)), (IF(5-$F$20=1, (VLOOKUP(1,Tablas!$A$73:$G$75,3,TRUE)), (IF(5-$F$20=2, (VLOOKUP(2,Tablas!$A$73:$G$75,3,TRUE)), (IF(5-$F$20=3, (VLOOKUP(3,Tablas!$A$73:$G$75,3,TRUE)), (IF(5-$F$20=4, (VLOOKUP(3,Tablas!$A$73:$G$75,3,TRUE)), (VLOOKUP(3,Tablas!$A$73:$G$75,3,TRUE)))))))))))), (IF($F$18=6,(IF(6-$F$20=0, (VLOOKUP(2,Tablas!$A$73:$G$75,3,TRUE)), (IF(6-$F$20=1, (VLOOKUP(2,Tablas!$A$73:$G$75,3,TRUE)), (IF(6-$F$20=2, (VLOOKUP(2,Tablas!$A$73:$G$75,3,TRUE)), (IF(6-$F$20=3, (VLOOKUP(3,Tablas!$A$73:$G$75,3,TRUE)), (IF(6-$F$20=4, (VLOOKUP(3,Tablas!$A$73:$G$75,3,TRUE)), (VLOOKUP(3,Tablas!$A$73:$G$75,3,TRUE)))))))))))), (IF($F$18>6,(IF(7-$F$20=0, (VLOOKUP(3,Tablas!$A$73:$G$75,3,TRUE)), (IF(7-$F$20=1, (VLOOKUP(3,Tablas!$A$73:$G$75,3,TRUE)), (IF(7-$F$20=2, (VLOOKUP(3,Tablas!$A$73:$G$75,3,TRUE)), (IF(7-$F$20=3, (VLOOKUP(3,Tablas!$A$73:$G$75,3,TRUE)), (IF(7-$F$20=4, (VLOOKUP(3,Tablas!$A$73:$G$75,3,TRUE)), (VLOOKUP(3,Tablas!$A$73:$G$75,3,TRUE)))))))))))), (IF($F$18=3,(IF(3-$F$20=0,0, (IF(3-$F$20=1,(VLOOKUP(1,Tablas!$A$73:$G$75,3,TRUE)), (IF(3-$F$20=2, (VLOOKUP(2,Tablas!$A$73:$G$75,3,TRUE)), (VLOOKUP(3,Tablas!$A$73:$G$75,3,TRUE)))))))), (IF($F$18=2,(IF(2-$F$20=0, 0, (IF(2-$F$20=1,(VLOOKUP(1,Tablas!$A$73:$G$75,3,TRUE)), (IF(2-$F$20=2, (VLOOKUP(2,Tablas!$A$73:$G$75,3,TRUE)), 0)))))), (IF($F$18=1,(IF(1-$F$20=0, 0, (IF(1-$F$20=1,(VLOOKUP(1,Tablas!$A$73:$G$75,3,TRUE)),0)))),0))))))))))))))))))) -> 3776 | H29: =IF($F$16=1, (IF($F$18=0, 0, (IF($F$20>$F$18, (VLOOKUP($F$18,Tablas!$A$73:$G$75,4,TRUE)), (IF($F$18>4,(IF($F$20=0, (VLOOKUP(3,Tablas!$A$73:$G$75,4,TRUE)), (IF($F$20=1, (VLOOKUP(3,Tablas!$A$73:$G$75,4,TRUE)), (IF($F$20=2, (VLOOKUP(3,Tablas!$A$73:$G$75,4,TRUE)), (VLOOKUP(3,Tablas!$A$73:$G$75,4,TRUE)))))))), (IF($F$18=4,(IF(4-$F$20=0,(VLOOKUP(2,Tablas!$A$73:$G$75,4,TRUE)), (IF(4-$F$20=1,(VLOOKUP(2,Tablas!$A$73:$G$75,4,TRUE)), (IF(4-$F$20=2, (VLOOKUP(2,Tablas!$A$73:$G$75,4,TRUE)), (VLOOKUP(3,Tablas!$A$73:$G$75,4,TRUE)))))))), (IF($F$18=3,(IF(3-$F$20=0,(VLOOKUP(1,Tablas!$A$73:$G$75,4,TRUE)), (IF(3-$F$20=1,(VLOOKUP(1,Tablas!$A$73:$G$75,4,TRUE)), (IF(3-$F$20=2, (VLOOKUP(2,Tablas!$A$73:$G$75,4,TRUE)), (VLOOKUP(3,Tablas!$A$73:$G$75,4,TRUE)))))))), (IF($F$18=2,(IF(2-$F$20=0, 0, (IF(2-$F$20=1,(VLOOKUP(1,Tablas!$A$73:$G$75,4,TRUE)), (IF(2-$F$20=2, (VLOOKUP(2,Tablas!$A$73:$G$75,4,TRUE)), 0)))))), (IF($F$18=1,(IF(1-$F$20=0, 0, (IF(1-$F$20=1,(VLOOKUP(1,Tablas!$A$73:$G$75,4,TRUE)),0)))),0)))))))))))))), (IF($F$18=0, 0, (IF($F$20>$F$18, (VLOOKUP($F$18,Tablas!$A$73:$G$75,4,TRUE)), (IF($F$18=4,(IF(4-$F$20=0, 0, (IF(4-$F$20=1, (VLOOKUP(1,Tablas!$A$73:$G$75,4,TRUE)), (IF(4-$F$20=2, (VLOOKUP(2,Tablas!$A$73:$G$75,4,TRUE)), (IF(4-$F$20=3, (VLOOKUP(3,Tablas!$A$73:$G$75,4,TRUE)), (IF(4-$F$20=4, (VLOOKUP(3,Tablas!$A$73:$G$75,4,TRUE)), 0)))))))))), (IF($F$18=5,(IF(5-$F$20=0, (VLOOKUP(1,Tablas!$A$73:$G$75,4,TRUE)), (IF(5-$F$20=1, (VLOOKUP(1,Tablas!$A$73:$G$75,4,TRUE)), (IF(5-$F$20=2, (VLOOKUP(2,Tablas!$A$73:$G$75,4,TRUE)), (IF(5-$F$20=3, (VLOOKUP(3,Tablas!$A$73:$G$75,4,TRUE)), (IF(5-$F$20=4, (VLOOKUP(3,Tablas!$A$73:$G$75,4,TRUE)), (VLOOKUP(3,Tablas!$A$73:$G$75,4,TRUE)))))))))))), (IF($F$18=6,(IF(6-$F$20=0, (VLOOKUP(2,Tablas!$A$73:$G$75,4,TRUE)), (IF(6-$F$20=1, (VLOOKUP(2,Tablas!$A$73:$G$75,4,TRUE)), (IF(6-$F$20=2, (VLOOKUP(2,Tablas!$A$73:$G$75,4,TRUE)), (IF(6-$F$20=3, (VLOOKUP(3,Tablas!$A$73:$G$75,4,TRUE)), (IF(6-$F$20=4, (VLOOKUP(3,Tablas!$A$73:$G$75,4,TRUE)), (VLOOKUP(3,Tablas!$A$73:$G$75,4,TRUE)))))))))))), (IF($F$18>6,(IF(7-$F$20=0, (VLOOKUP(3,Tablas!$A$73:$G$75,4,TRUE)), (IF(7-$F$20=1, (VLOOKUP(3,Tablas!$A$73:$G$75,4,TRUE)), (IF(7-$F$20=2, (VLOOKUP(3,Tablas!$A$73:$G$75,4,TRUE)), (IF(7-$F$20=3, (VLOOKUP(3,Tablas!$A$73:$G$75,4,TRUE)), (IF(7-$F$20=4, (VLOOKUP(3,Tablas!$A$73:$G$75,4,TRUE)), (VLOOKUP(3,Tablas!$A$73:$G$75,4,TRUE)))))))))))), (IF($F$18=3,(IF(3-$F$20=0,0, (IF(3-$F$20=1,(VLOOKUP(1,Tablas!$A$73:$G$75,4,TRUE)), (IF(3-$F$20=2, (VLOOKUP(2,Tablas!$A$73:$G$75,4,TRUE)), (VLOOKUP(3,Tablas!$A$73:$G$75,4,TRUE)))))))), (IF($F$18=2,(IF(2-$F$20=0, 0, (IF(2-$F$20=1,(VLOOKUP(1,Tablas!$A$73:$G$75,4,TRUE)), (IF(2-$F$20=2, (VLOOKUP(2,Tablas!$A$73:$G$75,4,TRUE)), 0)))))), (IF($F$18=1,(IF(1-$F$20=0, 0, (IF(1-$F$20=1,(VLOOKUP(1,Tablas!$A$73:$G$75,4,TRUE)),0)))),0))))))))))))))))))) -> 3308 | I29: =IF($F$16=1, (IF($F$18=0, 0, (IF($F$20>$F$18, (VLOOKUP($F$18,Tablas!$A$73:$G$75,5,TRUE)), (IF($F$18>4,(IF($F$20=0, (VLOOKUP(3,Tablas!$A$73:$G$75,5,TRUE)), (IF($F$20=1, (VLOOKUP(3,Tablas!$A$73:$G$75,5,TRUE)), (IF($F$20=2, (VLOOKUP(3,Tablas!$A$73:$G$75,5,TRUE)), (VLOOKUP(3,Tablas!$A$73:$G$75,5,TRUE)))))))), (IF($F$18=4,(IF(4-$F$20=0,(VLOOKUP(2,Tablas!$A$73:$G$75,5,TRUE)), (IF(4-$F$20=1,(VLOOKUP(2,Tablas!$A$73:$G$75,5,TRUE)), (IF(4-$F$20=2, (VLOOKUP(2,Tablas!$A$73:$G$75,5,TRUE)), (VLOOKUP(3,Tablas!$A$73:$G$75,5,TRUE)))))))), (IF($F$18=3,(IF(3-$F$20=0,(VLOOKUP(1,Tablas!$A$73:$G$75,5,TRUE)), (IF(3-$F$20=1,(VLOOKUP(1,Tablas!$A$73:$G$75,5,TRUE)), (IF(3-$F$20=2, (VLOOKUP(2,Tablas!$A$73:$G$75,5,TRUE)), (VLOOKUP(3,Tablas!$A$73:$G$75,5,TRUE)))))))), (IF($F$18=2,(IF(2-$F$20=0, 0, (IF(2-$F$20=1,(VLOOKUP(1,Tablas!$A$73:$G$75,5,TRUE)), (IF(2-$F$20=2, (VLOOKUP(2,Tablas!$A$73:$G$75,5,TRUE)), 0)))))), (IF($F$18=1,(IF(1-$F$20=0, 0, (IF(1-$F$20=1,(VLOOKUP(1,Tablas!$A$73:$G$75,5,TRUE)),0)))),0)))))))))))))), (IF($F$18=0, 0, (IF($F$20>$F$18, (VLOOKUP($F$18,Tablas!$A$73:$G$75,5,TRUE)), (IF($F$18=4,(IF(4-$F$20=0, 0, (IF(4-$F$20=1, (VLOOKUP(1,Tablas!$A$73:$G$75,5,TRUE)), (IF(4-$F$20=2, (VLOOKUP(2,Tablas!$A$73:$G$75,5,TRUE)), (IF(4-$F$20=3, (VLOOKUP(3,Tablas!$A$73:$G$75,5,TRUE)), (IF(4-$F$20=4, (VLOOKUP(3,Tablas!$A$73:$G$75,5,TRUE)), 0)))))))))), (IF($F$18=5,(IF(5-$F$20=0, (VLOOKUP(1,Tablas!$A$73:$G$75,5,TRUE)), (IF(5-$F$20=1, (VLOOKUP(1,Tablas!$A$73:$G$75,5,TRUE)), (IF(5-$F$20=2, (VLOOKUP(2,Tablas!$A$73:$G$75,5,TRUE)), (IF(5-$F$20=3, (VLOOKUP(3,Tablas!$A$73:$G$75,5,TRUE)), (IF(5-$F$20=4, (VLOOKUP(3,Tablas!$A$73:$G$75,5,TRUE)), (VLOOKUP(3,Tablas!$A$73:$G$75,5,TRUE)))))))))))), (IF($F$18=6,(IF(6-$F$20=0, (VLOOKUP(2,Tablas!$A$73:$G$75,5,TRUE)), (IF(6-$F$20=1, (VLOOKUP(2,Tablas!$A$73:$G$75,5,TRUE)), (IF(6-$F$20=2, (VLOOKUP(2,Tablas!$A$73:$G$75,5,TRUE)), (IF(6-$F$20=3, (VLOOKUP(3,Tablas!$A$73:$G$75,5,TRUE)), (IF(6-$F$20=4, (VLOOKUP(3,Tablas!$A$73:$G$75,5,TRUE)), (VLOOKUP(3,Tablas!$A$73:$G$75,5,TRUE)))))))))))), (IF($F$18>6,(IF(7-$F$20=0, (VLOOKUP(3,Tablas!$A$73:$G$75,5,TRUE)), (IF(7-$F$20=1, (VLOOKUP(3,Tablas!$A$73:$G$75,5,TRUE)), (IF(7-$F$20=2, (VLOOKUP(3,Tablas!$A$73:$G$75,5,TRUE)), (IF(7-$F$20=3, (VLOOKUP(3,Tablas!$A$73:$G$75,5,TRUE)), (IF(7-$F$20=4, (VLOOKUP(3,Tablas!$A$73:$G$75,5,TRUE)), (VLOOKUP(3,Tablas!$A$73:$G$75,5,TRUE)))))))))))), (IF($F$18=3,(IF(3-$F$20=0,0, (IF(3-$F$20=1,(VLOOKUP(1,Tablas!$A$73:$G$75,5,TRUE)), (IF(3-$F$20=2, (VLOOKUP(2,Tablas!$A$73:$G$75,5,TRUE)), (VLOOKUP(3,Tablas!$A$73:$G$75,5,TRUE)))))))), (IF($F$18=2,(IF(2-$F$20=0, 0, (IF(2-$F$20=1,(VLOOKUP(1,Tablas!$A$73:$G$75,5,TRUE)), (IF(2-$F$20=2, (VLOOKUP(2,Tablas!$A$73:$G$75,5,TRUE)), 0)))))), (IF($F$18=1,(IF(1-$F$20=0, 0, (IF(1-$F$20=1,(VLOOKUP(1,Tablas!$A$73:$G$75,5,TRUE)),0)))),0))))))))))))))))))) -> 2732 | J29: =IF($F$16=1, (IF($F$18=0, 0, (IF($F$20>$F$18, (VLOOKUP($F$18,Tablas!$A$73:$G$75,6,TRUE)), (IF($F$18>4,(IF($F$20=0, (VLOOKUP(3,Tablas!$A$73:$G$75,6,TRUE)), (IF($F$20=1, (VLOOKUP(3,Tablas!$A$73:$G$75,6,TRUE)), (IF($F$20=2, (VLOOKUP(3,Tablas!$A$73:$G$75,6,TRUE)), (VLOOKUP(3,Tablas!$A$73:$G$75,6,TRUE)))))))), (IF($F$18=4,(IF(4-$F$20=0,(VLOOKUP(2,Tablas!$A$73:$G$75,6,TRUE)), (IF(4-$F$20=1,(VLOOKUP(2,Tablas!$A$73:$G$75,6,TRUE)), (IF(4-$F$20=2, (VLOOKUP(2,Tablas!$A$73:$G$75,6,TRUE)), (VLOOKUP(3,Tablas!$A$73:$G$75,6,TRUE)))))))), (IF($F$18=3,(IF(3-$F$20=0,(VLOOKUP(1,Tablas!$A$73:$G$75,6,TRUE)), (IF(3-$F$20=1,(VLOOKUP(1,Tablas!$A$73:$G$75,6,TRUE)), (IF(3-$F$20=2, (VLOOKUP(2,Tablas!$A$73:$G$75,6,TRUE)), (VLOOKUP(3,Tablas!$A$73:$G$75,6,TRUE)))))))), (IF($F$18=2,(IF(2-$F$20=0, 0, (IF(2-$F$20=1,(VLOOKUP(1,Tablas!$A$73:$G$75,6,TRUE)), (IF(2-$F$20=2, (VLOOKUP(2,Tablas!$A$73:$G$75,6,TRUE)), 0)))))), (IF($F$18=1,(IF(1-$F$20=0, 0, (IF(1-$F$20=1,(VLOOKUP(1,Tablas!$A$73:$G$75,6,TRUE)),0)))),0)))))))))))))), (IF($F$18=0, 0, (IF($F$20>$F$18, (VLOOKUP($F$18,Tablas!$A$73:$G$75,6,TRUE)), (IF($F$18=4,(IF(4-$F$20=0, 0, (IF(4-$F$20=1, (VLOOKUP(1,Tablas!$A$73:$G$75,6,TRUE)), (IF(4-$F$20=2, (VLOOKUP(2,Tablas!$A$73:$G$75,6,TRUE)), (IF(4-$F$20=3, (VLOOKUP(3,Tablas!$A$73:$G$75,6,TRUE)), (IF(4-$F$20=4, (VLOOKUP(3,Tablas!$A$73:$G$75,6,TRUE)), 0)))))))))), (IF($F$18=5,(IF(5-$F$20=0, (VLOOKUP(1,Tablas!$A$73:$G$75,6,TRUE)), (IF(5-$F$20=1, (VLOOKUP(1,Tablas!$A$73:$G$75,6,TRUE)), (IF(5-$F$20=2, (VLOOKUP(2,Tablas!$A$73:$G$75,6,TRUE)), (IF(5-$F$20=3, (VLOOKUP(3,Tablas!$A$73:$G$75,6,TRUE)), (IF(5-$F$20=4, (VLOOKUP(3,Tablas!$A$73:$G$75,6,TRUE)), (VLOOKUP(3,Tablas!$A$73:$G$75,6,TRUE)))))))))))), (IF($F$18=6,(IF(6-$F$20=0, (VLOOKUP(2,Tablas!$A$73:$G$75,6,TRUE)), (IF(6-$F$20=1, (VLOOKUP(2,Tablas!$A$73:$G$75,6,TRUE)), (IF(6-$F$20=2, (VLOOKUP(2,Tablas!$A$73:$G$75,6,TRUE)), (IF(6-$F$20=3, (VLOOKUP(3,Tablas!$A$73:$G$75,6,TRUE)), (IF(6-$F$20=4, (VLOOKUP(3,Tablas!$A$73:$G$75,6,TRUE)), (VLOOKUP(3,Tablas!$A$73:$G$75,6,TRUE)))))))))))), (IF($F$18>6,(IF(7-$F$20=0, (VLOOKUP(3,Tablas!$A$73:$G$75,6,TRUE)), (IF(7-$F$20=1, (VLOOKUP(3,Tablas!$A$73:$G$75,6,TRUE)), (IF(7-$F$20=2, (VLOOKUP(3,Tablas!$A$73:$G$75,6,TRUE)), (IF(7-$F$20=3, (VLOOKUP(3,Tablas!$A$73:$G$75,6,TRUE)), (IF(7-$F$20=4, (VLOOKUP(3,Tablas!$A$73:$G$75,6,TRUE)), (VLOOKUP(3,Tablas!$A$73:$G$75,6,TRUE)))))))))))), (IF($F$18=3,(IF(3-$F$20=0,0, (IF(3-$F$20=1,(VLOOKUP(1,Tablas!$A$73:$G$75,6,TRUE)), (IF(3-$F$20=2, (VLOOKUP(2,Tablas!$A$73:$G$75,6,TRUE)), (VLOOKUP(3,Tablas!$A$73:$G$75,6,TRUE)))))))), (IF($F$18=2,(IF(2-$F$20=0, 0, (IF(2-$F$20=1,(VLOOKUP(1,Tablas!$A$73:$G$75,6,TRUE)), (IF(2-$F$20=2, (VLOOKUP(2,Tablas!$A$73:$G$75,6,TRUE)), 0)))))), (IF($F$18=1,(IF(1-$F$20=0, 0, (IF(1-$F$20=1,(VLOOKUP(1,Tablas!$A$73:$G$75,6,TRUE)),0)))),0))))))))))))))))))) -> 2371 | K29: =IF($F$16=1, (IF($F$18=0, 0, (IF($F$20>$F$18, (VLOOKUP($F$18,Tablas!$A$73:$G$75,7,TRUE)), (IF($F$18>4,(IF($F$20=0, (VLOOKUP(3,Tablas!$A$73:$G$75,7,TRUE)), (IF($F$20=1, (VLOOKUP(3,Tablas!$A$73:$G$75,7,TRUE)), (IF($F$20=2, (VLOOKUP(3,Tablas!$A$73:$G$75,7,TRUE)), (VLOOKUP(3,Tablas!$A$73:$G$75,7,TRUE)))))))), (IF($F$18=4,(IF(4-$F$20=0,(VLOOKUP(2,Tablas!$A$73:$G$75,7,TRUE)), (IF(4-$F$20=1,(VLOOKUP(2,Tablas!$A$73:$G$75,7,TRUE)), (IF(4-$F$20=2, (VLOOKUP(2,Tablas!$A$73:$G$75,7,TRUE)), (VLOOKUP(3,Tablas!$A$73:$G$75,7,TRUE)))))))), (IF($F$18=3,(IF(3-$F$20=0,(VLOOKUP(1,Tablas!$A$73:$G$75,7,TRUE)), (IF(3-$F$20=1,(VLOOKUP(1,Tablas!$A$73:$G$75,7,TRUE)), (IF(3-$F$20=2, (VLOOKUP(2,Tablas!$A$73:$G$75,7,TRUE)), (VLOOKUP(3,Tablas!$A$73:$G$75,7,TRUE)))))))), (IF($F$18=2,(IF(2-$F$20=0, 0, (IF(2-$F$20=1,(VLOOKUP(1,Tablas!$A$73:$G$75,7,TRUE)), (IF(2-$F$20=2, (VLOOKUP(2,Tablas!$A$73:$G$75,7,TRUE)), 0)))))), (IF($F$18=1,(IF(1-$F$20=0, 0, (IF(1-$F$20=1,(VLOOKUP(1,Tablas!$A$73:$G$75,7,TRUE)),0)))),0)))))))))))))), (IF($F$18=0, 0, (IF($F$20>$F$18, (VLOOKUP($F$18,Tablas!$A$73:$G$75,7,TRUE)), (IF($F$18=4,(IF(4-$F$20=0, 0, (IF(4-$F$20=1, (VLOOKUP(1,Tablas!$A$73:$G$75,7,TRUE)), (IF(4-$F$20=2, (VLOOKUP(2,Tablas!$A$73:$G$75,7,TRUE)), (IF(4-$F$20=3, (VLOOKUP(3,Tablas!$A$73:$G$75,7,TRUE)), (IF(4-$F$20=4, (VLOOKUP(3,Tablas!$A$73:$G$75,7,TRUE)), 0)))))))))), (IF($F$18=5,(IF(5-$F$20=0, (VLOOKUP(1,Tablas!$A$73:$G$75,7,TRUE)), (IF(5-$F$20=1, (VLOOKUP(1,Tablas!$A$73:$G$75,7,TRUE)), (IF(5-$F$20=2, (VLOOKUP(2,Tablas!$A$73:$G$75,7,TRUE)), (IF(5-$F$20=3, (VLOOKUP(3,Tablas!$A$73:$G$75,7,TRUE)), (IF(5-$F$20=4, (VLOOKUP(3,Tablas!$A$73:$G$75,7,TRUE)), (VLOOKUP(3,Tablas!$A$73:$G$75,7,TRUE)))))))))))), (IF($F$18=6,(IF(6-$F$20=0, (VLOOKUP(2,Tablas!$A$73:$G$75,7,TRUE)), (IF(6-$F$20=1, (VLOOKUP(2,Tablas!$A$73:$G$75,7,TRUE)), (IF(6-$F$20=2, (VLOOKUP(2,Tablas!$A$73:$G$75,7,TRUE)), (IF(6-$F$20=3, (VLOOKUP(3,Tablas!$A$73:$G$75,7,TRUE)), (IF(6-$F$20=4, (VLOOKUP(3,Tablas!$A$73:$G$75,7,TRUE)), (VLOOKUP(3,Tablas!$A$73:$G$75,7,TRUE)))))))))))), (IF($F$18>6,(IF(7-$F$20=0, (VLOOKUP(3,Tablas!$A$73:$G$75,7,TRUE)), (IF(7-$F$20=1, (VLOOKUP(3,Tablas!$A$73:$G$75,7,TRUE)), (IF(7-$F$20=2, (VLOOKUP(3,Tablas!$A$73:$G$75,7,TRUE)), (IF(7-$F$20=3, (VLOOKUP(3,Tablas!$A$73:$G$75,7,TRUE)), (IF(7-$F$20=4, (VLOOKUP(3,Tablas!$A$73:$G$75,7,TRUE)), (VLOOKUP(3,Tablas!$A$73:$G$75,7,TRUE)))))))))))), (IF($F$18=3,(IF(3-$F$20=0,0, (IF(3-$F$20=1,(VLOOKUP(1,Tablas!$A$73:$G$75,7,TRUE)), (IF(3-$F$20=2, (VLOOKUP(2,Tablas!$A$73:$G$75,7,TRUE)), (VLOOKUP(3,Tablas!$A$73:$G$75,7,TRUE)))))))), (IF($F$18=2,(IF(2-$F$20=0, 0, (IF(2-$F$20=1,(VLOOKUP(1,Tablas!$A$73:$G$75,7,TRUE)), (IF(2-$F$20=2, (VLOOKUP(2,Tablas!$A$73:$G$75,7,TRUE)), 0)))))), (IF($F$18=1,(IF(1-$F$20=0, 0, (IF(1-$F$20=1,(VLOOKUP(1,Tablas!$A$73:$G$75,7,TRUE)),0)))),0))))))))))))))))))) -> 1791
E30: Total de Prima neta | G30: =SUM(G27:G29) -> 17036 | H30: =SUM(H27:H29) -> 14928 | I30: 12039 | J30: =SUM(J27:J29) -> 10442 | K30: 7889
E31: Tarifa administrativa anual | G31: 75 | H31: 75 | I31: 75 | J31: 75 | K31: 75
E32: IVA (12%) | G32: =(G30+G31)*12% -> 2053.32 | H32: =(H30+H31)*12% -> 1800.36 | I32: 1453.68 | J32: =(J30+J31)*12% -> 1262.04 | K32: 955.68
E33: TOTAL ANUAL | G33: =SUM(G30:G32) -> 19164.32 | H33: =SUM(H30:H32) -> 16803.36 | I33: =SUM(I30:I32) -> 13567.68 | J33: =SUM(J30:J32) -> 11779.04 | K33: =SUM(K30:K32) -> 8919.68
E34: Ahorros en tarifas de prima para niños | G34: =IF($F$16=1,IF($F$18=0,0,IF($F$20=0,0,IF($F$20=1,(VLOOKUP(1,Tablas!$A$73:$G$75,3,TRUE)),(VLOOKUP(2,Tablas!$A$73:$G$75,3,TRUE))))), IF($F$18=0,0,IF($F$20=0,0,IF($F$20=1,(VLOOKUP(1,Tablas!$A$73:$G$75,3,TRUE)),IF($F$20=2,(VLOOKUP(2,Tablas!$A$73:$G$75,3,TRUE)), (VLOOKUP(3,Tablas!$A$73:$G$75,3,TRUE))))))) -> 6418 | H34: =IF($F$16=1,IF($F$18=0,0,IF($F$20=0,0,IF($F$20=1,(VLOOKUP(1,Tablas!$A$73:$G$75,4,TRUE)),(VLOOKUP(2,Tablas!$A$73:$G$75,4,TRUE))))), IF($F$18=0,0,IF($F$20=0,0,IF($F$20=1,(VLOOKUP(1,Tablas!$A$73:$G$75,4,TRUE)),IF($F$20=2,(VLOOKUP(2,Tablas!$A$73:$G$75,4,TRUE)), (VLOOKUP(3,Tablas!$A$73:$G$75,4,TRUE))))))) -> 5626 | I34: =IF($F$16=1,IF($F$18=0,0,IF($F$20=0,0,IF($F$20=1,(VLOOKUP(1,Tablas!$A$73:$G$75,5,TRUE)),(VLOOKUP(2,Tablas!$A$73:$G$75,5,TRUE))))), IF($F$18=0,0,IF($F$20=0,0,IF($F$20=1,(VLOOKUP(1,Tablas!$A$73:$G$75,5,TRUE)),IF($F$20=2,(VLOOKUP(2,Tablas!$A$73:$G$75,5,TRUE)), (VLOOKUP(3,Tablas!$A$73:$G$75,5,TRUE))))))) -> 4644 | J34: =IF($F$16=1,IF($F$18=0,0,IF($F$20=0,0,IF($F$20=1,(VLOOKUP(1,Tablas!$A$73:$G$75,6,TRUE)),(VLOOKUP(2,Tablas!$A$73:$G$75,6,TRUE))))), IF($F$18=0,0,IF($F$20=0,0,IF($F$20=1,(VLOOKUP(1,Tablas!$A$73:$G$75,6,TRUE)),IF($F$20=2,(VLOOKUP(2,Tablas!$A$73:$G$75,6,TRUE)), (VLOOKUP(3,Tablas!$A$73:$G$75,6,TRUE))))))) -> 4028 | K34: =IF($F$16=1,IF($F$18=0,0,IF($F$20=0,0,IF($F$20=1,(VLOOKUP(1,Tablas!$A$73:$G$75,7,TRUE)),(VLOOKUP(2,Tablas!$A$73:$G$75,7,TRUE))))), IF($F$18=0,0,IF($F$20=0,0,IF($F$20=1,(VLOOKUP(1,Tablas!$A$73:$G$75,7,TRUE)),IF($F$20=2,(VLOOKUP(2,Tablas!$A$73:$G$75,7,TRUE)), (VLOOKUP(3,Tablas!$A$73:$G$75,7,TRUE))))))) -> 3044
E36: Tarifas semi anuales
E37: Prima para Asegurado Titular | G37: =VLOOKUP($I$16,Tablas!$A$455:$G$521,3,TRUE) -> 7027.8 | H37: =VLOOKUP($I$16,Tablas!$A$455:$G$521,4,TRUE) -> 6158.6 | I37: =VLOOKUP($I$16,Tablas!$A$455:$G$521,5,TRUE) -> 4932.71 | J37: =VLOOKUP($I$16,Tablas!$A$455:$G$521,6,TRUE) -> 4277.63 | K37: =VLOOKUP($I$16,Tablas!$A$455:$G$521,7,TRUE) -> 3231.94
E38: Prima para conyuge | G38: =IF($F$16=1,0,(VLOOKUP($I$18,Tablas!$A$455:$G$521,3,TRUE))) -> 0 | H38: =IF($F$16=1,0,(VLOOKUP($I$18,Tablas!$A$455:$G$521,4,TRUE))) -> 0 | I38: =IF($F$16=1,0,(VLOOKUP($I$18,Tablas!$A$455:$G$521,5,TRUE))) -> 0 | J38: =IF($F$16=1,0,(VLOOKUP($I$18,Tablas!$A$455:$G$521,6,TRUE))) -> 0 | K38: =IF($F$16=1,0,(VLOOKUP($I$18,Tablas!$A$455:$G$521,7,TRUE))) -> 0
E39: Prima para hijo (s) | G39: =IF($F$16=1, (IF($F$18=0, 0, (IF($F$20>$F$18, (VLOOKUP($F$18,Tablas!$A$522:$G$524,3,TRUE)), (IF($F$18>4,(IF($F$20=0, (VLOOKUP(3,Tablas!$A$522:$G$524,3,TRUE)), (IF($F$20=1, (VLOOKUP(3,Tablas!$A$522:$G$524,3,TRUE)), (IF($F$20=2, (VLOOKUP(3,Tablas!$A$522:$G$524,3,TRUE)), (VLOOKUP(3,Tablas!$A$522:$G$524,3,TRUE)))))))), (IF($F$18=4,(IF(4-$F$20=0,(VLOOKUP(2,Tablas!$A$522:$G$524,3,TRUE)), (IF(4-$F$20=1,(VLOOKUP(2,Tablas!$A$522:$G$524,3,TRUE)), (IF(4-$F$20=2, (VLOOKUP(2,Tablas!$A$522:$G$524,3,TRUE)), (VLOOKUP(3,Tablas!$A$522:$G$524,3,TRUE)))))))), (IF($F$18=3,(IF(3-$F$20=0,(VLOOKUP(1,Tablas!$A$522:$G$524,3,TRUE)), (IF(3-$F$20=1,(VLOOKUP(1,Tablas!$A$522:$G$524,3,TRUE)), (IF(3-$F$20=2, (VLOOKUP(2,Tablas!$A$522:$G$524,3,TRUE)), (VLOOKUP(3,Tablas!$A$522:$G$524,3,TRUE)))))))), (IF($F$18=2,(IF(2-$F$20=0, 0, (IF(2-$F$20=1,(VLOOKUP(1,Tablas!$A$522:$G$524,3,TRUE)), (IF(2-$F$20=2, (VLOOKUP(2,Tablas!$A$522:$G$524,3,TRUE)), 0)))))), (IF($F$18=1,(IF(1-$F$20=0, 0, (IF(1-$F$20=1,(VLOOKUP(1,Tablas!$A$522:$G$524,3,TRUE)),0)))),0)))))))))))))), (IF($F$18=0, 0, (IF($F$20>$F$18, (VLOOKUP($F$18,Tablas!$A$522:$G$524,3,TRUE)), (IF($F$18=4,(IF(4-$F$20=0, 0, (IF(4-$F$20=1, (VLOOKUP(1,Tablas!$A$522:$G$524,3,TRUE)), (IF(4-$F$20=2, (VLOOKUP(2,Tablas!$A$522:$G$524,3,TRUE)), (IF(4-$F$20=3, (VLOOKUP(3,Tablas!$A$522:$G$524,3,TRUE)), (IF(4-$F$20=4, (VLOOKUP(3,Tablas!$A$522:$G$524,3,TRUE)), 0)))))))))), (IF($F$18=5,(IF(5-$F$20=0, (VLOOKUP(1,Tablas!$A$522:$G$524,3,TRUE)), (IF(5-$F$20=1, (VLOOKUP(1,Tablas!$A$522:$G$524,3,TRUE)), (IF(5-$F$20=2, (VLOOKUP(2,Tablas!$A$522:$G$524,3,TRUE)), (IF(5-$F$20=3, (VLOOKUP(3,Tablas!$A$522:$G$524,3,TRUE)), (IF(5-$F$20=4, (VLOOKUP(3,Tablas!$A$522:$G$524,3,TRUE)), (VLOOKUP(3,Tablas!$A$522:$G$524,3,TRUE)))))))))))), (IF($F$18=6,(IF(6-$F$20=0, (VLOOKUP(2,Tablas!$A$522:$G$524,3,TRUE)), (IF(6-$F$20=1, (VLOOKUP(2,Tablas!$A$522:$G$524,3,TRUE)), (IF(6-$F$20=2, (VLOOKUP(2,Tablas!$A$522:$G$524,3,TRUE)), (IF(6-$F$20=3, (VLOOKUP(3,Tablas!$A$522:$G$524,3,TRUE)), (IF(6-$F$20=4, (VLOOKUP(3,Tablas!$A$522:$G$524,3,TRUE)), (VLOOKUP(3,Tablas!$A$522:$G$524,3,TRUE)))))))))))), (IF($F$18>6,(IF(7-$F$20=0, (VLOOKUP(3,Tablas!$A$522:$G$524,3,TRUE)), (IF(7-$F$20=1, (VLOOKUP(3,Tablas!$A$522:$G$524,3,TRUE)), (IF(7-$F$20=2, (VLOOKUP(3,Tablas!$A$522:$G$524,3,TRUE)), (IF(7-$F$20=3, (VLOOKUP(3,Tablas!$A$522:$G$524,3,TRUE)), (IF(7-$F$20=4, (VLOOKUP(3,Tablas!$A$522:$G$524,3,TRUE)), (VLOOKUP(3,Tablas!$A$522:$G$524,3,TRUE)))))))))))), (IF($F$18=3,(IF(3-$F$20=0,0, (IF(3-$F$20=1,(VLOOKUP(1,Tablas!$A$522:$G$524,3,TRUE)), (IF(3-$F$20=2, (VLOOKUP(2,Tablas!$A$522:$G$524,3,TRUE)), (VLOOKUP(3,Tablas!$A$522:$G$524,3,TRUE)))))))), (IF($F$18=2,(IF(2-$F$20=0, 0, (IF(2-$F$20=1,(VLOOKUP(1,Tablas!$A$522:$G$524,3,TRUE)), (IF(2-$F$20=2, (VLOOKUP(2,Tablas!$A$522:$G$524,3,TRUE)), 0)))))), (IF($F$18=1,(IF(1-$F$20=0, 0, (IF(1-$F$20=1,(VLOOKUP(1,Tablas!$A$522:$G$524,3,TRUE)),0)))),0))))))))))))))))))) -> 2001.28 | H39: =IF($F$16=1, (IF($F$18=0, 0, (IF($F$20>$F$18, (VLOOKUP($F$18,Tablas!$A$522:$G$524,4,TRUE)), (IF($F$18>4,(IF($F$20=0, (VLOOKUP(3,Tablas!$A$522:$G$524,4,TRUE)), (IF($F$20=1, (VLOOKUP(3,Tablas!$A$522:$G$524,4,TRUE)), (IF($F$20=2, (VLOOKUP(3,Tablas!$A$522:$G$524,4,TRUE)), (VLOOKUP(3,Tablas!$A$522:$G$524,4,TRUE)))))))), (IF($F$18=4,(IF(4-$F$20=0,(VLOOKUP(2,Tablas!$A$522:$G$524,4,TRUE)), (IF(4-$F$20=1,(VLOOKUP(2,Tablas!$A$522:$G$524,4,TRUE)), (IF(4-$F$20=2, (VLOOKUP(2,Tablas!$A$522:$G$524,4,TRUE)), (VLOOKUP(3,Tablas!$A$522:$G$524,4,TRUE)))))))), (IF($F$18=3,(IF(3-$F$20=0,(VLOOKUP(1,Tablas!$A$522:$G$524,4,TRUE)), (IF(3-$F$20=1,(VLOOKUP(1,Tablas!$A$522:$G$524,4,TRUE)), (IF(3-$F$20=2, (VLOOKUP(2,Tablas!$A$522:$G$524,4,TRUE)), (VLOOKUP(3,Tablas!$A$522:$G$524,4,TRUE)))))))), (IF($F$18=2,(IF(2-$F$20=0, 0, (IF(2-$F$20=1,(VLOOKUP(1,Tablas!$A$522:$G$524,4,TRUE)), (IF(2-$F$20=2, (VLOOKUP(2,Tablas!$A$522:$G$524,4,TRUE)), 0)))))), (IF($F$18=1,(IF(1-$F$20=0, 0, (IF(1-$F$20=1,(VLOOKUP(1,Tablas!$A$522:$G$524,4,TRUE)),0)))),0)))))))))))))), (IF($F$18=0, 0, (IF($F$20>$F$18, (VLOOKUP($F$18,Tablas!$A$522:$G$524,4,TRUE)), (IF($F$18=4,(IF(4-$F$20=0, 0, (IF(4-$F$20=1, (VLOOKUP(1,Tablas!$A$522:$G$524,4,TRUE)), (IF(4-$F$20=2, (VLOOKUP(2,Tablas!$A$522:$G$524,4,TRUE)), (IF(4-$F$20=3, (VLOOKUP(3,Tablas!$A$522:$G$524,4,TRUE)), (IF(4-$F$20=4, (VLOOKUP(3,Tablas!$A$522:$G$524,4,TRUE)), 0)))))))))), (IF($F$18=5,(IF(5-$F$20=0, (VLOOKUP(1,Tablas!$A$522:$G$524,4,TRUE)), (IF(5-$F$20=1, (VLOOKUP(1,Tablas!$A$522:$G$524,4,TRUE)), (IF(5-$F$20=2, (VLOOKUP(2,Tablas!$A$522:$G$524,4,TRUE)), (IF(5-$F$20=3, (VLOOKUP(3,Tablas!$A$522:$G$524,4,TRUE)), (IF(5-$F$20=4, (VLOOKUP(3,Tablas!$A$522:$G$524,4,TRUE)), (VLOOKUP(3,Tablas!$A$522:$G$524,4,TRUE)))))))))))), (IF($F$18=6,(IF(6-$F$20=0, (VLOOKUP(2,Tablas!$A$522:$G$524,4,TRUE)), (IF(6-$F$20=1, (VLOOKUP(2,Tablas!$A$522:$G$524,4,TRUE)), (IF(6-$F$20=2, (VLOOKUP(2,Tablas!$A$522:$G$524,4,TRUE)), (IF(6-$F$20=3, (VLOOKUP(3,Tablas!$A$522:$G$524,4,TRUE)), (IF(6-$F$20=4, (VLOOKUP(3,Tablas!$A$522:$G$524,4,TRUE)), (VLOOKUP(3,Tablas!$A$522:$G$524,4,TRUE)))))))))))), (IF($F$18>6,(IF(7-$F$20=0, (VLOOKUP(3,Tablas!$A$522:$G$524,4,TRUE)), (IF(7-$F$20=1, (VLOOKUP(3,Tablas!$A$522:$G$524,4,TRUE)), (IF(7-$F$20=2, (VLOOKUP(3,Tablas!$A$522:$G$524,4,TRUE)), (IF(7-$F$20=3, (VLOOKUP(3,Tablas!$A$522:$G$524,4,TRUE)), (IF(7-$F$20=4, (VLOOKUP(3,Tablas!$A$522:$G$524,4,TRUE)), (VLOOKUP(3,Tablas!$A$522:$G$524,4,TRUE)))))))))))), (IF($F$18=3,(IF(3-$F$20=0,0, (IF(3-$F$20=1,(VLOOKUP(1,Tablas!$A$522:$G$524,4,TRUE)), (IF(3-$F$20=2, (VLOOKUP(2,Tablas!$A$522:$G$524,4,TRUE)), (VLOOKUP(3,Tablas!$A$522:$G$524,4,TRUE)))))))), (IF($F$18=2,(IF(2-$F$20=0, 0, (IF(2-$F$20=1,(VLOOKUP(1,Tablas!$A$522:$G$524,4,TRUE)), (IF(2-$F$20=2, (VLOOKUP(2,Tablas!$A$522:$G$524,4,TRUE)), 0)))))), (IF($F$18=1,(IF(1-$F$20=0, 0, (IF(1-$F$20=1,(VLOOKUP(1,Tablas!$A$522:$G$524,4,TRUE)),0)))),0))))))))))))))))))) -> 1753.24 | I39: =IF($F$16=1, (IF($F$18=0, 0, (IF($F$20>$F$18, (VLOOKUP($F$18,Tablas!$A$522:$G$524,5,TRUE)), (IF($F$18>4,(IF($F$20=0, (VLOOKUP(3,Tablas!$A$522:$G$524,5,TRUE)), (IF($F$20=1, (VLOOKUP(3,Tablas!$A$522:$G$524,5,TRUE)), (IF($F$20=2, (VLOOKUP(3,Tablas!$A$522:$G$524,5,TRUE)), (VLOOKUP(3,Tablas!$A$522:$G$524,5,TRUE)))))))), (IF($F$18=4,(IF(4-$F$20=0,(VLOOKUP(2,Tablas!$A$522:$G$524,5,TRUE)), (IF(4-$F$20=1,(VLOOKUP(2,Tablas!$A$522:$G$524,5,TRUE)), (IF(4-$F$20=2, (VLOOKUP(2,Tablas!$A$522:$G$524,5,TRUE)), (VLOOKUP(3,Tablas!$A$522:$G$524,5,TRUE)))))))), (IF($F$18=3,(IF(3-$F$20=0,(VLOOKUP(1,Tablas!$A$522:$G$524,5,TRUE)), (IF(3-$F$20=1,(VLOOKUP(1,Tablas!$A$522:$G$524,5,TRUE)), (IF(3-$F$20=2, (VLOOKUP(2,Tablas!$A$522:$G$524,5,TRUE)), (VLOOKUP(3,Tablas!$A$522:$G$524,5,TRUE)))))))), (IF($F$18=2,(IF(2-$F$20=0, 0, (IF(2-$F$20=1,(VLOOKUP(1,Tablas!$A$522:$G$524,5,TRUE)), (IF(2-$F$20=2, (VLOOKUP(2,Tablas!$A$522:$G$524,5,TRUE)), 0)))))), (IF($F$18=1,(IF(1-$F$20=0, 0, (IF(1-$F$20=1,(VLOOKUP(1,Tablas!$A$522:$G$524,5,TRUE)),0)))),0)))))))))))))), (IF($F$18=0, 0, (IF($F$20>$F$18, (VLOOKUP($F$18,Tablas!$A$522:$G$524,5,TRUE)), (IF($F$18=4,(IF(4-$F$20=0, 0, (IF(4-$F$20=1, (VLOOKUP(1,Tablas!$A$522:$G$524,5,TRUE)), (IF(4-$F$20=2, (VLOOKUP(2,Tablas!$A$522:$G$524,5,TRUE)), (IF(4-$F$20=3, (VLOOKUP(3,Tablas!$A$522:$G$524,5,TRUE)), (IF(4-$F$20=4, (VLOOKUP(3,Tablas!$A$522:$G$524,5,TRUE)), 0)))))))))), (IF($F$18=5,(IF(5-$F$20=0, (VLOOKUP(1,Tablas!$A$522:$G$524,5,TRUE)), (IF(5-$F$20=1, (VLOOKUP(1,Tablas!$A$522:$G$524,5,TRUE)), (IF(5-$F$20=2, (VLOOKUP(2,Tablas!$A$522:$G$524,5,TRUE)), (IF(5-$F$20=3, (VLOOKUP(3,Tablas!$A$522:$G$524,5,TRUE)), (IF(5-$F$20=4, (VLOOKUP(3,Tablas!$A$522:$G$524,5,TRUE)), (VLOOKUP(3,Tablas!$A$522:$G$524,5,TRUE)))))))))))), (IF($F$18=6,(IF(6-$F$20=0, (VLOOKUP(2,Tablas!$A$522:$G$524,5,TRUE)), (IF(6-$F$20=1, (VLOOKUP(2,Tablas!$A$522:$G$524,5,TRUE)), (IF(6-$F$20=2, (VLOOKUP(2,Tablas!$A$522:$G$524,5,TRUE)), (IF(6-$F$20=3, (VLOOKUP(3,Tablas!$A$522:$G$524,5,TRUE)), (IF(6-$F$20=4, (VLOOKUP(3,Tablas!$A$522:$G$524,5,TRUE)), (VLOOKUP(3,Tablas!$A$522:$G$524,5,TRUE)))))))))))), (IF($F$18>6,(IF(7-$F$20=0, (VLOOKUP(3,Tablas!$A$522:$G$524,5,TRUE)), (IF(7-$F$20=1, (VLOOKUP(3,Tablas!$A$522:$G$524,5,TRUE)), (IF(7-$F$20=2, (VLOOKUP(3,Tablas!$A$522:$G$524,5,TRUE)), (IF(7-$F$20=3, (VLOOKUP(3,Tablas!$A$522:$G$524,5,TRUE)), (IF(7-$F$20=4, (VLOOKUP(3,Tablas!$A$522:$G$524,5,TRUE)), (VLOOKUP(3,Tablas!$A$522:$G$524,5,TRUE)))))))))))), (IF($F$18=3,(IF(3-$F$20=0,0, (IF(3-$F$20=1,(VLOOKUP(1,Tablas!$A$522:$G$524,5,TRUE)), (IF(3-$F$20=2, (VLOOKUP(2,Tablas!$A$522:$G$524,5,TRUE)), (VLOOKUP(3,Tablas!$A$522:$G$524,5,TRUE)))))))), (IF($F$18=2,(IF(2-$F$20=0, 0, (IF(2-$F$20=1,(VLOOKUP(1,Tablas!$A$522:$G$524,5,TRUE)), (IF(2-$F$20=2, (VLOOKUP(2,Tablas!$A$522:$G$524,5,TRUE)), 0)))))), (IF($F$18=1,(IF(1-$F$20=0, 0, (IF(1-$F$20=1,(VLOOKUP(1,Tablas!$A$522:$G$524,5,TRUE)),0)))),0))))))))))))))))))) -> 1447.96 | J39: =IF($F$16=1, (IF($F$18=0, 0, (IF($F$20>$F$18, (VLOOKUP($F$18,Tablas!$A$522:$G$524,6,TRUE)), (IF($F$18>4,(IF($F$20=0, (VLOOKUP(3,Tablas!$A$522:$G$524,6,TRUE)), (IF($F$20=1, (VLOOKUP(3,Tablas!$A$522:$G$524,6,TRUE)), (IF($F$20=2, (VLOOKUP(3,Tablas!$A$522:$G$524,6,TRUE)), (VLOOKUP(3,Tablas!$A$522:$G$524,6,TRUE)))))))), (IF($F$18=4,(IF(4-$F$20=0,(VLOOKUP(2,Tablas!$A$522:$G$524,6,TRUE)), (IF(4-$F$20=1,(VLOOKUP(2,Tablas!$A$522:$G$524,6,TRUE)), (IF(4-$F$20=2, (VLOOKUP(2,Tablas!$A$522:$G$524,6,TRUE)), (VLOOKUP(3,Tablas!$A$522:$G$524,6,TRUE)))))))), (IF($F$18=3,(IF(3-$F$20=0,(VLOOKUP(1,Tablas!$A$522:$G$524,6,TRUE)), (IF(3-$F$20=1,(VLOOKUP(1,Tablas!$A$522:$G$524,6,TRUE)), (IF(3-$F$20=2, (VLOOKUP(2,Tablas!$A$522:$G$524,6,TRUE)), (VLOOKUP(3,Tablas!$A$522:$G$524,6,TRUE)))))))), (IF($F$18=2,(IF(2-$F$20=0, 0, (IF(2-$F$20=1,(VLOOKUP(1,Tablas!$A$522:$G$524,6,TRUE)), (IF(2-$F$20=2, (VLOOKUP(2,Tablas!$A$522:$G$524,6,TRUE)), 0)))))), (IF($F$18=1,(IF(1-$F$20=0, 0, (IF(1-$F$20=1,(VLOOKUP(1,Tablas!$A$522:$G$524,6,TRUE)),0)))),0)))))))))))))), (IF($F$18=0, 0, (IF($F$20>$F$18, (VLOOKUP($F$18,Tablas!$A$522:$G$524,6,TRUE)), (IF($F$18=4,(IF(4-$F$20=0, 0, (IF(4-$F$20=1, (VLOOKUP(1,Tablas!$A$522:$G$524,6,TRUE)), (IF(4-$F$20=2, (VLOOKUP(2,Tablas!$A$522:$G$524,6,TRUE)), (IF(4-$F$20=3, (VLOOKUP(3,Tablas!$A$522:$G$524,6,TRUE)), (IF(4-$F$20=4, (VLOOKUP(3,Tablas!$A$522:$G$524,6,TRUE)), 0)))))))))), (IF($F$18=5,(IF(5-$F$20=0, (VLOOKUP(1,Tablas!$A$522:$G$524,6,TRUE)), (IF(5-$F$20=1, (VLOOKUP(1,Tablas!$A$522:$G$524,6,TRUE)), (IF(5-$F$20=2, (VLOOKUP(2,Tablas!$A$522:$G$524,6,TRUE)), (IF(5-$F$20=3, (VLOOKUP(3,Tablas!$A$522:$G$524,6,TRUE)), (IF(5-$F$20=4, (VLOOKUP(3,Tablas!$A$522:$G$524,6,TRUE)), (VLOOKUP(3,Tablas!$A$522:$G$524,6,TRUE)))))))))))), (IF($F$18=6,(IF(6-$F$20=0, (VLOOKUP(2,Tablas!$A$522:$G$524,6,TRUE)), (IF(6-$F$20=1, (VLOOKUP(2,Tablas!$A$522:$G$524,6,TRUE)), (IF(6-$F$20=2, (VLOOKUP(2,Tablas!$A$522:$G$524,6,TRUE)), (IF(6-$F$20=3, (VLOOKUP(3,Tablas!$A$522:$G$524,6,TRUE)), (IF(6-$F$20=4, (VLOOKUP(3,Tablas!$A$522:$G$524,6,TRUE)), (VLOOKUP(3,Tablas!$A$522:$G$524,6,TRUE)))))))))))), (IF($F$18>6,(IF(7-$F$20=0, (VLOOKUP(3,Tablas!$A$522:$G$524,6,TRUE)), (IF(7-$F$20=1, (VLOOKUP(3,Tablas!$A$522:$G$524,6,TRUE)), (IF(7-$F$20=2, (VLOOKUP(3,Tablas!$A$522:$G$524,6,TRUE)), (IF(7-$F$20=3, (VLOOKUP(3,Tablas!$A$522:$G$524,6,TRUE)), (IF(7-$F$20=4, (VLOOKUP(3,Tablas!$A$522:$G$524,6,TRUE)), (VLOOKUP(3,Tablas!$A$522:$G$524,6,TRUE)))))))))))), (IF($F$18=3,(IF(3-$F$20=0,0, (IF(3-$F$20=1,(VLOOKUP(1,Tablas!$A$522:$G$524,6,TRUE)), (IF(3-$F$20=2, (VLOOKUP(2,Tablas!$A$522:$G$524,6,TRUE)), (VLOOKUP(3,Tablas!$A$522:$G$524,6,TRUE)))))))), (IF($F$18=2,(IF(2-$F$20=0, 0, (IF(2-$F$20=1,(VLOOKUP(1,Tablas!$A$522:$G$524,6,TRUE)), (IF(2-$F$20=2, (VLOOKUP(2,Tablas!$A$522:$G$524,6,TRUE)), 0)))))), (IF($F$18=1,(IF(1-$F$20=0, 0, (IF(1-$F$20=1,(VLOOKUP(1,Tablas!$A$522:$G$524,6,TRUE)),0)))),0))))))))))))))))))) -> 1256.63 | K39: =IF($F$16=1, (IF($F$18=0, 0, (IF($F$20>$F$18, (VLOOKUP($F$18,Tablas!$A$522:$G$524,7,TRUE)), (IF($F$18>4,(IF($F$20=0, (VLOOKUP(3,Tablas!$A$522:$G$524,7,TRUE)), (IF($F$20=1, (VLOOKUP(3,Tablas!$A$522:$G$524,7,TRUE)), (IF($F$20=2, (VLOOKUP(3,Tablas!$A$522:$G$524,7,TRUE)), (VLOOKUP(3,Tablas!$A$522:$G$524,7,TRUE)))))))), (IF($F$18=4,(IF(4-$F$20=0,(VLOOKUP(2,Tablas!$A$522:$G$524,7,TRUE)), (IF(4-$F$20=1,(VLOOKUP(2,Tablas!$A$522:$G$524,7,TRUE)), (IF(4-$F$20=2, (VLOOKUP(2,Tablas!$A$522:$G$524,7,TRUE)), (VLOOKUP(3,Tablas!$A$522:$G$524,7,TRUE)))))))), (IF($F$18=3,(IF(3-$F$20=0,(VLOOKUP(1,Tablas!$A$522:$G$524,7,TRUE)), (IF(3-$F$20=1,(VLOOKUP(1,Tablas!$A$522:$G$524,7,TRUE)), (IF(3-$F$20=2, (VLOOKUP(2,Tablas!$A$522:$G$524,7,TRUE)), (VLOOKUP(3,Tablas!$A$522:$G$524,7,TRUE)))))))), (IF($F$18=2,(IF(2-$F$20=0, 0, (IF(2-$F$20=1,(VLOOKUP(1,Tablas!$A$522:$G$524,7,TRUE)), (IF(2-$F$20=2, (VLOOKUP(2,Tablas!$A$522:$G$524,7,TRUE)), 0)))))), (IF($F$18=1,(IF(1-$F$20=0, 0, (IF(1-$F$20=1,(VLOOKUP(1,Tablas!$A$522:$G$524,7,TRUE)),0)))),0)))))))))))))), (IF($F$18=0, 0, (IF($F$20>$F$18, (VLOOKUP($F$18,Tablas!$A$522:$G$524,7,TRUE)), (IF($F$18=4,(IF(4-$F$20=0, 0, (IF(4-$F$20=1, (VLOOKUP(1,Tablas!$A$522:$G$524,7,TRUE)), (IF(4-$F$20=2, (VLOOKUP(2,Tablas!$A$522:$G$524,7,TRUE)), (IF(4-$F$20=3, (VLOOKUP(3,Tablas!$A$522:$G$524,7,TRUE)), (IF(4-$F$20=4, (VLOOKUP(3,Tablas!$A$522:$G$524,7,TRUE)), 0)))))))))), (IF($F$18=5,(IF(5-$F$20=0, (VLOOKUP(1,Tablas!$A$522:$G$524,7,TRUE)), (IF(5-$F$20=1, (VLOOKUP(1,Tablas!$A$522:$G$524,7,TRUE)), (IF(5-$F$20=2, (VLOOKUP(2,Tablas!$A$522:$G$524,7,TRUE)), (IF(5-$F$20=3, (VLOOKUP(3,Tablas!$A$522:$G$524,7,TRUE)), (IF(5-$F$20=4, (VLOOKUP(3,Tablas!$A$522:$G$524,7,TRUE)), (VLOOKUP(3,Tablas!$A$522:$G$524,7,TRUE)))))))))))), (IF($F$18=6,(IF(6-$F$20=0, (VLOOKUP(2,Tablas!$A$522:$G$524,7,TRUE)), (IF(6-$F$20=1, (VLOOKUP(2,Tablas!$A$522:$G$524,7,TRUE)), (IF(6-$F$20=2, (VLOOKUP(2,Tablas!$A$522:$G$524,7,TRUE)), (IF(6-$F$20=3, (VLOOKUP(3,Tablas!$A$522:$G$524,7,TRUE)), (IF(6-$F$20=4, (VLOOKUP(3,Tablas!$A$522:$G$524,7,TRUE)), (VLOOKUP(3,Tablas!$A$522:$G$524,7,TRUE)))))))))))), (IF($F$18>6,(IF(7-$F$20=0, (VLOOKUP(3,Tablas!$A$522:$G$524,7,TRUE)), (IF(7-$F$20=1, (VLOOKUP(3,Tablas!$A$522:$G$524,7,TRUE)), (IF(7-$F$20=2, (VLOOKUP(3,Tablas!$A$522:$G$524,7,TRUE)), (IF(7-$F$20=3, (VLOOKUP(3,Tablas!$A$522:$G$524,7,TRUE)), (IF(7-$F$20=4, (VLOOKUP(3,Tablas!$A$522:$G$524,7,TRUE)), (VLOOKUP(3,Tablas!$A$522:$G$524,7,TRUE)))))))))))), (IF($F$18=3,(IF(3-$F$20=0,0, (IF(3-$F$20=1,(VLOOKUP(1,Tablas!$A$522:$G$524,7,TRUE)), (IF(3-$F$20=2, (VLOOKUP(2,Tablas!$A$522:$G$524,7,TRUE)), (VLOOKUP(3,Tablas!$A$522:$G$524,7,TRUE)))))))), (IF($F$18=2,(IF(2-$F$20=0, 0, (IF(2-$F$20=1,(VLOOKUP(1,Tablas!$A$522:$G$524,7,TRUE)), (IF(2-$F$20=2, (VLOOKUP(2,Tablas!$A$522:$G$524,7,TRUE)), 0)))))), (IF($F$18=1,(IF(1-$F$20=0, 0, (IF(1-$F$20=1,(VLOOKUP(1,Tablas!$A$522:$G$524,7,TRUE)),0)))),0))))))))))))))))))) -> 949.23
E40: Total de Prima neta | G40: =SUM(G37:G39) -> 9029.08 | H40: =SUM(H37:H39) -> 7911.84 | I40: =SUM(I37:I39) -> 6380.67 | J40: =SUM(J37:J39) -> 5534.26 | K40: =SUM(K37:K39) -> 4181.17
E41: Tarifa administrativa anual | G41: 75 | H41: 75 | I41: 75 | J41: 75 | K41: 75
E42: IVA (12%) | G42: =(G40+G41)*12% -> 1092.4896 | H42: =(H40+H41)*12% -> 958.4208 | I42: 774.6804 | J42: =(J40+J41)*12% -> 673.1112 | K42: 510.7404
E43: TOTAL de primera cuota | G43: =SUM(G40:G42) -> 10196.5696 | H43: =SUM(H40:H42) -> 8945.2608 | I43: =SUM(I40:I42) -> 7230.3504 | J43: =SUM(J40:J42) -> 6282.3712 | K43: =SUM(K40:K42) -> 4766.9104
E44: Costo de segunda cuota | G44: =G40+G42 - G41*12% -> 10112.5696 | H44: =H40+H42 - H41*12% -> 8861.2608 | I44: 7146.3504 | J44: =J40+J42 - J41*12% -> 6198.3712 | K44: 4682.9104
E45: TOTAL ANUAL | G45: =G43+G44 -> 20309.1392 | H45: =H43+H44 -> 17806.5216 | I45: 14376.7008 | J45: =J43+J44 -> 12480.7424 | K45: 9449.8208
E46: Ahorros en tarifas de prima para niños | G46: =IF($F$16=1,IF($F$18=0,0,IF($F$20=0,0,IF($F$20=1,(VLOOKUP(1,Tablas!$A$522:$G$524,3,TRUE)),(VLOOKUP(2,Tablas!$A$522:$G$524,3,TRUE))))), IF($F$18=0,0,IF($F$20=0,0,IF($F$20=1,(VLOOKUP(1,Tablas!$A$522:$G$524,3,TRUE)),IF($F$20=2,(VLOOKUP(2,Tablas!$A$522:$G$524,3,TRUE)), (VLOOKUP(3,Tablas!$A$522:$G$524,3,TRUE))))))) -> 3401.54 | H46: =IF($F$16=1,IF($F$18=0,0,IF($F$20=0,0,IF($F$20=1,(VLOOKUP(1,Tablas!$A$522:$G$524,4,TRUE)),(VLOOKUP(2,Tablas!$A$522:$G$524,4,TRUE))))), IF($F$18=0,0,IF($F$20=0,0,IF($F$20=1,(VLOOKUP(1,Tablas!$A$522:$G$524,4,TRUE)),IF($F$20=2,(VLOOKUP(2,Tablas!$A$522:$G$524,4,TRUE)), (VLOOKUP(3,Tablas!$A$522:$G$524,4,TRUE))))))) -> 2981.78 | I46: =IF($F$16=1,IF($F$18=0,0,IF($F$20=0,0,IF($F$20=1,(VLOOKUP(1,Tablas!$A$522:$G$524,5,TRUE)),(VLOOKUP(2,Tablas!$A$522:$G$524,5,TRUE))))), IF($F$18=0,0,IF($F$20=0,0,IF($F$20=1,(VLOOKUP(1,Tablas!$A$522:$G$524,5,TRUE)),IF($F$20=2,(VLOOKUP(2,Tablas!$A$522:$G$524,5,TRUE)), (VLOOKUP(3,Tablas!$A$522:$G$524,5,TRUE))))))) -> 2461.32 | J46: =IF($F$16=1,IF($F$18=0,0,IF($F$20=0,0,IF($F$20=1,(VLOOKUP(1,Tablas!$A$522:$G$524,6,TRUE)),(VLOOKUP(2,Tablas!$A$522:$G$524,6,TRUE))))), IF($F$18=0,0,IF($F$20=0,0,IF($F$20=1,(VLOOKUP(1,Tablas!$A$522:$G$524,6,TRUE)),IF($F$20=2,(VLOOKUP(2,Tablas!$A$522:$G$524,6,TRUE)), (VLOOKUP(3,Tablas!$A$522:$G$524,6,TRUE))))))) -> 2134.84 | K46: =IF($F$16=1,IF($F$18=0,0,IF($F$20=0,0,IF($F$20=1,(VLOOKUP(1,Tablas!$A$522:$G$524,7,TRUE)),(VLOOKUP(2,Tablas!$A$522:$G$524,7,TRUE))))), IF($F$18=0,0,IF($F$20=0,0,IF($F$20=1,(VLOOKUP(1,Tablas!$A$522:$G$524,7,TRUE)),IF($F$20=2,(VLOOKUP(2,Tablas!$A$522:$G$524,7,TRUE)), (VLOOKUP(3,Tablas!$A$522:$G$524,7,TRUE))))))) -> 1613.32
E48: Tarifas trimestrales
E49: Prima para Asegurado Titular | G49: =VLOOKUP($I$16,Tablas!$A$680:$G$746,3,TRUE) -> 3646.5 | H49: =VLOOKUP($I$16,Tablas!$A$680:$G$746,4,TRUE) -> 3195.5 | I49: =VLOOKUP($I$16,Tablas!$A$680:$G$746,5,TRUE) -> 2559.425 | J49: =VLOOKUP($I$16,Tablas!$A$680:$G$746,6,TRUE) -> 2219.525 | K49: =VLOOKUP($I$16,Tablas!$A$680:$G$746,7,TRUE) -> 1676.95
E50: Prima para conyuge | G50: =IF($F$16=1,0,(VLOOKUP($I$18,Tablas!$A$680:$G$746,3,TRUE))) -> 0 | H50: =IF($F$16=1,0,(VLOOKUP($I$18,Tablas!$A$680:$G$746,4,TRUE))) -> 0 | I50: =IF($F$16=1,0,(VLOOKUP($I$18,Tablas!$A$680:$G$746,5,TRUE))) -> 0 | J50: =IF($F$16=1,0,(VLOOKUP($I$18,Tablas!$A$680:$G$746,6,TRUE))) -> 0 | K50: =IF($F$16=1,0,(VLOOKUP($I$18,Tablas!$A$680:$G$746,7,TRUE))) -> 0
E51: Prima para hijo (s) | G51: =IF($F$16=1, (IF($F$18=0, 0, (IF($F$20>$F$18, (VLOOKUP($F$18,Tablas!$A$747:$G$749,3,TRUE)), (IF($F$18>4,(IF($F$20=0, (VLOOKUP(3,Tablas!$A$747:$G$749,3,TRUE)), (IF($F$20=1, (VLOOKUP(3,Tablas!$A$747:$G$749,3,TRUE)), (IF($F$20=2, (VLOOKUP(3,Tablas!$A$747:$G$749,3,TRUE)), (VLOOKUP(3,Tablas!$A$747:$G$749,3,TRUE)))))))), (IF($F$18=4,(IF(4-$F$20=0,(VLOOKUP(2,Tablas!$A$747:$G$749,3,TRUE)), (IF(4-$F$20=1,(VLOOKUP(2,Tablas!$A$747:$G$749,3,TRUE)), (IF(4-$F$20=2, (VLOOKUP(2,Tablas!$A$747:$G$749,3,TRUE)), (VLOOKUP(3,Tablas!$A$747:$G$749,3,TRUE)))))))), (IF($F$18=3,(IF(3-$F$20=0,(VLOOKUP(1,Tablas!$A$747:$G$749,3,TRUE)), (IF(3-$F$20=1,(VLOOKUP(1,Tablas!$A$747:$G$749,3,TRUE)), (IF(3-$F$20=2, (VLOOKUP(2,Tablas!$A$747:$G$749,3,TRUE)), (VLOOKUP(3,Tablas!$A$747:$G$749,3,TRUE)))))))), (IF($F$18=2,(IF(2-$F$20=0, 0, (IF(2-$F$20=1,(VLOOKUP(1,Tablas!$A$747:$G$749,3,TRUE)), (IF(2-$F$20=2, (VLOOKUP(2,Tablas!$A$747:$G$749,3,TRUE)), 0)))))), (IF($F$18=1,(IF(1-$F$20=0, 0, (IF(1-$F$20=1,(VLOOKUP(1,Tablas!$A$747:$G$749,3,TRUE)),0)))),0)))))))))))))), (IF($F$18=0, 0, (IF($F$20>$F$18, (VLOOKUP($F$18,Tablas!$A$747:$G$749,3,TRUE)), (IF($F$18=4,(IF(4-$F$20=0, 0, (IF(4-$F$20=1, (VLOOKUP(1,Tablas!$A$747:$G$749,3,TRUE)), (IF(4-$F$20=2, (VLOOKUP(2,Tablas!$A$747:$G$749,3,TRUE)), (IF(4-$F$20=3, (VLOOKUP(3,Tablas!$A$747:$G$749,3,TRUE)), (IF(4-$F$20=4, (VLOOKUP(3,Tablas!$A$747:$G$749,3,TRUE)), 0)))))))))), (IF($F$18=5,(IF(5-$F$20=0, (VLOOKUP(1,Tablas!$A$747:$G$749,3,TRUE)), (IF(5-$F$20=1, (VLOOKUP(1,Tablas!$A$747:$G$749,3,TRUE)), (IF(5-$F$20=2, (VLOOKUP(2,Tablas!$A$747:$G$749,3,TRUE)), (IF(5-$F$20=3, (VLOOKUP(3,Tablas!$A$747:$G$749,3,TRUE)), (IF(5-$F$20=4, (VLOOKUP(3,Tablas!$A$747:$G$749,3,TRUE)), (VLOOKUP(3,Tablas!$A$747:$G$749,3,TRUE)))))))))))), (IF($F$18=6,(IF(6-$F$20=0, (VLOOKUP(2,Tablas!$A$747:$G$749,3,TRUE)), (IF(6-$F$20=1, (VLOOKUP(2,Tablas!$A$747:$G$749,3,TRUE)), (IF(6-$F$20=2, (VLOOKUP(2,Tablas!$A$747:$G$749,3,TRUE)), (IF(6-$F$20=3, (VLOOKUP(3,Tablas!$A$747:$G$749,3,TRUE)), (IF(6-$F$20=4, (VLOOKUP(3,Tablas!$A$747:$G$749,3,TRUE)), (VLOOKUP(3,Tablas!$A$747:$G$749,3,TRUE)))))))))))), (IF($F$18>6,(IF(7-$F$20=0, (VLOOKUP(3,Tablas!$A$747:$G$749,3,TRUE)), (IF(7-$F$20=1, (VLOOKUP(3,Tablas!$A$747:$G$749,3,TRUE)), (IF(7-$F$20=2, (VLOOKUP(3,Tablas!$A$747:$G$749,3,TRUE)), (IF(7-$F$20=3, (VLOOKUP(3,Tablas!$A$747:$G$749,3,TRUE)), (IF(7-$F$20=4, (VLOOKUP(3,Tablas!$A$747:$G$749,3,TRUE)), (VLOOKUP(3,Tablas!$A$747:$G$749,3,TRUE)))))))))))), (IF($F$18=3,(IF(3-$F$20=0,0, (IF(3-$F$20=1,(VLOOKUP(1,Tablas!$A$747:$G$749,3,TRUE)), (IF(3-$F$20=2, (VLOOKUP(2,Tablas!$A$747:$G$749,3,TRUE)), (VLOOKUP(3,Tablas!$A$747:$G$749,3,TRUE)))))))), (IF($F$18=2,(IF(2-$F$20=0, 0, (IF(2-$F$20=1,(VLOOKUP(1,Tablas!$A$747:$G$749,3,TRUE)), (IF(2-$F$20=2, (VLOOKUP(2,Tablas!$A$747:$G$749,3,TRUE)), 0)))))), (IF($F$18=1,(IF(1-$F$20=0, 0, (IF(1-$F$20=1,(VLOOKUP(1,Tablas!$A$747:$G$749,3,TRUE)),0)))),0))))))))))))))))))) -> 1038.4 | H51: =IF($F$16=1, (IF($F$18=0, 0, (IF($F$20>$F$18, (VLOOKUP($F$18,Tablas!$A$747:$G$749,4,TRUE)), (IF($F$18>4,(IF($F$20=0, (VLOOKUP(3,Tablas!$A$747:$G$749,4,TRUE)), (IF($F$20=1, (VLOOKUP(3,Tablas!$A$747:$G$749,4,TRUE)), (IF($F$20=2, (VLOOKUP(3,Tablas!$A$747:$G$749,4,TRUE)), (VLOOKUP(3,Tablas!$A$747:$G$749,4,TRUE)))))))), (IF($F$18=4,(IF(4-$F$20=0,(VLOOKUP(2,Tablas!$A$747:$G$749,4,TRUE)), (IF(4-$F$20=1,(VLOOKUP(2,Tablas!$A$747:$G$749,4,TRUE)), (IF(4-$F$20=2, (VLOOKUP(2,Tablas!$A$747:$G$749,4,TRUE)), (VLOOKUP(3,Tablas!$A$747:$G$749,4,TRUE)))))))), (IF($F$18=3,(IF(3-$F$20=0,(VLOOKUP(1,Tablas!$A$747:$G$749,4,TRUE)), (IF(3-$F$20=1,(VLOOKUP(1,Tablas!$A$747:$G$749,4,TRUE)), (IF(3-$F$20=2, (VLOOKUP(2,Tablas!$A$747:$G$749,4,TRUE)), (VLOOKUP(3,Tablas!$A$747:$G$749,4,TRUE)))))))), (IF($F$18=2,(IF(2-$F$20=0, 0, (IF(2-$F$20=1,(VLOOKUP(1,Tablas!$A$747:$G$749,4,TRUE)), (IF(2-$F$20=2, (VLOOKUP(2,Tablas!$A$747:$G$749,4,TRUE)), 0)))))), (IF($F$18=1,(IF(1-$F$20=0, 0, (IF(1-$F$20=1,(VLOOKUP(1,Tablas!$A$747:$G$749,4,TRUE)),0)))),0)))))))))))))), (IF($F$18=0, 0, (IF($F$20>$F$18, (VLOOKUP($F$18,Tablas!$A$747:$G$749,4,TRUE)), (IF($F$18=4,(IF(4-$F$20=0, 0, (IF(4-$F$20=1, (VLOOKUP(1,Tablas!$A$747:$G$749,4,TRUE)), (IF(4-$F$20=2, (VLOOKUP(2,Tablas!$A$747:$G$749,4,TRUE)), (IF(4-$F$20=3, (VLOOKUP(3,Tablas!$A$747:$G$749,4,TRUE)), (IF(4-$F$20=4, (VLOOKUP(3,Tablas!$A$747:$G$749,4,TRUE)), 0)))))))))), (IF($F$18=5,(IF(5-$F$20=0, (VLOOKUP(1,Tablas!$A$747:$G$749,4,TRUE)), (IF(5-$F$20=1, (VLOOKUP(1,Tablas!$A$747:$G$749,4,TRUE)), (IF(5-$F$20=2, (VLOOKUP(2,Tablas!$A$747:$G$749,4,TRUE)), (IF(5-$F$20=3, (VLOOKUP(3,Tablas!$A$747:$G$749,4,TRUE)), (IF(5-$F$20=4, (VLOOKUP(3,Tablas!$A$747:$G$749,4,TRUE)), (VLOOKUP(3,Tablas!$A$747:$G$749,4,TRUE)))))))))))), (IF($F$18=6,(IF(6-$F$20=0, (VLOOKUP(2,Tablas!$A$747:$G$749,4,TRUE)), (IF(6-$F$20=1, (VLOOKUP(2,Tablas!$A$747:$G$749,4,TRUE)), (IF(6-$F$20=2, (VLOOKUP(2,Tablas!$A$747:$G$749,4,TRUE)), (IF(6-$F$20=3, (VLOOKUP(3,Tablas!$A$747:$G$749,4,TRUE)), (IF(6-$F$20=4, (VLOOKUP(3,Tablas!$A$747:$G$749,4,TRUE)), (VLOOKUP(3,Tablas!$A$747:$G$749,4,TRUE)))))))))))), (IF($F$18>6,(IF(7-$F$20=0, (VLOOKUP(3,Tablas!$A$747:$G$749,4,TRUE)), (IF(7-$F$20=1, (VLOOKUP(3,Tablas!$A$747:$G$749,4,TRUE)), (IF(7-$F$20=2, (VLOOKUP(3,Tablas!$A$747:$G$749,4,TRUE)), (IF(7-$F$20=3, (VLOOKUP(3,Tablas!$A$747:$G$749,4,TRUE)), (IF(7-$F$20=4, (VLOOKUP(3,Tablas!$A$747:$G$749,4,TRUE)), (VLOOKUP(3,Tablas!$A$747:$G$749,4,TRUE)))))))))))), (IF($F$18=3,(IF(3-$F$20=0,0, (IF(3-$F$20=1,(VLOOKUP(1,Tablas!$A$747:$G$749,4,TRUE)), (IF(3-$F$20=2, (VLOOKUP(2,Tablas!$A$747:$G$749,4,TRUE)), (VLOOKUP(3,Tablas!$A$747:$G$749,4,TRUE)))))))), (IF($F$18=2,(IF(2-$F$20=0, 0, (IF(2-$F$20=1,(VLOOKUP(1,Tablas!$A$747:$G$749,4,TRUE)), (IF(2-$F$20=2, (VLOOKUP(2,Tablas!$A$747:$G$749,4,TRUE)), 0)))))), (IF($F$18=1,(IF(1-$F$20=0, 0, (IF(1-$F$20=1,(VLOOKUP(1,Tablas!$A$747:$G$749,4,TRUE)),0)))),0))))))))))))))))))) -> 909.7 | I51: =IF($F$16=1, (IF($F$18=0, 0, (IF($F$20>$F$18, (VLOOKUP($F$18,Tablas!$A$747:$G$749,5,TRUE)), (IF($F$18>4,(IF($F$20=0, (VLOOKUP(3,Tablas!$A$747:$G$749,5,TRUE)), (IF($F$20=1, (VLOOKUP(3,Tablas!$A$747:$G$749,5,TRUE)), (IF($F$20=2, (VLOOKUP(3,Tablas!$A$747:$G$749,5,TRUE)), (VLOOKUP(3,Tablas!$A$747:$G$749,5,TRUE)))))))), (IF($F$18=4,(IF(4-$F$20=0,(VLOOKUP(2,Tablas!$A$747:$G$749,5,TRUE)), (IF(4-$F$20=1,(VLOOKUP(2,Tablas!$A$747:$G$749,5,TRUE)), (IF(4-$F$20=2, (VLOOKUP(2,Tablas!$A$747:$G$749,5,TRUE)), (VLOOKUP(3,Tablas!$A$747:$G$749,5,TRUE)))))))), (IF($F$18=3,(IF(3-$F$20=0,(VLOOKUP(1,Tablas!$A$747:$G$749,5,TRUE)), (IF(3-$F$20=1,(VLOOKUP(1,Tablas!$A$747:$G$749,5,TRUE)), (IF(3-$F$20=2, (VLOOKUP(2,Tablas!$A$747:$G$749,5,TRUE)), (VLOOKUP(3,Tablas!$A$747:$G$749,5,TRUE)))))))), (IF($F$18=2,(IF(2-$F$20=0, 0, (IF(2-$F$20=1,(VLOOKUP(1,Tablas!$A$747:$G$749,5,TRUE)), (IF(2-$F$20=2, (VLOOKUP(2,Tablas!$A$747:$G$749,5,TRUE)), 0)))))), (IF($F$18=1,(IF(1-$F$20=0, 0, (IF(1-$F$20=1,(VLOOKUP(1,Tablas!$A$747:$G$749,5,TRUE)),0)))),0)))))))))))))), (IF($F$18=0, 0, (IF($F$20>$F$18, (VLOOKUP($F$18,Tablas!$A$747:$G$749,5,TRUE)), (IF($F$18=4,(IF(4-$F$20=0, 0, (IF(4-$F$20=1, (VLOOKUP(1,Tablas!$A$747:$G$749,5,TRUE)), (IF(4-$F$20=2, (VLOOKUP(2,Tablas!$A$747:$G$749,5,TRUE)), (IF(4-$F$20=3, (VLOOKUP(3,Tablas!$A$747:$G$749,5,TRUE)), (IF(4-$F$20=4, (VLOOKUP(3,Tablas!$A$747:$G$749,5,TRUE)), 0)))))))))), (IF($F$18=5,(IF(5-$F$20=0, (VLOOKUP(1,Tablas!$A$747:$G$749,5,TRUE)), (IF(5-$F$20=1, (VLOOKUP(1,Tablas!$A$747:$G$749,5,TRUE)), (IF(5-$F$20=2, (VLOOKUP(2,Tablas!$A$747:$G$749,5,TRUE)), (IF(5-$F$20=3, (VLOOKUP(3,Tablas!$A$747:$G$749,5,TRUE)), (IF(5-$F$20=4, (VLOOKUP(3,Tablas!$A$747:$G$749,5,TRUE)), (VLOOKUP(3,Tablas!$A$747:$G$749,5,TRUE)))))))))))), (IF($F$18=6,(IF(6-$F$20=0, (VLOOKUP(2,Tablas!$A$747:$G$749,5,TRUE)), (IF(6-$F$20=1, (VLOOKUP(2,Tablas!$A$747:$G$749,5,TRUE)), (IF(6-$F$20=2, (VLOOKUP(2,Tablas!$A$747:$G$749,5,TRUE)), (IF(6-$F$20=3, (VLOOKUP(3,Tablas!$A$747:$G$749,5,TRUE)), (IF(6-$F$20=4, (VLOOKUP(3,Tablas!$A$747:$G$749,5,TRUE)), (VLOOKUP(3,Tablas!$A$747:$G$749,5,TRUE)))))))))))), (IF($F$18>6,(IF(7-$F$20=0, (VLOOKUP(3,Tablas!$A$747:$G$749,5,TRUE)), (IF(7-$F$20=1, (VLOOKUP(3,Tablas!$A$747:$G$749,5,TRUE)), (IF(7-$F$20=2, (VLOOKUP(3,Tablas!$A$747:$G$749,5,TRUE)), (IF(7-$F$20=3, (VLOOKUP(3,Tablas!$A$747:$G$749,5,TRUE)), (IF(7-$F$20=4, (VLOOKUP(3,Tablas!$A$747:$G$749,5,TRUE)), (VLOOKUP(3,Tablas!$A$747:$G$749,5,TRUE)))))))))))), (IF($F$18=3,(IF(3-$F$20=0,0, (IF(3-$F$20=1,(VLOOKUP(1,Tablas!$A$747:$G$749,5,TRUE)), (IF(3-$F$20=2, (VLOOKUP(2,Tablas!$A$747:$G$749,5,TRUE)), (VLOOKUP(3,Tablas!$A$747:$G$749,5,TRUE)))))))), (IF($F$18=2,(IF(2-$F$20=0, 0, (IF(2-$F$20=1,(VLOOKUP(1,Tablas!$A$747:$G$749,5,TRUE)), (IF(2-$F$20=2, (VLOOKUP(2,Tablas!$A$747:$G$749,5,TRUE)), 0)))))), (IF($F$18=1,(IF(1-$F$20=0, 0, (IF(1-$F$20=1,(VLOOKUP(1,Tablas!$A$747:$G$749,5,TRUE)),0)))),0))))))))))))))))))) -> 751.3 | J51: =IF($F$16=1, (IF($F$18=0, 0, (IF($F$20>$F$18, (VLOOKUP($F$18,Tablas!$A$747:$G$749,6,TRUE)), (IF($F$18>4,(IF($F$20=0, (VLOOKUP(3,Tablas!$A$747:$G$749,6,TRUE)), (IF($F$20=1, (VLOOKUP(3,Tablas!$A$747:$G$749,6,TRUE)), (IF($F$20=2, (VLOOKUP(3,Tablas!$A$747:$G$749,6,TRUE)), (VLOOKUP(3,Tablas!$A$747:$G$749,6,TRUE)))))))), (IF($F$18=4,(IF(4-$F$20=0,(VLOOKUP(2,Tablas!$A$747:$G$749,6,TRUE)), (IF(4-$F$20=1,(VLOOKUP(2,Tablas!$A$747:$G$749,6,TRUE)), (IF(4-$F$20=2, (VLOOKUP(2,Tablas!$A$747:$G$749,6,TRUE)), (VLOOKUP(3,Tablas!$A$747:$G$749,6,TRUE)))))))), (IF($F$18=3,(IF(3-$F$20=0,(VLOOKUP(1,Tablas!$A$747:$G$749,6,TRUE)), (IF(3-$F$20=1,(VLOOKUP(1,Tablas!$A$747:$G$749,6,TRUE)), (IF(3-$F$20=2, (VLOOKUP(2,Tablas!$A$747:$G$749,6,TRUE)), (VLOOKUP(3,Tablas!$A$747:$G$749,6,TRUE)))))))), (IF($F$18=2,(IF(2-$F$20=0, 0, (IF(2-$F$20=1,(VLOOKUP(1,Tablas!$A$747:$G$749,6,TRUE)), (IF(2-$F$20=2, (VLOOKUP(2,Tablas!$A$747:$G$749,6,TRUE)), 0)))))), (IF($F$18=1,(IF(1-$F$20=0, 0, (IF(1-$F$20=1,(VLOOKUP(1,Tablas!$A$747:$G$749,6,TRUE)),0)))),0)))))))))))))), (IF($F$18=0, 0, (IF($F$20>$F$18, (VLOOKUP($F$18,Tablas!$A$747:$G$749,6,TRUE)), (IF($F$18=4,(IF(4-$F$20=0, 0, (IF(4-$F$20=1, (VLOOKUP(1,Tablas!$A$747:$G$749,6,TRUE)), (IF(4-$F$20=2, (VLOOKUP(2,Tablas!$A$747:$G$749,6,TRUE)), (IF(4-$F$20=3, (VLOOKUP(3,Tablas!$A$747:$G$749,6,TRUE)), (IF(4-$F$20=4, (VLOOKUP(3,Tablas!$A$747:$G$749,6,TRUE)), 0)))))))))), (IF($F$18=5,(IF(5-$F$20=0, (VLOOKUP(1,Tablas!$A$747:$G$749,6,TRUE)), (IF(5-$F$20=1, (VLOOKUP(1,Tablas!$A$747:$G$749,6,TRUE)), (IF(5-$F$20=2, (VLOOKUP(2,Tablas!$A$747:$G$749,6,TRUE)), (IF(5-$F$20=3, (VLOOKUP(3,Tablas!$A$747:$G$749,6,TRUE)), (IF(5-$F$20=4, (VLOOKUP(3,Tablas!$A$747:$G$749,6,TRUE)), (VLOOKUP(3,Tablas!$A$747:$G$749,6,TRUE)))))))))))), (IF($F$18=6,(IF(6-$F$20=0, (VLOOKUP(2,Tablas!$A$747:$G$749,6,TRUE)), (IF(6-$F$20=1, (VLOOKUP(2,Tablas!$A$747:$G$749,6,TRUE)), (IF(6-$F$20=2, (VLOOKUP(2,Tablas!$A$747:$G$749,6,TRUE)), (IF(6-$F$20=3, (VLOOKUP(3,Tablas!$A$747:$G$749,6,TRUE)), (IF(6-$F$20=4, (VLOOKUP(3,Tablas!$A$747:$G$749,6,TRUE)), (VLOOKUP(3,Tablas!$A$747:$G$749,6,TRUE)))))))))))), (IF($F$18>6,(IF(7-$F$20=0, (VLOOKUP(3,Tablas!$A$747:$G$749,6,TRUE)), (IF(7-$F$20=1, (VLOOKUP(3,Tablas!$A$747:$G$749,6,TRUE)), (IF(7-$F$20=2, (VLOOKUP(3,Tablas!$A$747:$G$749,6,TRUE)), (IF(7-$F$20=3, (VLOOKUP(3,Tablas!$A$747:$G$749,6,TRUE)), (IF(7-$F$20=4, (VLOOKUP(3,Tablas!$A$747:$G$749,6,TRUE)), (VLOOKUP(3,Tablas!$A$747:$G$749,6,TRUE)))))))))))), (IF($F$18=3,(IF(3-$F$20=0,0, (IF(3-$F$20=1,(VLOOKUP(1,Tablas!$A$747:$G$749,6,TRUE)), (IF(3-$F$20=2, (VLOOKUP(2,Tablas!$A$747:$G$749,6,TRUE)), (VLOOKUP(3,Tablas!$A$747:$G$749,6,TRUE)))))))), (IF($F$18=2,(IF(2-$F$20=0, 0, (IF(2-$F$20=1,(VLOOKUP(1,Tablas!$A$747:$G$749,6,TRUE)), (IF(2-$F$20=2, (VLOOKUP(2,Tablas!$A$747:$G$749,6,TRUE)), 0)))))), (IF($F$18=1,(IF(1-$F$20=0, 0, (IF(1-$F$20=1,(VLOOKUP(1,Tablas!$A$747:$G$749,6,TRUE)),0)))),0))))))))))))))))))) -> 652.025 | K51: =IF($F$16=1, (IF($F$18=0, 0, (IF($F$20>$F$18, (VLOOKUP($F$18,Tablas!$A$747:$G$749,7,TRUE)), (IF($F$18>4,(IF($F$20=0, (VLOOKUP(3,Tablas!$A$747:$G$749,7,TRUE)), (IF($F$20=1, (VLOOKUP(3,Tablas!$A$747:$G$749,7,TRUE)), (IF($F$20=2, (VLOOKUP(3,Tablas!$A$747:$G$749,7,TRUE)), (VLOOKUP(3,Tablas!$A$747:$G$749,7,TRUE)))))))), (IF($F$18=4,(IF(4-$F$20=0,(VLOOKUP(2,Tablas!$A$747:$G$749,7,TRUE)), (IF(4-$F$20=1,(VLOOKUP(2,Tablas!$A$747:$G$749,7,TRUE)), (IF(4-$F$20=2, (VLOOKUP(2,Tablas!$A$747:$G$749,7,TRUE)), (VLOOKUP(3,Tablas!$A$747:$G$749,7,TRUE)))))))), (IF($F$18=3,(IF(3-$F$20=0,(VLOOKUP(1,Tablas!$A$747:$G$749,7,TRUE)), (IF(3-$F$20=1,(VLOOKUP(1,Tablas!$A$747:$G$749,7,TRUE)), (IF(3-$F$20=2, (VLOOKUP(2,Tablas!$A$747:$G$749,7,TRUE)), (VLOOKUP(3,Tablas!$A$747:$G$749,7,TRUE)))))))), (IF($F$18=2,(IF(2-$F$20=0, 0, (IF(2-$F$20=1,(VLOOKUP(1,Tablas!$A$747:$G$749,7,TRUE)), (IF(2-$F$20=2, (VLOOKUP(2,Tablas!$A$747:$G$749,7,TRUE)), 0)))))), (IF($F$18=1,(IF(1-$F$20=0, 0, (IF(1-$F$20=1,(VLOOKUP(1,Tablas!$A$747:$G$749,7,TRUE)),0)))),0)))))))))))))), (IF($F$18=0, 0, (IF($F$20>$F$18, (VLOOKUP($F$18,Tablas!$A$747:$G$749,7,TRUE)), (IF($F$18=4,(IF(4-$F$20=0, 0, (IF(4-$F$20=1, (VLOOKUP(1,Tablas!$A$747:$G$749,7,TRUE)), (IF(4-$F$20=2, (VLOOKUP(2,Tablas!$A$747:$G$749,7,TRUE)), (IF(4-$F$20=3, (VLOOKUP(3,Tablas!$A$747:$G$749,7,TRUE)), (IF(4-$F$20=4, (VLOOKUP(3,Tablas!$A$747:$G$749,7,TRUE)), 0)))))))))), (IF($F$18=5,(IF(5-$F$20=0, (VLOOKUP(1,Tablas!$A$747:$G$749,7,TRUE)), (IF(5-$F$20=1, (VLOOKUP(1,Tablas!$A$747:$G$749,7,TRUE)), (IF(5-$F$20=2, (VLOOKUP(2,Tablas!$A$747:$G$749,7,TRUE)), (IF(5-$F$20=3, (VLOOKUP(3,Tablas!$A$747:$G$749,7,TRUE)), (IF(5-$F$20=4, (VLOOKUP(3,Tablas!$A$747:$G$749,7,TRUE)), (VLOOKUP(3,Tablas!$A$747:$G$749,7,TRUE)))))))))))), (IF($F$18=6,(IF(6-$F$20=0, (VLOOKUP(2,Tablas!$A$747:$G$749,7,TRUE)), (IF(6-$F$20=1, (VLOOKUP(2,Tablas!$A$747:$G$749,7,TRUE)), (IF(6-$F$20=2, (VLOOKUP(2,Tablas!$A$747:$G$749,7,TRUE)), (IF(6-$F$20=3, (VLOOKUP(3,Tablas!$A$747:$G$749,7,TRUE)), (IF(6-$F$20=4, (VLOOKUP(3,Tablas!$A$747:$G$749,7,TRUE)), (VLOOKUP(3,Tablas!$A$747:$G$749,7,TRUE)))))))))))), (IF($F$18>6,(IF(7-$F$20=0, (VLOOKUP(3,Tablas!$A$747:$G$749,7,TRUE)), (IF(7-$F$20=1, (VLOOKUP(3,Tablas!$A$747:$G$749,7,TRUE)), (IF(7-$F$20=2, (VLOOKUP(3,Tablas!$A$747:$G$749,7,TRUE)), (IF(7-$F$20=3, (VLOOKUP(3,Tablas!$A$747:$G$749,7,TRUE)), (IF(7-$F$20=4, (VLOOKUP(3,Tablas!$A$747:$G$749,7,TRUE)), (VLOOKUP(3,Tablas!$A$747:$G$749,7,TRUE)))))))))))), (IF($F$18=3,(IF(3-$F$20=0,0, (IF(3-$F$20=1,(VLOOKUP(1,Tablas!$A$747:$G$749,7,TRUE)), (IF(3-$F$20=2, (VLOOKUP(2,Tablas!$A$747:$G$749,7,TRUE)), (VLOOKUP(3,Tablas!$A$747:$G$749,7,TRUE)))))))), (IF($F$18=2,(IF(2-$F$20=0, 0, (IF(2-$F$20=1,(VLOOKUP(1,Tablas!$A$747:$G$749,7,TRUE)), (IF(2-$F$20=2, (VLOOKUP(2,Tablas!$A$747:$G$749,7,TRUE)), 0)))))), (IF($F$18=1,(IF(1-$F$20=0, 0, (IF(1-$F$20=1,(VLOOKUP(1,Tablas!$A$747:$G$749,7,TRUE)),0)))),0))))))))))))))))))) -> 492.525
E52: Total de Prima neta | G52: =SUM(G49:G51) -> 4684.9 | H52: =SUM(H49:H51) -> 4105.2 | I52: =SUM(I49:I51) -> 3310.725 | J52: =SUM(J49:J51) -> 2871.55 | K52: =SUM(K49:K51) -> 2169.475
E53: Tarifa administrativa anual | G53: 75 | H53: 75 | I53: 75 | J53: 75 | K53: 75
E54: IVA (12%) | G54: =(G52+G53)*12% -> 571.188 | H54: =(H52+H53)*12% -> 501.624 | I54: 406.287 | J54: =(J52+J53)*12% -> 353.586 | K54: 269.337
E55: TOTAL de primera cuota | G55: =SUM(G52:G54) -> 5331.088 | H55: =SUM(H52:H54) -> 4681.824 | I55: =SUM(I52:I54) -> 3792.012 | J55: =SUM(J52:J54) -> 3300.136 | K55: =SUM(K52:K54) -> 2513.812
E56: Costo de tarifa trimestral 2 a 4 | G56: =G52+G54 - G53*12% -> 5247.088 | H56: =H52+H54 - H53*12% -> 4597.824 | I56: 3708.012 | J56: =J52+J54 - J53*12% -> 3216.136 | K56: 2429.812
E57: TOTAL ANUAL | G57: =G55+(G56*3) -> 21072.352 | H57: =H55+(H56*3) -> 18475.296 | I57: 14916.048 | J57: =J55+(J56*3) -> 12948.544 | K57: 9803.248
E58: Ahorros en tarifas de prima para niños | G58: =IF($F$16=1,IF($F$18=0,0,IF($F$20=0,0,IF($F$20=1,(VLOOKUP(1,Tablas!$A$747:$G$749,3,TRUE)),(VLOOKUP(2,Tablas!$A$747:$G$749,3,TRUE))))), IF($F$18=0,0,IF($F$20=0,0,IF($F$20=1,(VLOOKUP(1,Tablas!$A$747:$G$749,3,TRUE)),IF($F$20=2,(VLOOKUP(2,Tablas!$A$747:$G$749,3,TRUE)), (VLOOKUP(3,Tablas!$A$747:$G$749,3,TRUE))))))) -> 1764.95 | H58: =IF($F$16=1,IF($F$18=0,0,IF($F$20=0,0,IF($F$20=1,(VLOOKUP(1,Tablas!$A$747:$G$749,4,TRUE)),(VLOOKUP(2,Tablas!$A$747:$G$749,4,TRUE))))), IF($F$18=0,0,IF($F$20=0,0,IF($F$20=1,(VLOOKUP(1,Tablas!$A$747:$G$749,4,TRUE)),IF($F$20=2,(VLOOKUP(2,Tablas!$A$747:$G$749,4,TRUE)), (VLOOKUP(3,Tablas!$A$747:$G$749,4,TRUE))))))) -> 1547.15 | I58: =IF($F$16=1,IF($F$18=0,0,IF($F$20=0,0,IF($F$20=1,(VLOOKUP(1,Tablas!$A$747:$G$749,5,TRUE)),(VLOOKUP(2,Tablas!$A$747:$G$749,5,TRUE))))), IF($F$18=0,0,IF($F$20=0,0,IF($F$20=1,(VLOOKUP(1,Tablas!$A$747:$G$749,5,TRUE)),IF($F$20=2,(VLOOKUP(2,Tablas!$A$747:$G$749,5,TRUE)), (VLOOKUP(3,Tablas!$A$747:$G$749,5,TRUE))))))) -> 1277.1 | J58: =IF($F$16=1,IF($F$18=0,0,IF($F$20=0,0,IF($F$20=1,(VLOOKUP(1,Tablas!$A$747:$G$749,6,TRUE)),(VLOOKUP(2,Tablas!$A$747:$G$749,6,TRUE))))), IF($F$18=0,0,IF($F$20=0,0,IF($F$20=1,(VLOOKUP(1,Tablas!$A$747:$G$749,6,TRUE)),IF($F$20=2,(VLOOKUP(2,Tablas!$A$747:$G$749,6,TRUE)), (VLOOKUP(3,Tablas!$A$747:$G$749,6,TRUE))))))) -> 1107.7 | K58: =IF($F$16=1,IF($F$18=0,0,IF($F$20=0,0,IF($F$20=1,(VLOOKUP(1,Tablas!$A$747:$G$749,7,TRUE)),(VLOOKUP(2,Tablas!$A$747:$G$749,7,TRUE))))), IF($F$18=0,0,IF($F$20=0,0,IF($F$20=1,(VLOOKUP(1,Tablas!$A$747:$G$749,7,TRUE)),IF($F$20=2,(VLOOKUP(2,Tablas!$A$747:$G$749,7,TRUE)), (VLOOKUP(3,Tablas!$A$747:$G$749,7,TRUE))))))) -> 837.1
E61: Tarifas en US $ - Efectivas a partir del 1ro de enero de 2022
E62: Este presupuesto solamente tiene carácter informativo y en ningún momento expresa compromiso legal para suministrarle cobertura de seguro. La emisión de una póliza de seguro Bupa está sujeta a todas las evaluaciones de riesgo por parte de Bupa y a la recepción de todos los pagos de prima requeridos.

Sheet Global Premier
A12: GLOBAL PREMIER HEALTH PLAN
E14: Nombre del Asegurado titular: | F14: =+'INGRESO DE DATOS'!$D$16 -> NOMBRE COMPLETO
E16: Número de adultos en la póliza: | F16: =+'INGRESO DE DATOS'!$D$18 -> 1 | H16: Edad del Asegurado Titular: | I16: =+'INGRESO DE DATOS'!$D$20 -> 42
E18: Número de niños en la póliza: | F18: =+'INGRESO DE DATOS'!$H$18 -> 3 | H18: Edad del/la conyuge: | I18: =+'INGRESO DE DATOS'!$H$20 -> 71
H20: Fecha de la cotización: | I20: =NOW() -> 2022-10-27T12:44:16.870
H21: FALSE
E22: Deducibles | G22: PLAN 1 | H22: PLAN 2 | I22: PLAN 3 | J22: PLAN 4
E23: En el país de residencia | G23: 250 | H23: 2000 | I23: 5000 | J23: 10000
E24: Fuera del país de residencia | G24: 5000 | H24: 2000 | I24: 5000 | J24: 10000
E26: Tarifas anuales
E27: Prima para Asegurado Titular | G27: =VLOOKUP($I$16,Tablas!$A$155:$G$221,3,TRUE) -> 7514 | H27: =VLOOKUP($I$16,Tablas!$A$155:$G$221,4,TRUE) -> 6820 | I27: =VLOOKUP($I$16,Tablas!$A$155:$G$221,5,TRUE) -> 4835 | J27: =VLOOKUP($I$16,Tablas!$A$155:$G$221,6,TRUE) -> 3499
E28: Prima para conyuge | G28: =IF($F$16=1,0,(VLOOKUP($I$18,Tablas!$A$155:$G$221,3,TRUE))) -> 0 | H28: =IF($F$16=1,0,(VLOOKUP($I$18,Tablas!$A$155:$G$221,4,TRUE))) -> 0 | I28: =IF($F$16=1,0,(VLOOKUP($I$18,Tablas!$A$155:$G$221,5,TRUE))) -> 0 | J28: =IF($F$16=1,0,(VLOOKUP($I$18,Tablas!$A$155:$G$221,6,TRUE))) -> 0
E29: Prima para hijo (s) | G29: =IF($F$18=0,0,(VLOOKUP($F$18,Tablas!$A$222:$G$224,3,TRUE))) -> 5134 | H29: =IF($F$18=0,0,(VLOOKUP($F$18,Tablas!$A$222:$G$224,4,TRUE))) -> 4661 | I29: =IF($F$18=0,0,(VLOOKUP($F$18,Tablas!$A$222:$G$224,5,TRUE))) -> 3484 | J29: =IF($F$18=0,0,(VLOOKUP($F$18,Tablas!$A$222:$G$224,6,TRUE))) -> 2522
E30: Total de Prima neta | G30: =SUM(G27:G29) -> 12648 | H30: =SUM(H27:H29) -> 11481 | I30: 8319 | J30: =SUM(J27:J29) -> 6021
E31: Tarifa administrativa anual | G31: 75 | H31: 75 | I31: 75 | J31: 75
E32: IVA (12%) | G32: =(G30+G31)*12% -> 1526.76 | H32: =(H30+H31)*12% -> 1386.72 | I32: 1007.28 | J32: =(J30+J31)*12% -> 731.52
E33: TOTAL ANUAL | G33: =SUM(G30:G32) -> 14249.76 | H33: =SUM(H30:H32) -> 12942.72 | I33: =SUM(I30:I32) -> 9401.28 | J33: =SUM(J30:J32) -> 6827.52
E35: Tarifas semi anuales
E36: Prima para Asegurado Titular | G36: =VLOOKUP($I$16,Tablas!$A$530:$G$596,3,TRUE) -> 3982.42 | H36: =VLOOKUP($I$16,Tablas!$A$530:$G$596,4,TRUE) -> 3614.6 | I36: =VLOOKUP($I$16,Tablas!$A$530:$G$596,5,TRUE) -> 2562.55 | J36: =VLOOKUP($I$16,Tablas!$A$530:$G$596,6,TRUE) -> 1854.47
E37: Prima para conyuge | G37: =IF($F$16=1,0,(VLOOKUP($I$18,Tablas!$A$530:$G$596,3,TRUE))) -> 0 | H37: =IF($F$16=1,0,(VLOOKUP($I$18,Tablas!$A$530:$G$596,4,TRUE))) -> 0 | I37: =IF($F$16=1,0,(VLOOKUP($I$18,Tablas!$A$530:$G$596,5,TRUE))) -> 0 | J37: =IF($F$16=1,0,(VLOOKUP($I$18,Tablas!$A$530:$G$596,6,TRUE))) -> 0
E38: Prima para hijo (s) | G38: =IF($F$18=0,0,(VLOOKUP($F$18,Tablas!$A$597:$G$599,3,TRUE))) -> 2721.02 | H38: =IF($F$18=0,0,(VLOOKUP($F$18,Tablas!$A$597:$G$599,4,TRUE))) -> 2470.33 | I38: =IF($F$18=0,0,(VLOOKUP($F$18,Tablas!$A$597:$G$599,5,TRUE))) -> 1846.52 | J38: =IF($F$18=0,0,(VLOOKUP($F$18,Tablas!$A$597:$G$599,6,TRUE))) -> 1336.66
E39: Total de Prima neta | G39: =SUM(G36:G38) -> 6703.44 | H39: =SUM(H36:H38) -> 6084.93 | I39: =SUM(I36:I38) -> 4409.07 | J39: =SUM(J36:J38) -> 3191.13
E40: Tarifa administrativa anual | G40: 75 | H40: 75 | I40: 75 | J40: 75
E41: IVA (12%) | G41: =(G39+G40)*12% -> 813.4128 | H41: =(H39+H40)*12% -> 739.1916 | I41: 538.0884 | J41: =(J39+J40)*12% -> 391.9356
E42: TOTAL de primera cuota | G42: =SUM(G39:G41) -> 7591.8528 | H42: =SUM(H39:H41) -> 6899.1216 | I42: =SUM(I39:I41) -> 5022.1584 | J42: =SUM(J39:J41) -> 3658.0656
E43: Costo de segunda cuota | G43: =G39+G41 - G40*12% -> 7507.8528 | H43: =H39+H41 - H40*12% -> 6815.1216 | I43: 4938.1584 | J43: =J39+J41 - J40*12% -> 3574.0656
E44: TOTAL ANUAL | G44: =G42+G43 -> 15099.7056 | H44: =H42+H43 -> 13714.2432 | I44: 9960.3168 | J44: =J42+J43 -> 7232.1312
E46: Tarifas trimestrales
E47: Prima para Asegurado Titular | G47: =VLOOKUP($I$16,Tablas!$A$755:$G$821,3,TRUE) -> 2066.35 | H47: =VLOOKUP($I$16,Tablas!$A$755:$G$821,4,TRUE) -> 1875.5 | I47: =VLOOKUP($I$16,Tablas!$A$755:$G$821,5,TRUE) -> 1329.625 | J47: =VLOOKUP($I$16,Tablas!$A$755:$G$821,6,TRUE) -> 962.225
E48: Prima para conyuge | G48: =IF($F$16=1,0,(VLOOKUP($I$18,Tablas!$A$755:$G$821,3,TRUE))) -> 0 | H48: =IF($F$16=1,0,(VLOOKUP($I$18,Tablas!$A$755:$G$821,4,TRUE))) -> 0 | I48: =IF($F$16=1,0,(VLOOKUP($I$18,Tablas!$A$755:$G$821,5,TRUE))) -> 0 | J48: =IF($F$16=1,0,(VLOOKUP($I$18,Tablas!$A$755:$G$821,6,TRUE))) -> 0
E49: Prima para hijo (s) | G49: =IF($F$18=0,0,(VLOOKUP($F$18,Tablas!$A$822:$G$824,3,TRUE))) -> 1411.85 | H49: =IF($F$18=0,0,(VLOOKUP($F$18,Tablas!$A$822:$G$824,4,TRUE))) -> 1281.775 | I49: =IF($F$18=0,0,(VLOOKUP($F$18,Tablas!$A$822:$G$824,5,TRUE))) -> 958.1 | J49: =IF($F$18=0,0,(VLOOKUP($F$18,Tablas!$A$822:$G$824,6,TRUE))) -> 693.55
E50: Total de Prima neta | G50: =SUM(G47:G49) -> 3478.2 | H50: =SUM(H47:H49) -> 3157.275 | I50: =SUM(I47:I49) -> 2287.725 | J50: =SUM(J47:J49) -> 1655.775
E51: Tarifa administrativa anual | G51: 75 | H51: 75 | I51: 75 | J51: 75
E52: IVA (12%) | G52: =(G50+G51)*12% -> 426.384 | H52: =(H50+H51)*12% -> 387.873 | I52: 283.527 | J52: =(J50+J51)*12% -> 207.693
E53: TOTAL de primera cuota | G53: =SUM(G50:G52) -> 3979.584 | H53: =SUM(H50:H52) -> 3620.148 | I53: =SUM(I50:I52) -> 2646.252 | J53: =SUM(J50:J52) -> 1938.468
E54: Costo de tarifa trimestral 2 a 4 | G54: =G50+G52 - G51*12% -> 3895.584 | H54: =H50+H52 - H51*12% -> 3536.148 | I54: 2562.252 | J54: =J50+J52 - J51*12% -> 1854.468
E55: TOTAL ANUAL | G55: =G53+(G54*3) -> 15666.336 | H55: =H53+(H54*3) -> 14228.592 | I55: 10333.008 | J55: =J53+(J54*3) -> 7501.872
E58: Tarifas en US $ - Efectivas a partir del 1ro de enero de 2022
E59: Este presupuesto solamente tiene carácter informativo y en ningún momento expresa compromiso legal para suministrarle cobertura de seguro. La emisión de una póliza de seguro Bupa está sujeta a todas las evaluaciones de riesgo por parte de Bupa y a la recepción de todos los pagos de prima requeridos.

Sheet Global Select
A11: GLOBAL SELECT HEALTH PLAN
E12: Nombre del Asegurado titular: | F12: =+'INGRESO DE DATOS'!$D$16 -> NOMBRE COMPLETO
E14: Número de adultos en la póliza: | F14: =+'INGRESO DE DATOS'!$D$18 -> 1 | H14: Edad del Asegurado Titular: | I14: =+'INGRESO DE DATOS'!$D$20 -> 42
E16: Número de niños en la póliza: | F16: =+'INGRESO DE DATOS'!$H$18 -> 3 | H16: Edad del/la conyuge: | I16: =+'INGRESO DE DATOS'!$H$20 -> 71
H18: Fecha de la cotización: | I18: =NOW() -> 2022-10-27T12:44:16.870
H19: FALSE
E20: Deducibles | G20: PLAN 1 | H20: PLAN 2 | I20: PLAN 3 | J20: PLAN 4
E21: En el país de residencia | G21: 250 | H21: 2000 | I21: 5000 | J21: 10000
E22: Fuera del país de residencia | G22: 5000 | H22: 2000 | I22: 5000 | J22: 10000
E24: Tarifas anuales
E25: Prima para Asegurado Titular | G25: =VLOOKUP($I$14,Tablas!$A$305:$G$371,3,TRUE) -> 6366 | H25: =VLOOKUP($I$14,Tablas!$A$305:$G$371,4,TRUE) -> 6108 | I25: =VLOOKUP($I$14,Tablas!$A$305:$G$371,5,TRUE) -> 4346 | J25: =VLOOKUP($I$14,Tablas!$A$305:$G$371,6,TRUE) -> 3151
E26: Prima para conyuge | G26: =IF($F$14=1,0,(VLOOKUP($I$16,Tablas!$A$305:$G$371,3,TRUE))) -> 0 | H26: =IF($F$14=1,0,(VLOOKUP($I$16,Tablas!$A$305:$G$371,4,TRUE))) -> 0 | I26: =IF($F$14=1,0,(VLOOKUP($I$16,Tablas!$A$305:$G$371,5,TRUE))) -> 0 | J26: =IF($F$14=1,0,(VLOOKUP($I$16,Tablas!$A$305:$G$371,6,TRUE))) -> 0
E27: Prima para hijo (s) | G27: =IF($F$16=0,0,(VLOOKUP($F$16,Tablas!$A$372:$G$374,3,TRUE))) -> 4576 | H27: =IF($F$16=0,0,(VLOOKUP($F$16,Tablas!$A$372:$G$374,4,TRUE))) -> 4391 | I27: =IF($F$16=0,0,(VLOOKUP($F$16,Tablas!$A$372:$G$374,5,TRUE))) -> 3309 | J27: =IF($F$16=0,0,(VLOOKUP($F$16,Tablas!$A$372:$G$374,6,TRUE))) -> 2399
E28: Total de Prima neta | G28: =SUM(G25:G27) -> 10942 | H28: =SUM(H25:H27) -> 10499 | I28: =SUM(I25:I27) -> 7655 | J28: =SUM(J25:J27) -> 5550
E29: Tarifa administrativa anual | G29: 75 | H29: 75 | I29: 75 | J29: 75
E30: IVA (12%) | G30: =(G28+G29)*12% -> 1322.04 | H30: =(H28+H29)*12% -> 1268.88 | I30: 927.6 | J30: =(J28+J29)*12% -> 675
E31: TOTAL ANUAL | G31: =SUM(G28:G30) -> 12339.04 | H31: =SUM(H28:H30) -> 11842.88 | I31: =SUM(I28:I30) -> 8657.6 | J31: =SUM(J28:J30) -> 6300
E33: Tarifas semi anuales
E34: Prima para Asegurado Titular | G34: =VLOOKUP($I$14,Tablas!$A$605:$G$671,3,TRUE) -> 3373.98 | H34: =VLOOKUP($I$14,Tablas!$A$605:$G$671,4,TRUE) -> 3237.24 | I34: =VLOOKUP($I$14,Tablas!$A$605:$G$671,5,TRUE) -> 2303.38 | J34: =VLOOKUP($I$14,Tablas!$A$605:$G$671,6,TRUE) -> 1670.03
E35: Prima para conyuge | G35: =IF($F$14=1,0,(VLOOKUP($I$16,Tablas!$A$605:$G$671,3,TRUE))) -> 0 | H35: =IF($F$14=1,0,(VLOOKUP($I$16,Tablas!$A$605:$G$671,4,TRUE))) -> 0 | I35: =IF($F$14=1,0,(VLOOKUP($I$16,Tablas!$A$605:$G$671,5,TRUE))) -> 0 | J35: =IF($F$14=1,0,(VLOOKUP($I$16,Tablas!$A$605:$G$671,6,TRUE))) -> 0
E36: Prima para hijo (s) | G36: =IF($F$16=0,0,(VLOOKUP($F$16,Tablas!$A$672:$G$674,3,TRUE))) -> 2425.28 | H36: =IF($F$16=0,0,(VLOOKUP($F$16,Tablas!$A$672:$G$674,4,TRUE))) -> 2327.23 | I36: =IF($F$16=0,0,(VLOOKUP($F$16,Tablas!$A$672:$G$674,5,TRUE))) -> 1753.77 | J36: =IF($F$16=0,0,(VLOOKUP($F$16,Tablas!$A$672:$G$674,6,TRUE))) -> 1271.47
E37: Total de Prima neta | G37: =SUM(G34:G36) -> 5799.26 | H37: =SUM(H34:H36) -> 5564.47 | I37: =SUM(I34:I36) -> 4057.15 | J37: =SUM(J34:J36) -> 2941.5
E38: Tarifa administrativa anual | G38: 75 | H38: 75 | I38: 75 | J38: 75
E39: IVA (12%) | G39: =(G37+G38)*12% -> 704.9112 | H39: =(H37+H38)*12% -> 676.7364 | I39: 495.858 | J39: =(J37+J38)*12% -> 361.98
E40: TOTAL de primera cuota | G40: =SUM(G37:G39) -> 6579.1712 | H40: =SUM(H37:H39) -> 6316.2064 | I40: =SUM(I37:I39) -> 4628.008 | J40: =SUM(J37:J39) -> 3378.48
E41: Costo de segunda cuota | G41: =G37+G39 - G38*12% -> 6495.1712 | H41: =H37+H39 - H38*12% -> 6232.2064 | I41: 4544.008 | J41: =J37+J39 - J38*12% -> 3294.48
E42: TOTAL ANUAL | G42: =G40+G41 -> 13074.3424 | H42: =H40+H41 -> 12548.4128 | I42: 9172.016 | J42: =J40+J41 -> 6672.96
E44: Tarifas trimestrales
E45: Prima para Asegurado Titular | G45: =VLOOKUP($I$14,Tablas!$A$830:$G$896,3,TRUE) -> 1750.65 | H45: =VLOOKUP($I$14,Tablas!$A$830:$G$896,4,TRUE) -> 1679.7 | I45: =VLOOKUP($I$14,Tablas!$A$830:$G$896,5,TRUE) -> 1195.15 | J45: =VLOOKUP($I$14,Tablas!$A$830:$G$896,6,TRUE) -> 866.525
E46: Prima para conyuge | G46: =IF($F$14=1,0,(VLOOKUP($I$16,Tablas!$A$830:$G$896,3,TRUE))) -> 0 | H46: =IF($F$14=1,0,(VLOOKUP($I$16,Tablas!$A$830:$G$896,4,TRUE))) -> 0 | I46: =IF($F$14=1,0,(VLOOKUP($I$16,Tablas!$A$830:$G$896,5,TRUE))) -> 0 | J46: =IF($F$14=1,0,(VLOOKUP($I$16,Tablas!$A$830:$G$896,6,TRUE))) -> 0
E47: Prima para hijo (s) | G47: =IF($F$16=0,0,(VLOOKUP($F$16,Tablas!$A$897:$G$899,3,TRUE))) -> 1258.4 | H47: =IF($F$16=0,0,(VLOOKUP($F$16,Tablas!$A$897:$G$899,4,TRUE))) -> 1207.525 | I47: =IF($F$16=0,0,(VLOOKUP($F$16,Tablas!$A$897:$G$899,5,TRUE))) -> 909.975 | J47: =IF($F$16=0,0,(VLOOKUP($F$16,Tablas!$A$897:$G$899,6,TRUE))) -> 659.725
E48: Total de Prima neta | G48: =SUM(G45:G47) -> 3009.05 | H48: =SUM(H45:H47) -> 2887.225 | I48: =SUM(I45:I47) -> 2105.125 | J48: =SUM(J45:J47) -> 1526.25
E49: Tarifa administrativa anual | G49: 75 | H49: 75 | I49: 75 | J49: 75
E50: IVA (12%) | G50: =(G48+G49)*12% -> 370.086 | H50: =(H48+H49)*12% -> 355.467 | I50: 261.615 | J50: =(J48+J49)*12% -> 192.15
E51: TOTAL de primera cuota | G51: =SUM(G48:G50) -> 3454.136 | H51: =SUM(H48:H50) -> 3317.692 | I51: =SUM(I48:I50) -> 2441.74 | J51: =SUM(J48:J50) -> 1793.4
E52: Costo de tarifa trimestral 2 a 4 | G52: =G48+G50 - G49*12% -> 3370.136 | H52: =H48+H50 - H49*12% -> 3233.692 | I52: 2357.74 | J52: =J48+J50 - J49*12% -> 1709.4
E53: TOTAL ANUAL | G53: =G51+(G52*3) -> 13564.544 | H53: =H51+(H52*3) -> 13018.768 | I53: 9514.96 | J53: =J51+(J52*3) -> 6921.6
E56: Tarifas en US $ - Efectivas a partir del 1ro de enero de 2022
E57: Este presupuesto solamente tiene carácter informativo y en ningún momento expresa compromiso legal para suministrarle cobertura de seguro. La emisión de una póliza de seguro Bupa está sujeta a todas las evaluaciones de riesgo por parte de Bupa y a la recepción de todos los pagos de prima requeridos.

Sheet Global Major Medical
A15: GLOBAL MAJOR MEDICAL HEALTH PLAN
E17: Nombre del Asegurado titular: | F17: =+'INGRESO DE DATOS'!$D$16 -> NOMBRE COMPLETO
E19: Número de adultos en la póliza: | F19: =+'INGRESO DE DATOS'!$D$18 -> 1 | H19: Edad del Asegurado Titular: | I19: =+'INGRESO DE DATOS'!$D$20 -> 42
E21: Número de niños en la póliza: | F21: =+'INGRESO DE DATOS'!$H$18 -> 3 | H21: Edad del/la conyuge: | I21: =+'INGRESO DE DATOS'!$H$20 -> 71
H23: Fecha de la cotización: | I23: =NOW() -> 2022-10-27T12:44:16.870
H24: FALSE
E25: Deducibles | G25: PLAN 1 | H25: PLAN 2
E26: En el país de residencia | G26: 10000 | H26: 20000
E27: Fuera del país de residencia | G27: 10000 | H27: 20000
E29: Tarifas anuales
E30: Prima para Asegurado Titular | G30: =VLOOKUP($I$19,Tablas!$A$1129:$G$1195,3,TRUE) -> 3672 | H30: =VLOOKUP($I$19,Tablas!$A$1129:$G$1195,4,TRUE) -> 2783
E31: Prima para conyuge | G31: =IF($F$19=1,0,(VLOOKUP($I$21,Tablas!$A$1129:$G$1195,3,TRUE))) -> 0 | H31: =IF($F$19=1,0,(VLOOKUP($I$21,Tablas!$A$1129:$G$1195,4,TRUE))) -> 0
E32: Prima para hijo (s) | G32: =IF($F$21=0,0,(VLOOKUP($F$21,Tablas!$A$1196:$G$1198,3,TRUE))) -> 2489 | H32: =IF($F$21=0,0,(VLOOKUP($F$21,Tablas!$A$1196:$G$1198,4,TRUE))) -> 1949
E33: Total de Prima neta | G33: =SUM(G30:G32) -> 6161 | H33: =SUM(H30:H32) -> 4732
E34: Tarifa administrativa anual | G34: 75 | H34: 75
E35: IVA (12%) | G35: =(G33+G34)*12% -> 748.32 | H35: =(H33+H34)*12% -> 576.84
E36: TOTAL ANUAL | G36: =SUM(G33:G35) -> 6984.32 | H36: =SUM(H33:H35) -> 5383.84
E38: Tarifas semi anuales
E39: Prima para Asegurado Titular | G39: =VLOOKUP($I$19,Tablas!$A$1353:$G$1419,3,TRUE) -> 1946.16 | H39: =VLOOKUP($I$19,Tablas!$A$1353:$G$1419,4,TRUE) -> 1474.99
E40: Prima para conyuge | G40: =IF($F$19=1,0,(VLOOKUP($I$21,Tablas!$A$1353:$G$1419,3,TRUE))) -> 0 | H40: =IF($F$19=1,0,(VLOOKUP($I$21,Tablas!$A$1353:$G$1419,4,TRUE))) -> 0
E41: Prima para hijo (s) | G41: =IF($F$21=0,0,(VLOOKUP($F$21,Tablas!$A$1420:$G$1422,3,TRUE))) -> 1319.17 | H41: =IF($F$21=0,0,(VLOOKUP($F$21,Tablas!$A$1420:$G$1422,4,TRUE))) -> 1032.97
E42: Total de Prima neta | G42: =SUM(G39:G41) -> 3265.33 | H42: =SUM(H39:H41) -> 2507.96
E43: Tarifa administrativa anual | G43: 75 | H43: 75
E44: IVA (12%) | G44: =(G42+G43)*12% -> 400.8396 | H44: =(H42+H43)*12% -> 309.9552
E45: TOTAL de primera cuota | G45: =SUM(G42:G44) -> 3741.1696 | H45: =SUM(H42:H44) -> 2892.9152
E46: Costo de segunda cuota | G46: =G42+G44 - G43*12% -> 3657.1696 | H46: =H42+H44 - H43*12% -> 2808.9152
E47: TOTAL ANUAL | G47: =G45+G46 -> 7398.3392 | H47: =H45+H46 -> 5701.8304
E49: Tarifas trimestrales
E50: Prima para Asegurado Titular | G50: =VLOOKUP($I$19,Tablas!$A$1278:$G$1344,3,TRUE) -> 1009.8 | H50: =VLOOKUP($I$19,Tablas!$A$1278:$G$1344,4,TRUE) -> 765.325
E51: Prima para conyuge | G51: =IF($F$19=1,0,(VLOOKUP($I$21,Tablas!$A$1278:$G$1344,3,TRUE))) -> 0 | H51: =IF($F$19=1,0,(VLOOKUP($I$21,Tablas!$A$1278:$G$1344,4,TRUE))) -> 0
E52: Prima para hijo (s) | G52: =IF($F$21=0,0,(VLOOKUP($F$21,Tablas!$A$1345:$G$1347,3,TRUE))) -> 684.475 | H52: =IF($F$21=0,0,(VLOOKUP($F$21,Tablas!$A$1345:$G$1347,4,TRUE))) -> 535.975
E53: Total de Prima neta | G53: =SUM(G50:G52) -> 1694.275 | H53: =SUM(H50:H52) -> 1301.3
E54: Tarifa administrativa anual | G54: 75 | H54: 75
E55: IVA (12%) | G55: =(G53+G54)*12% -> 212.313 | H55: =(H53+H54)*12% -> 165.156
E56: TOTAL de primera cuota | G56: =SUM(G53:G55) -> 1981.588 | H56: =SUM(H53:H55) -> 1541.456
E57: Costo de tarifa trimestral 2 a 4 | G57: =G53+G55 - G54*12% -> 1897.588 | H57: =H53+H55 - H54*12% -> 1457.456
E58: TOTAL ANUAL | G58: =G56+(G57*3) -> 7674.352 | H58: =H56+(H57*3) -> 5913.824
E61: Tarifas en US $ - Efectivas a partir del 1ro de enero de 2022
E62: Este presupuesto solamente tiene carácter informativo y en ningún momento expresa compromiso legal para suministrarle cobertura de seguro. La emisión de una póliza de seguro Bupa está sujeta a todas las evaluaciones de riesgo por parte de Bupa y a la recepción de todos los pagos de prima requeridos.

Sheet Resumen tarifas
A27: Cotizador de Seguro Médico - Bupa Global Health Plans
A29: Nombre del Asegurado Titular | C29: =+'INGRESO DE DATOS'!$D$16 -> NOMBRE COMPLETO
A32: Número de adultos en la póliza | C32: =+'INGRESO DE DATOS'!$D$18 -> 1 | E32: Edad del Asegurado Titular | G32: =+'INGRESO DE DATOS'!$D$20 -> 42
A35: Número de niños en la póliza | C35: =+'INGRESO DE DATOS'!$H$18 -> 3 | E35: Edad del/la cónyuge | G35: =+'INGRESO DE DATOS'!$H$20 -> 71
D38: FECHA DE LA COTIZACIÓN: | E38: =NOW() -> 2022-10-27T12:44:16.870
A40: Global Ultimate Health Plan
A41: Deducibles | C41: PLAN 1 | D41: PLAN 2
A42: En el país de residencia | C42: 0 | D42: 1000
A43: Fuera del país de residencia | C43: 0 | D43: 1000
C44: Tarifas anuales
C45: ='Global Ultimate'!G33 -> 49157.92 | D45: ='Global Ultimate'!H33 -> 31746.4
C46: Tarifas semi anuales
C47: ='Global Ultimate'!G43 -> 26093.1776 | D47: ='Global Ultimate'!H43 -> 16865.072
C48: ='Global Ultimate'!G44 -> 26009.1776 | D48: ='Global Ultimate'!H44 -> 16781.072
C49: Tarifas trimestrales
C50: ='Global Ultimate'!G55 -> 13579.328 | D50: ='Global Ultimate'!H55 -> 8791.16
C51: ='Global Ultimate'!G56 -> 13495.328 | D51: ='Global Ultimate'!H56 -> 8707.16
A52: Ahorros en tarifas de prima para niños (pago annual)* | C52: ='Global Ultimate'!G34 -> 16323 | D52: ='Global Ultimate'!H34 -> 10533
A54: Global Elite Health Plan
A55: Deducibles | D55: PLAN 1 | E55: PLAN 2 | F55: PLAN 3 | G55: PLAN 4 | H55: PLAN 5
A56: En el país de residencia | D56: 250 | E56: 2000 | F56: 3500 | G56: 5000 | H56: 10000
A57: Fuera del país de residencia | D57: 5000 | E57: 2000 | F57: 3500 | G57: 5000 | H57: 10000
D58: Tarifas anuales
D59: =+'Global Elite'!G33 -> 19164.32 | E59: =+'Global Elite'!H33 -> 16803.36 | F59: =+'Global Elite'!I33 -> 13567.68 | G59: =+'Global Elite'!J33 -> 11779.04 | H59: =+'Global Elite'!K33 -> 8919.68
D60: Tarifas semi anuales
D61: =+'Global Elite'!G43 -> 10196.5696 | E61: =+'Global Elite'!H43 -> 8945.2608 | F61: =+'Global Elite'!I43 -> 7230.3504 | G61: =+'Global Elite'!J43 -> 6282.3712 | H61: =+'Global Elite'!K43 -> 4766.9104
D62: =+'Global Elite'!G44 -> 10112.5696 | E62: =+'Global Elite'!H44 -> 8861.2608 | F62: =+'Global Elite'!I44 -> 7146.3504 | G62: =+'Global Elite'!J44 -> 6198.3712 | H62: =+'Global Elite'!K44 -> 4682.9104
D63: Tarifas trimestrales
D64: =+'Global Elite'!G55 -> 5331.088 | E64: =+'Global Elite'!H55 -> 4681.824 | F64: =+'Global Elite'!I55 -> 3792.012 | G64: =+'Global Elite'!J55 -> 3300.136 | H64: =+'Global Elite'!K55 -> 2513.812
D65: =+'Global Elite'!G56 -> 5247.088 | E65: =+'Global Elite'!H56 -> 4597.824 | F65: =+'Global Elite'!I56 -> 3708.012 | G65: =+'Global Elite'!J56 -> 3216.136 | H65: =+'Global Elite'!K56 -> 2429.812
A66: Ahorros en tarifas de prima para niños (pago annual)* | D66: =+'Global Elite'!G34 -> 6418 | E66: =+'Global Elite'!H34 -> 5626 | F66: =+'Global Elite'!I34 -> 4644 | G66: =+'Global Elite'!J34 -> 4028 | H66: =+'Global Elite'!K34 -> 3044
A68: Global Premier Health Plan
A69: Deducibles | E69: PLAN 1 | F69: PLAN 2 | G69: PLAN 3 | H69: PLAN 3
A70: En el país de residencia | E70: 250 | F70: 2000 | G70: 5000 | H70: 10000
A71: Fuera del país de residencia | E71: 5000 | F71: 2000 | G71: 5000 | H71: 10000
E72: Tarifas anuales
E73: =+'Global Premier'!G33 -> 14249.76 | F73: =+'Global Premier'!H33 -> 12942.72 | G73: =+'Global Premier'!I33 -> 9401.28 | H73: =+'Global Premier'!J33 -> 6827.52
E74: Tarifas semi anuales
E75: =+'Global Premier'!G42 -> 7591.8528 | F75: =+'Global Premier'!H42 -> 6899.1216 | G75: =+'Global Premier'!I42 -> 5022.1584 | H75: =+'Global Premier'!J42 -> 3658.0656
E76: =+'Global Premier'!G43 -> 7507.8528 | F76: =+'Global Premier'!H43 -> 6815.1216 | G76: =+'Global Premier'!I43 -> 4938.1584 | H76: =+'Global Premier'!J43 -> 3574.0656
E77: Tarifas trimestrales
E78: =+'Global Premier'!G53 -> 3979.584 | F78: =+'Global Premier'!H53 -> 3620.148 | G78: =+'Global Premier'!I53 -> 2646.252 | H78: =+'Global Premier'!J53 -> 1938.468
E79: =+'Global Premier'!G54 -> 3895.584 | F79: =+'Global Premier'!H54 -> 3536.148 | G79: =+'Global Premier'!I54 -> 2562.252 | H79: =+'Global Premier'!J54 -> 1854.468
A81: Global Select Health Plan
A82: Deducibles | E82: PLAN 1 | F82: PLAN 2 | G82: PLAN 3 | H82: PLAN 4
A83: En el país de residencia | E83: 250 | F83: 2000 | G83: 5000 | H83: 10000
A84: Fuera del país de residencia | E84: 5000 | F84: 2000 | G84: 5000 | H84: 10000
E85: Tarifas anuales
E86: =+'Global Select'!G31 -> 12339.04 | F86: =+'Global Select'!H31 -> 11842.88 | G86: =+'Global Select'!I31 -> 8657.6 | H86: =+'Global Select'!J31 -> 6300
E87: Tarifas semi anuales
E88: =+'Global Select'!G40 -> 6579.1712 | F88: =+'Global Select'!H40 -> 6316.2064 | G88: =+'Global Select'!I40 -> 4628.008 | H88: =+'Global Select'!J40 -> 3378.48
E89: =+'Global Select'!G41 -> 6495.1712 | F89: =+'Global Select'!H41 -> 6232.2064 | G89: =+'Global Select'!I41 -> 4544.008 | H89: =+'Global Select'!J41 -> 3294.48
E90: Tarifas trimestrales
E91: =+'Global Select'!G51 -> 3454.136 | F91: =+'Global Select'!H51 -> 3317.692 | G91: =+'Global Select'!I51 -> 2441.74 | H91: =+'Global Select'!J51 -> 1793.4
E92: =+'Global Select'!G52 -> 3370.136 | F92: =+'Global Select'!H52 -> 3233.692 | G92: =+'Global Select'!I52 -> 2357.74 | H92: =+'Global Select'!J52 -> 1709.4
A94: Global Major Medical Health Plan
A95: Deducibles | C95: PLAN 1 | D95: PLAN 2
A96: En el país de residencia | C96: 10000 | D96: 20000
A97: Fuera del país de residencia | C97: 10000 | D97: 20000
C98: Tarifas anuales
C99: ='Global Major Medical'!G36 -> 6984.32 | D99: ='Global Major Medical'!H36 -> 5383.84
C100: Tarifas semi anuales
C101: ='Global Major Medical'!G45 -> 3741.1696 | D101: ='Global Major Medical'!H45 -> 2892.9152
C102: ='Global Major Medical'!G46 -> 3657.1696 | D102: ='Global Major Medical'!H46 -> 2808.9152
C103: Tarifas trimestrales
C104: ='Global Major Medical'!G56 -> 1981.588 | D104: ='Global Major Medical'!H56 -> 1541.456
C105: ='Global Major Medical'!G57 -> 1897.588 | D105: ='Global Major Medical'!H57 -> 1457.456
A107: Una tarifa administrativa de US$75 se carga automáticamente al primer pago
A108: *Basado en un modo de pago anual
A111: Tarifas en US $ - Efectivas a partir del 1ro de enero de 2020
A112: Este presupuesto solamente tiene carácter informativo y en ningún momento expresa compromiso legal para suministrarle cobertura de seguro. La emisión de una póliza de seguro Bupa está sujeta a todas las evaluaciones de riesgo por parte de Bupa y a la recepción de todos los pagos de prima requeridos.

Sheet Tablas (hidden)
A2: BUPA GLOBAL ELITE | I2: FACTOR MENSUAL: | K2: =1.12/12 -> 0.09333333333
A3: TARIFAS ANUALES | I3: FACTOR TRIMESTRAL: | K3: =1.1/4 -> 0.275
A4: EDAD | I4: FACTOR SEMIANUAL: | K4: =1.06/2 -> 0.53
C5: 1000 | D5: 2000 | E5: 3500 | F5: 5000 | G5: 10000 | M5: 1000 | N5: 2000 | O5: 3500 | P5: 5000 | Q5: 10000
A6: 18 | C6: 8387 | D6: 7350 | E6: 6072 | F6: 5263 | G6: 3979 | I6: Descuento (0%): | K6: 1 | M6: 5679 | N6: 4977 | O6: 4216 | P6: 3655 | Q6: 2835 | S6: TRUE | T6: TRUE | U6: TRUE | V6: TRUE | W6: TRUE
A7: 19 | C7: 8488 | D7: 7440 | E7: 6136 | F7: 5322 | G7: 4022 | M7: 5747 | N7: 5038 | O7: 4261 | P7: 3695 | Q7: 2866 | S7: TRUE | T7: TRUE | U7: TRUE | V7: TRUE | W7: TRUE
A8: 20 | C8: 8596 | D8: 7532 | E8: 6204 | F8: 5379 | G8: 4065 | M8: 5820 | N8: 5100 | O8: 4308 | P8: 3735 | Q8: 2897 | S8: TRUE | T8: TRUE | U8: TRUE | V8: TRUE | W8: TRUE
A9: 21 | C9: 8703 | D9: 7629 | E9: 6273 | F9: 5440 | G9: 4111 | M9: 5893 | N9: 5165 | O9: 4356 | P9: 3777 | Q9: 2929 | S9: TRUE | T9: TRUE | U9: TRUE | V9: TRUE | W9: TRUE
A10: 22 | C10: 8816 | D10: 7727 | E10: 6347 | F10: 5504 | G10: 4159 | M10: 5969 | N10: 5232 | O10: 4407 | P10: 3822 | Q10: 2964 | S10: TRUE | T10: TRUE | U10: TRUE | V10: TRUE | W10: TRUE
A11: 23 | C11: 8932 | D11: 7832 | E11: 6423 | F11: 5569 | G11: 4209 | M11: 6048 | N11: 5302 | O11: 4460 | P11: 3867 | Q11: 3000 | S11: TRUE | T11: TRUE | U11: TRUE | V11: TRUE | W11: TRUE
A12: 24 | C12: 9052 | D12: 7938 | E12: 6500 | F12: 5636 | G12: 4260 | M12: 6129 | N12: 5375 | O12: 4514 | P12: 3914 | Q12: 3035 | S12: TRUE | T12: TRUE | U12: TRUE | V12: TRUE | W12: TRUE
A13: 25 | C13: 9179 | D13: 8045 | E13: 6578 | F13: 5704 | G13: 4312 | M13: 6215 | N13: 5447 | O13: 4568 | P13: 3961 | Q13: 3072 | S13: TRUE | T13: TRUE | U13: TRUE | V13: TRUE | W13: TRUE
A14: 26 | C14: 9359 | D14: 8202 | E14: 6698 | F14: 5808 | G14: 4389 | M14: 6337 | N14: 5554 | O14: 4651 | P14: 4033 | Q14: 3128 | S14: TRUE | T14: TRUE | U14: TRUE | V14: TRUE | W14: TRUE
A15: 27 | C15: 9545 | D15: 8368 | E15: 6820 | F15: 5915 | G15: 4469 | M15: 6463 | N15: 5666 | O15: 4736 | P15: 4107 | Q15: 3185 | S15: TRUE | T15: TRUE | U15: TRUE | V15: TRUE | W15: TRUE
A16: 28 | C16: 9741 | D16: 8540 | E16: 6948 | F16: 6024 | G16: 4554 | M16: 6596 | N16: 5782 | O16: 4825 | P16: 4183 | Q16: 3245 | S16: TRUE | T16: TRUE | U16: TRUE | V16: TRUE | W16: TRUE
A17: 29 | C17: 9945 | D17: 8717 | E17: 7083 | F17: 6141 | G17: 4640 | M17: 6734 | N17: 5902 | O17: 4918 | P17: 4264 | Q17: 3307 | S17: TRUE | T17: TRUE | U17: TRUE | V17: TRUE | W17: TRUE
A18: 30 | C18: 10154 | D18: 8901 | E18: 7223 | F18: 6264 | G18: 4733 | M18: 6875 | N18: 6027 | O18: 5015 | P18: 4349 | Q18: 3372 | S18: TRUE | T18: TRUE | U18: TRUE | V18: TRUE | W18: TRUE
A19: 31 | C19: 10373 | D19: 9095 | E19: 7363 | F19: 6386 | G19: 4825 | M19: 7024 | N19: 6158 | O19: 5114 | P19: 4435 | Q19: 3439 | S19: TRUE | T19: TRUE | U19: TRUE | V19: TRUE | W19: TRUE
A20: 32 | C20: 10596 | D20: 9288 | E20: 7517 | F20: 6519 | G20: 4925 | M20: 7175 | N20: 6289 | O20: 5220 | P20: 4527 | Q20: 3510 | S20: TRUE | T20: TRUE | U20: TRUE | V20: TRUE | W20: TRUE
A21: 33 | C21: 10832 | D21: 9495 | E21: 7669 | F21: 6652 | G21: 5026 | M21: 7334 | N21: 6429 | O21: 5326 | P21: 4619 | Q21: 3582 | S21: TRUE | T21: TRUE | U21: TRUE | V21: TRUE | W21: TRUE
A22: 34 | C22: 11072 | D22: 9702 | E22: 7830 | F22: 6792 | G22: 5130 | M22: 7497 | N22: 6570 | O22: 5438 | P22: 4716 | Q22: 3657 | S22: TRUE | T22: TRUE | U22: TRUE | V22: TRUE | W22: TRUE
A23: 35 | C23: 11319 | D23: 9921 | E23: 7996 | F23: 6934 | G23: 5240 | M23: 7664 | N23: 6717 | O23: 5553 | P23: 4815 | Q23: 3734 | S23: TRUE | T23: TRUE | U23: TRUE | V23: TRUE | W23: TRUE
A24: 36 | C24: 11573 | D24: 10144 | E24: 8165 | F24: 7081 | G24: 5349 | M24: 7837 | N24: 6869 | O24: 5670 | P24: 4917 | Q24: 3813 | S24: TRUE | T24: TRUE | U24: TRUE | V24: TRUE | W24: TRUE
A25: 37 | C25: 11835 | D25: 10374 | E25: 8345 | F25: 7236 | G25: 5468 | M25: 8014 | N25: 7025 | O25: 5795 | P25: 5025 | Q25: 3897 | S25: TRUE | T25: TRUE | U25: TRUE | V25: TRUE | W25: TRUE
A26: 38 | C26: 12106 | D26: 10611 | E26: 8526 | F26: 7394 | G26: 5585 | M26: 8198 | N26: 7185 | O26: 5921 | P26: 5134 | Q26: 3981 | S26: TRUE | T26: TRUE | U26: TRUE | V26: TRUE | W26: TRUE
A27: 39 | C27: 12382 | D27: 10853 | E27: 8713 | F27: 7555 | G27: 5710 | M27: 8385 | N27: 7349 | O27: 6051 | P27: 5246 | Q27: 4069 | S27: TRUE | T27: TRUE | U27: TRUE | V27: TRUE | W27: TRUE
A28: 40 | C28: 12665 | D28: 11103 | E28: 8903 | F28: 7721 | G28: 5835 | M28: 8576 | N28: 7518 | O28: 6183 | P28: 5362 | Q28: 4158 | S28: TRUE | T28: TRUE | U28: TRUE | V28: TRUE | W28: TRUE
A29: 41 | C29: 12959 | D29: 11360 | E29: 9103 | F29: 7892 | G29: 5965 | M29: 8775 | N29: 7692 | O29: 6322 | P29: 5481 | Q29: 4251 | S29: TRUE | T29: TRUE | U29: TRUE | V29: TRUE | W29: TRUE
A30: 42 | C30: 13260 | D30: 11620 | E30: 9307 | F30: 8071 | G30: 6098 | M30: 8979 | N30: 7869 | O30: 6463 | P30: 5605 | Q30: 4346 | S30: TRUE | T30: TRUE | U30: TRUE | V30: TRUE | W30: TRUE
A31: 43 | C31: 13566 | D31: 11890 | E31: 9514 | F31: 8250 | G31: 6235 | M31: 9186 | N31: 8051 | O31: 6607 | P31: 5729 | Q31: 4443 | S31: TRUE | T31: TRUE | U31: TRUE | V31: TRUE | W31: TRUE
A32: 44 | C32: 13880 | D32: 12167 | E32: 9728 | F32: 8436 | G32: 6375 | M32: 9399 | N32: 8239 | O32: 6756 | P32: 5858 | Q32: 4543 | S32: TRUE | T32: TRUE | U32: TRUE | V32: TRUE | W32: TRUE
A33: 45 | C33: 14202 | D33: 12450 | E33: 9948 | F33: 8627 | G33: 6520 | M33: 9617 | N33: 8430 | O33: 6909 | P33: 5991 | Q33: 4647 | S33: TRUE | T33: TRUE | U33: TRUE | V33: TRUE | W33: TRUE
A34: 46 | C34: 14531 | D34: 12736 | E34: 10172 | F34: 8821 | G34: 6666 | M34: 9840 | N34: 8624 | O34: 7065 | P34: 6126 | Q34: 4751 | S34: TRUE | T34: TRUE | U34: TRUE | V34: TRUE | W34: TRUE
A35: 47 | C35: 14867 | D35: 13034 | E35: 10403 | F35: 9020 | G35: 6817 | M35: 10068 | N35: 8826 | O35: 7225 | P35: 6264 | Q35: 4858 | S35: TRUE | T35: TRUE | U35: TRUE | V35: TRUE | W35: TRUE
A36: 48 | C36: 15214 | D36: 13331 | E36: 10638 | F36: 9225 | G36: 6970 | M36: 10302 | N36: 9028 | O36: 7388 | P36: 6406 | Q36: 4968 | S36: TRUE | T36: TRUE | U36: TRUE | V36: TRUE | W36: TRUE
A37: 49 | C37: 15563 | D37: 13642 | E37: 10877 | F37: 9432 | G37: 7128 | M37: 10539 | N37: 9238 | O37: 7554 | P37: 6550 | Q37: 5080 | S37: TRUE | T37: TRUE | U37: TRUE | V37: TRUE | W37: TRUE
A38: 50 | C38: 15923 | D38: 13955 | E38: 11125 | F38: 9646 | G38: 7289 | M38: 10783 | N38: 9450 | O38: 7726 | P38: 6699 | Q38: 5195 | S38: TRUE | T38: TRUE | U38: TRUE | V38: TRUE | W38: TRUE
A39: 51 | C39: 16290 | D39: 14278 | E39: 11378 | F39: 9865 | G39: 7454 | M39: 11031 | N39: 9669 | O39: 7901 | P39: 6851 | Q39: 5313 | S39: TRUE | T39: TRUE | U39: TRUE | V39: TRUE | W39: TRUE
A40: 52 | C40: 16661 | D40: 14606 | E40: 11631 | F40: 10086 | G40: 7621 | M40: 11283 | N40: 9890 | O40: 8078 | P40: 7004 | Q40: 5432 | S40: TRUE | T40: TRUE | U40: TRUE | V40: TRUE | W40: TRUE
A41: 53 | C41: 17044 | D41: 14940 | E41: 11894 | F41: 10314 | G41: 7794 | M41: 11542 | N41: 10117 | O41: 8260 | P41: 7163 | Q41: 5555 | S41: TRUE | T41: TRUE | U41: TRUE | V41: TRUE | W41: TRUE
A42: 54 | C42: 17434 | D42: 15280 | E42: 12163 | F42: 10547 | G42: 7969 | M42: 11806 | N42: 10347 | O42: 8447 | P42: 7325 | Q42: 5680 | S42: TRUE | T42: TRUE | U42: TRUE | V42: TRUE | W42: TRUE
A43: 55 | C43: 17832 | D43: 15628 | E43: 12435 | F43: 10782 | G43: 8149 | M43: 12075 | N43: 10583 | O43: 8636 | P43: 7488 | Q43: 5808 | S43: TRUE | T43: TRUE | U43: TRUE | V43: TRUE | W43: TRUE
A44: 56 | C44: 18233 | D44: 15981 | E44: 12714 | F44: 11024 | G44: 8329 | M44: 12347 | N44: 10822 | O44: 8829 | P44: 7657 | Q44: 5937 | S44: TRUE | T44: TRUE | U44: TRUE | V44: TRUE | W44: TRUE
A45: 57 | C45: 18645 | D45: 16343 | E45: 12995 | F45: 11266 | G45: 8515 | M45: 12626 | N45: 11067 | O45: 9025 | P45: 7825 | Q45: 6069 | S45: TRUE | T45: TRUE | U45: TRUE | V45: TRUE | W45: TRUE
A46: 58 | C46: 19065 | D46: 16712 | E46: 13282 | F46: 11517 | G46: 8704 | M46: 12910 | N46: 11316 | O46: 9225 | P46: 7999 | Q46: 6204 | S46: TRUE | T46: TRUE | U46: TRUE | V46: TRUE | W46: TRUE
A47: 59 | C47: 19490 | D47: 17082 | E47: 13578 | F47: 11774 | G47: 8896 | M47: 13198 | N47: 11568 | O47: 9430 | P47: 8177 | Q47: 6341 | S47: TRUE | T47: TRUE | U47: TRUE | V47: TRUE | W47: TRUE
A48: 60 | C48: 19923 | D48: 17464 | E48: 13876 | F48: 12032 | G48: 9092 | M48: 13491 | N48: 11826 | O48: 9637 | P48: 8356 | Q48: 6480 | S48: TRUE | T48: TRUE | U48: TRUE | V48: TRUE | W48: TRUE
A49: 61 | C49: 22203 | D49: 19462 | E49: 15457 | F49: 13402 | G49: 10128 | M49: 15035 | N49: 13179 | O49: 10735 | P49: 9308 | Q49: 7219 | S49: TRUE | T49: TRUE | U49: TRUE | V49: TRUE | W49: TRUE
A50: 62 | C50: 24668 | D50: 21622 | E50: 17167 | F50: 14885 | G50: 11248 | M50: 16704 | N50: 14642 | O50: 11923 | P50: 10338 | Q50: 8017 | S50: TRUE | T50: TRUE | U50: TRUE | V50: TRUE | W50: TRUE
A51: 63 | C51: 27322 | D51: 23948 | E51: 19013 | F51: 16486 | G51: 12458 | M51: 18502 | N51: 16217 | O51: 13205 | P51: 11450 | Q51: 8880 | S51: TRUE | T51: TRUE | U51: TRUE | V51: TRUE | W51: TRUE
A52: 64 | C52: 30156 | D52: 26432 | E52: 20989 | F52: 18200 | G52: 13755 | M52: 20422 | N52: 17900 | O52: 14578 | P52: 12641 | Q52: 9804 | S52: TRUE | T52: TRUE | U52: TRUE | V52: TRUE | W52: TRUE
A53: 65 | C53: 33182 | D53: 29084 | E53: 23102 | F53: 20032 | G53: 15137 | M53: 22471 | N53: 19695 | O53: 16045 | P53: 13913 | Q53: 10790 | S53: TRUE | T53: TRUE | U53: TRUE | V53: TRUE | W53: TRUE
A54: 66 | C54: 36392 | D54: 31900 | E54: 25350 | F54: 21980 | G54: 16611 | M54: 24644 | N54: 21602 | O54: 17607 | P54: 15266 | Q54: 11841 | S54: TRUE | T54: TRUE | U54: TRUE | V54: TRUE | W54: TRUE
A55: 67 | C55: 39786 | D55: 34875 | E55: 27728 | F55: 24042 | G55: 18169 | M55: 26943 | N55: 23617 | O55: 19258 | P55: 16698 | Q55: 12951 | S55: TRUE | T55: TRUE | U55: TRUE | V55: TRUE | W55: TRUE
A56: 68 | C56: 43366 | D56: 38010 | E56: 30243 | F56: 26224 | G56: 19817 | M56: 29368 | N56: 25741 | O56: 21005 | P56: 18214 | Q56: 14126 | S56: TRUE | T56: TRUE | U56: TRUE | V56: TRUE | W56: TRUE
A57: 69 | C57: 47136 | D57: 41315 | E57: 32890 | F57: 28519 | G57: 21550 | M57: 31921 | N57: 27979 | O57: 22844 | P57: 19808 | Q57: 15361 | S57: TRUE | T57: TRUE | U57: TRUE | V57: TRUE | W57: TRUE
A58: 70 | C58: 51088 | D58: 44780 | E58: 35673 | F58: 30932 | G58: 23375 | M58: 34598 | N58: 30325 | O58: 24777 | P58: 21484 | Q58: 16662 | S58: TRUE | T58: TRUE | U58: TRUE | V58: TRUE | W58: TRUE
A59: 71 | C59: 55230 | D59: 48410 | E59: 38587 | F59: 33458 | G59: 25282 | M59: 37402 | N59: 32784 | O59: 26801 | P59: 23239 | Q59: 18022 | S59: TRUE | T59: TRUE | U59: TRUE | V59: TRUE | W59: TRUE
A60: 72 | C60: 59555 | D60: 52200 | E60: 41636 | F60: 36102 | G60: 27282 | M60: 40331 | N60: 35351 | O60: 28919 | P60: 25075 | Q60: 19447 | S60: TRUE | T60: TRUE | U60: TRUE | V60: TRUE | W60: TRUE
A61: 73 | C61: 64067 | D61: 56156 | E61: 44814 | F61: 38861 | G61: 29365 | M61: 43387 | N61: 38029 | O61: 31127 | P61: 26991 | Q61: 20932 | S61: TRUE | T61: TRUE | U61: TRUE | V61: TRUE | W61: TRUE
A62: 74 | C62: 68765 | D62: 60274 | E62: 48132 | F62: 41736 | G62: 31537 | M62: 46569 | N62: 40818 | O62: 33431 | P62: 28988 | Q62: 22481 | S62: TRUE | T62: TRUE | U62: TRUE | V62: TRUE | W62: TRUE
A63: 75 | C63: 73650 | D63: 64554 | E63: 51581 | F63: 44727 | G63: 33798 | M63: 49877 | N63: 43717 | O63: 35827 | P63: 31066 | Q63: 24093 | S63: TRUE | T63: TRUE | U63: TRUE | V63: TRUE | W63: TRUE
A64: 76 | C64: 73650 | D64: 64554 | E64: 51581 | F64: 44727 | G64: 33798 | M64: 49877 | N64: 43717 | O64: 35827 | P64: 31066 | Q64: 24093
A65: 77 | C65: 73650 | D65: 64554 | E65: 51581 | F65: 44727 | G65: 33798 | M65: 49877 | N65: 43717 | O65: 35827 | P65: 31066 | Q65: 24093
A66: 78 | C66: 73650 | D66: 64554 | E66: 51581 | F66: 44727 | G66: 33798 | M66: 49877 | N66: 43717 | O66: 35827 | P66: 31066 | Q66: 24093
A67: 79 | C67: 73650 | D67: 64554 | E67: 51581 | F67: 44727 | G67: 33798 | M67: 49877 | N67: 43717 | O67: 35827 | P67: 31066 | Q67: 24093
A68: 80 | C68: 73650 | D68: 64554 | E68: 51581 | F68: 44727 | G68: 33798 | M68: 49877 | N68: 43717 | O68: 35827 | P68: 31066 | Q68: 24093
A69: 81 | C69: 73650 | D69: 64554 | E69: 51581 | F69: 44727 | G69: 33798 | M69: 49877 | N69: 43717 | O69: 35827 | P69: 31066 | Q69: 24093
A70: 82 | C70: 73650 | D70: 64554 | E70: 51581 | F70: 44727 | G70: 33798 | M70: 49877 | N70: 43717 | O70: 35827 | P70: 31066 | Q70: 24093
A71: 83 | C71: 73650 | D71: 64554 | E71: 51581 | F71: 44727 | G71: 33798 | M71: 49877 | N71: 43717 | O71: 35827 | P71: 31066 | Q71: 24093
A72: 84 | B72: o más | C72: 73650 | D72: 64554 | E72: 51581 | F72: 44727 | G72: 33798 | M72: 49877 | N72: 43717 | O72: 35827 | P72: 31066 | Q72: 24093
A73: 1 | B73: Hijo | C73: 3776 | D73: 3308 | E73: 2732 | F73: 2371 | G73: 1791 | M73: 2556 | N73: 2239 | O73: 1897 | P73: 1645 | Q73: 1276 | S73: TRUE | T73: TRUE | U73: TRUE | V73: TRUE | W73: TRUE
A74: 2 | B74: Hijos | C74: 6418 | D74: 5626 | E74: 4644 | F74: 4028 | G74: 3044 | M74: 4345 | N74: 3809 | O74: 3225 | P74: 2797 | Q74: 2169 | S74: TRUE | T74: TRUE | U74: TRUE | V74: TRUE | W74: TRUE
A75: 3 | B75: Hijos o más | C75: 9058 | D75: 7942 | E75: 6557 | F75: 5687 | G75: 4297 | M75: 6133 | N75: 5377 | O75: 4554 | P75: 3949 | Q75: 3062 | S75: TRUE | T75: TRUE | U75: TRUE | V75: TRUE | W75: TRUE
A77: BUPA GLOBAL ELITE - MENSUALES
A78: EDAD
C79: 1000 | D79: 2000 | E79: 3500
A80: 18 | C80: =+C6*$K$2 -> 782.7866667 | D80: =+D6*$K$2 -> 686 | E80: 566.72 | F80: 491.2133333 | G80: 371.3733333
A81: 19 | C81: =+C7*$K$2 -> 792.2133333 | D81: 694.4 | E81: 572.6933333 | F81: 496.72 | G81: 375.3866667
A82: 20 | C82: =+C8*$K$2 -> 802.2933333 | D82: 702.9866667 | E82: 579.04 | F82: 502.04 | G82: 379.4
A83: 21 | C83: =+C9*$K$2 -> 812.28 | D83: 712.04 | E83: 585.48 | F83: 507.7333333 | G83: 383.6933333
A84: 22 | C84: =+C10*$K$2 -> 822.8266667 | D84: 721.1866667 | E84: 592.3866667 | F84: 513.7066667 | G84: 388.1733333
A85: 23 | C85: =+C11*$K$2 -> 833.6533333 | D85: 730.9866667 | E85: 599.48 | F85: 519.7733333 | G85: 392.84
A86: 24 | C86: =+C12*$K$2 -> 844.8533333 | D86: 740.88 | E86: 606.6666667 | F86: 526.0266667 | G86: 397.6
A87: 25 | C87: =+C13*$K$2 -> 856.7066667 | D87: 750.8666667 | E87: 613.9466667 | F87: 532.3733333 | G87: 402.4533333
A88: 26 | C88: =+C14*$K$2 -> 873.5066667 | D88: 765.52 | E88: 625.1466667 | F88: 542.08 | G88: 409.64
A89: 27 | C89: =+C15*$K$2 -> 890.8666667 | D89: 781.0133333 | E89: 636.5333333 | F89: 552.0666667 | G89: 417.1066667
A90: 28 | C90: =+C16*$K$2 -> 909.16 | D90: 797.0666667 | E90: 648.48 | F90: 562.24 | G90: 425.04
A91: 29 | C91: =+C17*$K$2 -> 928.2 | D91: 813.5866667 | E91: 661.08 | F91: 573.16 | G91: 433.0666667
A92: 30 | C92: =+C18*$K$2 -> 947.7066667 | D92: 830.76 | E92: 674.1466667 | F92: 584.64 | G92: 441.7466667
A93: 31 | C93: =+C19*$K$2 -> 968.1466667 | D93: 848.8666667 | E93: 687.2133333 | F93: 596.0266667 | G93: 450.3333333
A94: 32 | C94: =+C20*$K$2 -> 988.96 | D94: 866.88 | E94: 701.5866667 | F94: 608.44 | G94: 459.6666667
A95: 33 | C95: =+C21*$K$2 -> 1010.986667 | D95: 886.2 | E95: 715.7733333 | F95: 620.8533333 | G95: 469.0933333
A96: 34 | C96: =+C22*$K$2 -> 1033.386667 | D96: 905.52 | E96: 730.8 | F96: 633.92 | G96: 478.8
A97: 35 | C97: =+C23*$K$2 -> 1056.44 | D97: 925.96 | E97: 746.2933333 | F97: 647.1733333 | G97: 489.0666667
A98: 36 | C98: =+C24*$K$2 -> 1080.146667 | D98: 946.7733333 | E98: 762.0666667 | F98: 660.8933333 | G98: 499.24
A99: 37 | C99: =+C25*$K$2 -> 1104.6 | D99: 968.24 | E99: 778.8666667 | F99: 675.36 | G99: 510.3466667
A100: 38 | C100: =+C26*$K$2 -> 1129.893333 | D100: 990.36 | E100: 795.76 | F100: 690.1066667 | G100: 521.2666667
A101: 39 | C101: =+C27*$K$2 -> 1155.653333 | D101: 1012.946667 | E101: 813.2133333 | F101: 705.1333333 | G101: 532.9333333
A102: 40 | C102: =+C28*$K$2 -> 1182.066667 | D102: 1036.28 | E102: 830.9466667 | F102: 720.6266667 | G102: 544.6
A103: 41 | C103: =+C29*$K$2 -> 1209.506667 | D103: 1060.266667 | E103: 849.6133333 | F103: 736.5866667 | G103: 556.7333333
A104: 42 | C104: =+C30*$K$2 -> 1237.6 | D104: 1084.533333 | E104: 868.6533333 | F104: 753.2933333 | G104: 569.1466667
A105: 43 | C105: =+C31*$K$2 -> 1266.16 | D105: 1109.733333 | E105: 887.9733333 | F105: 770 | G105: 581.9333333
A106: 44 | C106: =+C32*$K$2 -> 1295.466667 | D106: 1135.586667 | E106: 907.9466667 | F106: 787.36 | G106: 595
A107: 45 | C107: =+C33*$K$2 -> 1325.52 | D107: 1162 | E107: 928.48 | F107: 805.1866667 | G107: 608.5333333
A108: 46 | C108: =+C34*$K$2 -> 1356.226667 | D108: 1188.693333 | E108: 949.3866667 | F108: 823.2933333 | G108: 622.16
A109: 47 | C109: =+C35*$K$2 -> 1387.586667 | D109: 1216.506667 | E109: 970.9466667 | F109: 841.8666667 | G109: 636.2533333
A110: 48 | C110: =+C36*$K$2 -> 1419.973333 | D110: 1244.226667 | E110: 992.88 | F110: 861 | G110: 650.5333333
A111: 49 | C111: =+C37*$K$2 -> 1452.546667 | D111: 1273.253333 | E111: 1015.186667 | F111: 880.32 | G111: 665.28
A112: 50 | C112: =+C38*$K$2 -> 1486.146667 | D112: 1302.466667 | E112: 1038.333333 | F112: 900.2933333 | G112: 680.3066667
A113: 51 | C113: =+C39*$K$2 -> 1520.4 | D113: 1332.613333 | E113: 1061.946667 | F113: 920.7333333 | G113: 695.7066667
A114: 52 | C114: =+C40*$K$2 -> 1555.026667 | D114: 1363.226667 | E114: 1085.56 | F114: 941.36 | G114: 711.2933333
A115: 53 | C115: =+C41*$K$2 -> 1590.773333 | D115: 1394.4 | E115: 1110.106667 | F115: 962.64 | G115: 727.44
A116: 54 | C116: =+C42*$K$2 -> 1627.173333 | D116: 1426.133333 | E116: 1135.213333 | F116: 984.3866667 | G116: 743.7733333
A117: 55 | C117: =+C43*$K$2 -> 1664.32 | D117: 1458.613333 | E117: 1160.6 | F117: 1006.32 | G117: 760.5733333
A118: 56 | C118: =+C44*$K$2 -> 1701.746667 | D118: 1491.56 | E118: 1186.64 | F118: 1028.906667 | G118: 777.3733333
A119: 57 | C119: =+C45*$K$2 -> 1740.2 | D119: 1525.346667 | E119: 1212.866667 | F119: 1051.493333 | G119: 794.7333333
A120: 58 | C120: =+C46*$K$2 -> 1779.4 | D120: 1559.786667 | E120: 1239.653333 | F120: 1074.92 | G120: 812.3733333
A121: 59 | C121: =+C47*$K$2 -> 1819.066667 | D121: 1594.32 | E121: 1267.28 | F121: 1098.906667 | G121: 830.2933333
A122: 60 | C122: =+C48*$K$2 -> 1859.48 | D122: 1629.973333 | E122: 1295.093333 | F122: 1122.986667 | G122: 848.5866667
A123: 61 | C123: =+C49*$K$2 -> 2072.28 | D123: 1816.453333 | E123: 1442.653333 | F123: 1250.853333 | G123: 945.28
A124: 62 | C124: =+C50*$K$2 -> 2302.346667 | D124: 2018.053333 | E124: 1602.253333 | F124: 1389.266667 | G124: 1049.813333
A125: 63 | C125: =+C51*$K$2 -> 2550.053333 | D125: 2235.146667 | E125: 1774.546667 | F125: 1538.693333 | G125: 1162.746667
A126: 64 | C126: =+C52*$K$2 -> 2814.56 | D126: 2466.986667 | E126: 1958.973333 | F126: 1698.666667 | G126: 1283.8
A127: 65 | C127: =+C53*$K$2 -> 3096.986667 | D127: 2714.506667 | E127: 2156.186667 | F127: 1869.653333 | G127: 1412.786667
A128: 66 | C128: =+C54*$K$2 -> 3396.586667 | D128: 2977.333333 | E128: 2366 | F128: 2051.466667 | G128: 1550.36
A129: 67 | C129: =+C55*$K$2 -> 3713.36 | D129: 3255 | E129: 2587.946667 | F129: 2243.92 | G129: 1695.773333
A130: 68 | C130: =+C56*$K$2 -> 4047.493333 | D130: 3547.6 | E130: 2822.68 | F130: 2447.573333 | G130: 1849.586667
A131: 69 | C131: =+C57*$K$2 -> 4399.36 | D131: 3856.066667 | E131: 3069.733333 | F131: 2661.773333 | G131: 2011.333333
A132: 70 | C132: =+C58*$K$2 -> 4768.213333 | D132: 4179.466667 | E132: 3329.48 | F132: 2886.986667 | G132: 2181.666667
A133: 71 | C133: =+C59*$K$2 -> 5154.8 | D133: 4518.266667 | E133: 3601.453333 | F133: 3122.746667 | G133: 2359.653333
A134: 72 | C134: =+C60*$K$2 -> 5558.466667 | D134: 4872 | E134: 3886.026667 | F134: 3369.52 | G134: 2546.32
A135: 73 | C135: =+C61*$K$2 -> 5979.586667 | D135: 5241.226667 | E135: 4182.64 | F135: 3627.026667 | G135: 2740.733333
A136: 74 | C136: =+C62*$K$2 -> 6418.066667 | D136: 5625.573333 | E136: 4492.32 | F136: 3895.36 | G136: 2943.453333
A137: 75 | C137: =+C63*$K$2 -> 6874 | D137: 6025.04 | E137: 4814.226667 | F137: 4174.52 | G137: 3154.48
A138: 76 | C138: =+C64*$K$2 -> 6874 | D138: 6025.04 | E138: 4814.226667 | F138: 4174.52 | G138: 3154.48
A139: 77 | C139: =+C65*$K$2 -> 6874 | D139: 6025.04 | E139: 4814.226667 | F139: 4174.52 | G139: 3154.48
A140: 78 | C140: =+C66*$K$2 -> 6874 | D140: 6025.04 | E140: 4814.226667 | F140: 4174.52 | G140: 3154.48
A141: 79 | C141: =+C67*$K$2 -> 6874 | D141: 6025.04 | E141: 4814.226667 | F141: 4174.52 | G141: 3154.48
A142: 80 | C142: =+C68*$K$2 -> 6874 | D142: 6025.04 | E142: 4814.226667
A143: 81 | C143: =+C69*$K$2 -> 6874 | D143: 6025.04 | E143: 4814.226667
A144: 82 | C144: =+C70*$K$2 -> 6874 | D144: 6025.04 | E144: 4814.226667
A145: 83 | C145: =+C71*$K$2 -> 6874 | D145: 6025.04 | E145: 4814.226667
A146: 84 | B146: o más | C146: =+C72*$K$2 -> 6874 | D146: 6025.04 | E146: 4814.226667 | F146: 4174.52 | G146: 3154.48
A147: 1 | B147: Hijo | C147: =+C73*$K$2 -> 352.4266667 | D147: 308.7466667 | E147: 254.9866667 | F147: 221.2933333 | G147: 167.16
A148: 2 | B148: Hijos | C148: =+C74*$K$2 -> 599.0133333 | D148: 525.0933333 | E148: 433.44 | F148: 375.9466667 | G148: 284.1066667
A149: 3 | B149: Hijos o más | C149: =+C75*$K$2 -> 845.4133333 | D149: 741.2533333 | E149: 611.9866667 | F149: 530.7866667 | G149: 401.0533333
A151: BUPA GLOBAL PREMIER
A152: TARIFAS ANUALES
A153: EDAD
C154: 2000 | D154: 3500 | E154: 5000 | F154: 10000 | M154: 2000 | N154: 3500 | O154: 5000 | P154: 10000
A155: 18 | C155: 4753 | D155: 4315 | E155: 3228 | F155: 2335 | M155: 3710 | N155: 3367 | O155: 2587 | P155: 1924 | Q155: 1391.25 | S155: TRUE | T155: TRUE | U155: TRUE | V155: TRUE
A156: 19 | C156: 4813 | D156: 4368 | E156: 3257 | F156: 2357 | M156: 3757 | N156: 3409 | O156: 2611 | P156: 1942 | Q156: 1406.09 | S156: TRUE | T156: TRUE | U156: TRUE | V156: TRUE
A157: 20 | C157: 4872 | D157: 4421 | E157: 3291 | F157: 2382 | M157: 3802 | N157: 3451 | O157: 2637 | P157: 1962 | Q157: 1421.46 | S157: TRUE | T157: TRUE | U157: TRUE | V157: TRUE
A158: 21 | C158: 4934 | D158: 4476 | E158: 3325 | F158: 2407 | M158: 3851 | N158: 3494 | O158: 2665 | P158: 1982 | Q158: 1437.36 | S158: TRUE | T158: TRUE | U158: TRUE | V158: TRUE
A159: 22 | C159: 4996 | D159: 4537 | E159: 3359 | F159: 2433 | M159: 3900 | N159: 3541 | O159: 2692 | P159: 2003 | Q159: 1454.32 | S159: TRUE | T159: TRUE | U159: TRUE | V159: TRUE
A160: 23 | C160: 5063 | D160: 4596 | E160: 3395 | F160: 2458 | M160: 3952 | N160: 3587 | O160: 2721 | P160: 2024 | Q160: 1471.81 | S160: TRUE | T160: TRUE | U160: TRUE | V160: TRUE
A161: 24 | C161: 5133 | D161: 4658 | E161: 3433 | F161: 2485 | M161: 4006 | N161: 3636 | O161: 2751 | P161: 2047 | Q161: 1489.3 | S161: TRUE | T161: TRUE | U161: TRUE | V161: TRUE
A162: 25 | C162: 5203 | D162: 4721 | E162: 3471 | F162: 2512 | M162: 4061 | N162: 3685 | O162: 2783 | P162: 2070 | Q162: 1507.32 | S162: TRUE | T162: TRUE | U162: TRUE | V162: TRUE
A163: 26 | C163: 5305 | D163: 4816 | E163: 3531 | F163: 2555 | M163: 4141 | N163: 3758 | O163: 2829 | P163: 2104 | Q163: 1534.88 | S163: TRUE | T163: TRUE | U163: TRUE | V163: TRUE
A164: 27 | C164: 5410 | D164: 4912 | E164: 3590 | F164: 2599 | M164: 4223 | N164: 3833 | O164: 2878 | P164: 2141 | Q164: 1562.97 | S164: TRUE | T164: TRUE | U164: TRUE | V164: TRUE
A165: 28 | C165: 5521 | D165: 5011 | E165: 3652 | F165: 2644 | M165: 4310 | N165: 3912 | O165: 2927 | P165: 2178 | Q165: 1592.12 | S165: TRUE | T165: TRUE | U165: TRUE | V165: TRUE
A166: 29 | C166: 5637 | D166: 5115 | E166: 3718 | F166: 2692 | M166: 4400 | N166: 3993 | O166: 2980 | P166: 2217 | Q166: 1622.86 | S166: TRUE | T166: TRUE | U166: TRUE | V166: TRUE
A167: 30 | C167: 5756 | D167: 5226 | E167: 3788 | F167: 2743 | M167: 4492 | N167: 4079 | O167: 3036 | P167: 2259 | Q167: 1654.66 | S167: TRUE | T167: TRUE | U167: TRUE | V167: TRUE
A168: 31 | C168: 5878 | D168: 5336 | E168: 3860 | F168: 2794 | M168: 4588 | N168: 4165 | O168: 3094 | P168: 2301 | Q168: 1687.52 | S168: TRUE | T168: TRUE | U168: TRUE | V168: TRUE
A169: 32 | C169: 6007 | D169: 5452 | E169: 3933 | F169: 2847 | M169: 4689 | N169: 4256 | O169: 3153 | P169: 2345 | Q169: 1722.5 | S169: TRUE | T169: TRUE | U169: TRUE | V169: TRUE
A170: 33 | C170: 6138 | D170: 5572 | E170: 4012 | F170: 2903 | M170: 4791 | N170: 4349 | O170: 3215 | P170: 2392 | Q170: 1757.48 | S170: TRUE | T170: TRUE | U170: TRUE | V170: TRUE
A171: 34 | C171: 6275 | D171: 5694 | E171: 4090 | F171: 2961 | M171: 4898 | N171: 4445 | O171: 3279 | P171: 2439 | Q171: 1794.58 | S171: TRUE | T171: TRUE | U171: TRUE | V171: TRUE
A172: 35 | C172: 6414 | D172: 5823 | E172: 4176 | F172: 3023 | M172: 5007 | N172: 4544 | O172: 3346 | P172: 2489 | Q172: 1832.21 | S172: TRUE | T172: TRUE | U172: TRUE | V172: TRUE
A173: 36 | C173: 6560 | D173: 5954 | E173: 4263 | F173: 3085 | M173: 5121 | N173: 4648 | O173: 3417 | P173: 2542 | Q173: 1870.9 | S173: TRUE | T173: TRUE | U173: TRUE | V173: TRUE
A174: 37 | C174: 6709 | D174: 6088 | E174: 4351 | F174: 3149 | M174: 5236 | N174: 4752 | O174: 3487 | P174: 2594 | Q174: 1912.24 | S174: TRUE | T174: TRUE | U174: TRUE | V174: TRUE
A175: 38 | C175: 6861 | D175: 6229 | E175: 4443 | F175: 3215 | M175: 5356 | N175: 4862 | O175: 3561 | P175: 2649 | Q175: 1953.58 | S175: TRUE | T175: TRUE | U175: TRUE | V175: TRUE
A176: 39 | C176: 7020 | D176: 6372 | E176: 4536 | F176: 3284 | M176: 5479 | N176: 4973 | O176: 3636 | P176: 2705 | Q176: 1996.51 | S176: TRUE | T176: TRUE | U176: TRUE | V176: TRUE
A177: 40 | C177: 7180 | D177: 6518 | E177: 4632 | F177: 3352 | M177: 5605 | N177: 5087 | O177: 3714 | P177: 2762 | Q177: 2040.5 | S177: TRUE | T177: TRUE | U177: TRUE | V177: TRUE
A178: 41 | C178: 7347 | D178: 6667 | E178: 4731 | F178: 3424 | M178: 5735 | N178: 5204 | O178: 3793 | P178: 2821 | Q178: 2086.08 | S178: TRUE | T178: TRUE | U178: TRUE | V178: TRUE
A179: 42 | C179: 7514 | D179: 6820 | E179: 4835 | F179: 3499 | M179: 5866 | N179: 5324 | O179: 3876 | P179: 2883 | Q179: 2132.72 | S179: TRUE | T179: TRUE | U179: TRUE | V179: TRUE
A180: 43 | C180: 7691 | D180: 6978 | E180: 4941 | F180: 3578 | M180: 6003 | N180: 5447 | O180: 3961 | P180: 2947 | Q180: 2179.89 | S180: TRUE | T180: TRUE | U180: TRUE | V180: TRUE
A181: 44 | C181: 7866 | D181: 7140 | E181: 5050 | F181: 3656 | M181: 6141 | N181: 5573 | O181: 4048 | P181: 3012 | Q181: 2229.18 | S181: TRUE | T181: TRUE | U181: TRUE | V181: TRUE
A182: 45 | C182: 8050 | D182: 7308 | E182: 5162 | F182: 3737 | M182: 6284 | N182: 5704 | O182: 4138 | P182: 3078 | Q182: 2280.06 | S182: TRUE | T182: TRUE | U182: TRUE | V182: TRUE
A183: 46 | C183: 8238 | D183: 7476 | E183: 5276 | F183: 3818 | M183: 6430 | N183: 5835 | O183: 4229 | P183: 3145 | Q183: 2331.47 | S183: TRUE | T183: TRUE | U183: TRUE | V183: TRUE
A184: 47 | C184: 8429 | D184: 7648 | E184: 5394 | F184: 3905 | M184: 6580 | N184: 5970 | O184: 4324 | P184: 3217 | Q184: 2383.94 | S184: TRUE | T184: TRUE | U184: TRUE | V184: TRUE
A185: 48 | C185: 8623 | D185: 7825 | E185: 5513 | F185: 3990 | M185: 6731 | N185: 6109 | O185: 4419 | P185: 3287 | Q185: 2438 | S185: TRUE | T185: TRUE | U185: TRUE | V185: TRUE
A186: 49 | C186: 8823 | D186: 8006 | E186: 5635 | F186: 4078 | M186: 6887 | N186: 6250 | O186: 4517 | P186: 3360 | Q186: 2492.59 | S186: TRUE | T186: TRUE | U186: TRUE | V186: TRUE
A187: 50 | C187: 9024 | D187: 8191 | E187: 5761 | F187: 4169 | M187: 7045 | N187: 6394 | O187: 4617 | P187: 3435 | Q187: 2549.3 | S187: TRUE | T187: TRUE | U187: TRUE | V187: TRUE
A188: 51 | C188: 9233 | D188: 8379 | E188: 5887 | F188: 4262 | M188: 7208 | N188: 6542 | O188: 4720 | P188: 3512 | Q188: 2607.07 | S188: TRUE | T188: TRUE | U188: TRUE | V188: TRUE
A189: 52 | C189: 9446 | D189: 8571 | E189: 6019 | F189: 4357 | M189: 7374 | N189: 6691 | O189: 4825 | P189: 3589 | Q189: 2665.37 | S189: TRUE | T189: TRUE | U189: TRUE | V189: TRUE
A190: 53 | C190: 9661 | D190: 8768 | E190: 6154 | F190: 4455 | M190: 7542 | N190: 6844 | O190: 4934 | P190: 3670 | Q190: 2725.79 | S190: TRUE | T190: TRUE | U190: TRUE | V190: TRUE
A191: 54 | C191: 9881 | D191: 8966 | E191: 6289 | F191: 4552 | M191: 7714 | N191: 7000 | O191: 5042 | P191: 3750 | Q191: 2787.27 | S191: TRUE | T191: TRUE | U191: TRUE | V191: TRUE
A192: 55 | C192: 10109 | D192: 9173 | E192: 6428 | F192: 4654 | M192: 7891 | N192: 7160 | O192: 5154 | P192: 3834 | Q192: 2849.81 | S192: TRUE | T192: TRUE | U192: TRUE | V192: TRUE
A193: 56 | C193: 10334 | D193: 9380 | E193: 6571 | F193: 4756 | M193: 8068 | N193: 7323 | O193: 5268 | P193: 3919 | Q193: 2913.41 | S193: TRUE | T193: TRUE | U193: TRUE | V193: TRUE
A194: 57 | C194: 10569 | D194: 9591 | E194: 6717 | F194: 4863 | M194: 8251 | N194: 7487 | O194: 5385 | P194: 4006 | Q194: 2978.07 | S194: TRUE | T194: TRUE | U194: TRUE | V194: TRUE
A195: 58 | C195: 10807 | D195: 9806 | E195: 6865 | F195: 4970 | M195: 8436 | N195: 7656 | O195: 5503 | P195: 4094 | Q195: 3044.32 | S195: TRUE | T195: TRUE | U195: TRUE | V195: TRUE
A196: 59 | C196: 11047 | D196: 10026 | E196: 7016 | F196: 5077 | M196: 8624 | N196: 7827 | O196: 5625 | P196: 4184 | Q196: 3111.63 | S196: TRUE | T196: TRUE | U196: TRUE | V196: TRUE
A197: 60 | C197: 11295 | D197: 10250 | E197: 7170 | F197: 5190 | M197: 8817 | N197: 8001 | O197: 5748 | P197: 4276 | Q197: 3180 | S197: TRUE | T197: TRUE | U197: TRUE | V197: TRUE
A198: 61 | C198: 12585 | D198: 11422 | E198: 7979 | F198: 5776 | M198: 9825 | N198: 8916 | O198: 6397 | P198: 4759 | Q198: 3542.52 | S198: TRUE | T198: TRUE | U198: TRUE | V198: TRUE
A199: 62 | C199: 13981 | D199: 12688 | E199: 8862 | F199: 6414 | M199: 10915 | N199: 9905 | O199: 7105 | P199: 5285 | Q199: 3934.19 | S199: TRUE | T199: TRUE | U199: TRUE | V199: TRUE
A200: 63 | C200: 15485 | D200: 14052 | E200: 9813 | F200: 7104 | M200: 12089 | N200: 10971 | O200: 7868 | P200: 5853 | Q200: 4357.66 | S200: TRUE | T200: TRUE | U200: TRUE | V200: TRUE
A201: 64 | C201: 17092 | D201: 15513 | E201: 10837 | F201: 7843 | M201: 13344 | N201: 12111 | O201: 8688 | P201: 6462 | Q201: 4810.81 | S201: TRUE | T201: TRUE | U201: TRUE | V201: TRUE
A202: 65 | C202: 18807 | D202: 17066 | E202: 11929 | F202: 8633 | M202: 14683 | N202: 13324 | O202: 9565 | P202: 7114 | Q202: 5294.7 | S202: TRUE | T202: TRUE | U202: TRUE | V202: TRUE
A203: 66 | C203: 20627 | D203: 18717 | E203: 13094 | F203: 9477 | M203: 16103 | N203: 14613 | O203: 10499 | P203: 7810 | Q203: 5810.39 | S203: TRUE | T203: TRUE | U203: TRUE | V203: TRUE
... 1275 more rows
